Workbook

Sheet Stavba
C2: Položkový rozpočet stavby | H2: Datum: | I2: =TODAY() -> 2022-03-29
C5: Stavba : | D5: 3268 | E5: Dostavba komunikací v rozvojové lokalitě
E6: Hruštice - Károvsko
C7: Objednatel : | D7: Město TURNOV | H7: IČO : | I7: 00276227
D8: Antonína Dvořáka 335 | H8: DIČ : | I8: CZ00276227
C9: 51122 | D9: Turnov
C11: Zhotovitel : | D11: . | H11: IČO :
H12: DIČ :
C14: Za zhotovitele : | H14: Za objednatele :
C16: _______________ | H16: _______________
J18: Rozpočtové náklady
B19: Základ pro DPH | D19: 15 | E19: % | I19: =ROUND(G33,0) -> 0
B20: DPH | D20: =SazbaDPH1 -> 15 | E20: % | I20: =ROUND(I19*D20/100,0) -> 0
B21: Základ pro DPH | D21: 21 | E21: % | I21: =ROUND(H33,0) -> 0
B22: DPH | D22: =SazbaDPH2 -> 21 | E22: % | I22: =ROUND(I21*D21/100,0) -> 0
B23: Cena celkem za stavbu | I23: =SUM(I19:I22) -> 0
B27: Rekapitulace stavebních objektů a provozních souborů
B29: Číslo a název objektu / provozního souboru | F29: Cena celkem | G29: =CONCATENATE("Základ DPH ",SazbaDPH1," %") -> Základ DPH 15 % | H29: =CONCATENATE("Základ DPH ",SazbaDPH2," %") -> Základ DPH 21 % | I29: DPH celkem | J29: %
B30: 101.08 | C30: Komunikace - ul. Vladimíra Krajiny | F30: =G30+H30+I30 -> 0 | G30: 0 | H30: =SUM(H40:H44) -> 0 | I30: =(G30*SazbaDPH1)/100+(H30*SazbaDPH2)/100 -> 0 | J30: =IF(CelkemObjekty=0,"",F30/CelkemObjekty*100) -> 
B31: 101.10 | C31: Komunikace - ul. Františka Závorky | F31: =G31+H31+I31 -> 0 | G31: 0 | H31: =SUM(H45:H45) -> 0 | I31: 0
B32: ONS | C32: Ostatní náklady stavby | F32: 0 | G32: 0 | H32: =SUM(ONS!G25) -> 0 | I32: 0
B33: Celkem za stavbu | F33: =SUM(F30:F32) -> 0 | G33: =SUM(G30:G32) -> 0 | H33: =SUM(H30:H32) -> 0 | I33: =SUM(I30:I32) -> 0 | J33: =IF(CelkemObjekty=0,"",F33/CelkemObjekty*100) -> 
B37: Rekapitulace stavebních rozpočtů
B39: Číslo objektu | C39: Číslo a název rozpočtu | F39: Cena celkem | G39: =CONCATENATE("Základ DPH ",SazbaDPH1," %") -> Základ DPH 15 % | H39: =CONCATENATE("Základ DPH ",SazbaDPH2," %") -> Základ DPH 21 % | I39: DPH celkem | J39: %
B40: 101.08 | C40: 101.08.1 Komunikace - Úsek č. 1 | F40: =G40+H40+I40 -> 0 | G40: 0 | H40: =SUM('101.08 101.08.1 KL'!C23) -> 0 | I40: =(G40*SazbaDPH1)/100+(H40*SazbaDPH2)/100 -> 0 | J40: =IF(CelkemObjekty=0,"",F40/CelkemObjekty*100) -> 
B41: 101.08 | C41: 101.08.2 Komunikace - Křižovatka č. 1 | F41: =G41+H41+I41 -> 0 | G41: 0 | H41: =SUM('101.08 101.08.2 KL'!C23) -> 0 | I41: 0
B42: 101.08 | C42: 101.08.3 Komunikace - Úsek č. 2 | F42: 0 | G42: 0 | H42: =SUM('101.08 101.08.3 KL'!C23) -> 0 | I42: 0
B43: 101.08 | C43: 101.08.4 Komunikace - Křižovatka č. 2 | F43: 0 | G43: 0 | H43: =SUM('101.08 101.08.4 KL'!C23) -> 0 | I43: 0
B44: 101.08 | C44: 101.08.5 Komunikace - Úsek č. 3 | F44: 0 | G44: 0 | H44: =SUM('101.08 101.08.5 KL'!C23) -> 0 | I44: 0
B45: 101.10 | C45: 101.10.2 Komunikace - 1. křižovatka x Křiž. Nad Farářstvím | F45: 0 | G45: 0 | H45: =SUM('101.10 101.10.2 KL'!C23) -> 0 | I45: 0
B46: Celkem za stavbu | F46: =SUM(F40:F45) -> 0 | G46: =SUM(G40:G45) -> 0 | H46: =SUM(H40:H45) -> 0 | I46: =SUM(I40:I45) -> 0 | J46: =IF(CelkemObjekty=0,"",F46/CelkemObjekty*100) -> 

Sheet 101.08 101.08.1 KL
A1: POLOŽKOVÝ ROZPOČET
A2: Rozpočet | C2: 101.08.1 | D2: Komunikace - Úsek č. 1 | F2: JKSO | G2: 822.29
A4: Objekt | F4: SKP
A5: 101.08 | C5: Komunikace - ul. Vladimíra Krajiny | F5: Měrná jednotka | G5: m2
A6: Stavba | F6: Počet jednotek | G6: 0
A7: 3268 | C7: Komunikace a IS v rozvojové lokalitě Hruštice - Ká | F7: Náklady na m.j. | G7: =IF(G6=0,,ROUND((F30+F32)/G6,1)) -> 0
A8: Projektant | C8: PROFES PROJEKT spol.s r.o. | F8: Typ rozpočtu
A9: Zpracovatel projektu
A10: Objednatel | C10: Město TURNOV
A11: Dodavatel | C11: . | F11: Zakázkové číslo
A12: Rozpočtoval | F12: Počet listů
A13: ROZPOČTOVÉ NÁKLADY
A14: Základní rozpočtové náklady
B15: HSV celkem | C15: ='101.08 101.08.1 Rek'!E13 -> 0
A16: Z | B16: PSV celkem | C16: ='101.08 101.08.1 Rek'!F13 -> 0
A17: R | B17: M práce celkem | C17: ='101.08 101.08.1 Rek'!H13 -> 0
A18: N | B18: M dodávky celkem | C18: ='101.08 101.08.1 Rek'!G13 -> 0
A19: ZRN celkem | C19: =SUM(C15:C18) -> 0
A21: HZS | C21: ='101.08 101.08.1 Rek'!I13 -> 0
A22: ZRN+HZS | C22: =C19+C21 -> 0
A23: ZRN+ost.náklady+HZS | C23: =C22+G23 -> 0
A24: Vypracoval | D24: Za zhotovitele | F24: Za objednatele
A25: Jméno : | D25: Jméno : | F25: Jméno :
A26: Datum : | D26: Datum : | F26: Datum :
A28: Podpis : | D28: Podpis: | F28: Podpis:
A30: Základ pro DPH | C30: 21 | D30: % | F30: =C23-F32 -> 0
A31: DPH | C31: =C30 -> 21 | D31: % | F31: =ROUND(PRODUCT(F30,C31/100),0) -> 0
A32: Základ pro DPH | C32: 0 | D32: % | F32: 0
A33: DPH | C33: =C32 -> 0 | D33: % | F33: =ROUND(PRODUCT(F32,C33/100),0) -> 0
A34: CENA ZA OBJEKT CELKEM | F34: =ROUND(SUM(F30:F33),0) -> 0
A36: Poznámka :

Sheet 101.08 101.08.1 Rek
A1: Stavba : | C1: 3268 Komunikace a IS v rozvojové lokalitě Hruštice - Ká | G1: Rozpočet : | H1: 101.08.1
A2: Objekt : | C2: 101.08 Komunikace - ul. Vladimíra Krajiny | G2: Komunikace - Úsek č. 1
A4: REKAPITULACE STAVEBNÍCH DÍLŮ
B6: Stavební díl | E6: HSV | F6: PSV | G6: Dodávka | H6: Montáž | I6: HZS
A7: ='101.08 101.08.1 Pol'!B7 -> 1 | B7: ='101.08 101.08.1 Pol'!C7 -> Zemní práce | E7: ='101.08 101.08.1 Pol'!BA33 -> 0 | F7: ='101.08 101.08.1 Pol'!BB33 -> 0 | G7: ='101.08 101.08.1 Pol'!BC33 -> 0 | H7: ='101.08 101.08.1 Pol'!BD33 -> 0 | I7: ='101.08 101.08.1 Pol'!BE33 -> 0
A8: ='101.08 101.08.1 Pol'!B34 -> 5 | B8: ='101.08 101.08.1 Pol'!C34 -> Komunikace | E8: ='101.08 101.08.1 Pol'!BA50 -> 0 | F8: ='101.08 101.08.1 Pol'!BB50 -> 0 | G8: ='101.08 101.08.1 Pol'!BC50 -> 0 | H8: ='101.08 101.08.1 Pol'!BD50 -> 0 | I8: ='101.08 101.08.1 Pol'!BE50 -> 0
A9: ='101.08 101.08.1 Pol'!B51 -> 8 | B9: ='101.08 101.08.1 Pol'!C51 -> Trubní vedení | E9: ='101.08 101.08.1 Pol'!BA57 -> 0 | F9: ='101.08 101.08.1 Pol'!BB57 -> 0 | G9: ='101.08 101.08.1 Pol'!BC57 -> 0 | H9: ='101.08 101.08.1 Pol'!BD57 -> 0 | I9: ='101.08 101.08.1 Pol'!BE57 -> 0
A10: ='101.08 101.08.1 Pol'!B58 -> 91 | B10: ='101.08 101.08.1 Pol'!C58 -> Doplňující práce na komunikaci | E10: ='101.08 101.08.1 Pol'!BA67 -> 0 | F10: ='101.08 101.08.1 Pol'!BB67 -> 0 | G10: ='101.08 101.08.1 Pol'!BC67 -> 0 | H10: ='101.08 101.08.1 Pol'!BD67 -> 0 | I10: ='101.08 101.08.1 Pol'!BE67 -> 0
A11: ='101.08 101.08.1 Pol'!B68 -> 93 | B11: ='101.08 101.08.1 Pol'!C68 -> Dokončovací práce inženýrských staveb | E11: ='101.08 101.08.1 Pol'!BA73 -> 0 | F11: ='101.08 101.08.1 Pol'!BB73 -> 0 | G11: ='101.08 101.08.1 Pol'!BC73 -> 0 | H11: ='101.08 101.08.1 Pol'!BD73 -> 0 | I11: ='101.08 101.08.1 Pol'!BE73 -> 0
A12: ='101.08 101.08.1 Pol'!B74 -> 99 | B12: ='101.08 101.08.1 Pol'!C74 -> Staveništní přesun hmot | E12: ='101.08 101.08.1 Pol'!BA76 -> 0 | F12: ='101.08 101.08.1 Pol'!BB76 -> 0 | G12: ='101.08 101.08.1 Pol'!BC76 -> 0 | H12: ='101.08 101.08.1 Pol'!BD76 -> 0 | I12: ='101.08 101.08.1 Pol'!BE76 -> 0
B13: CELKEM OBJEKT | E13: =SUM(E7:E12) -> 0 | F13: =SUM(F7:F12) -> 0 | G13: =SUM(G7:G12) -> 0 | H13: =SUM(H7:H12) -> 0 | I13: =SUM(I7:I12) -> 0

Sheet 101.08 101.08.1 Pol
A1: Položkový rozpočet
A3: Stavba : | C3: 3268 Komunikace a IS v rozvojové lokalitě Hruštice - Ká | E3: Rozpočet: | F3: ='101.08 101.08.1 Rek'!H1 -> 101.08.1
A4: Objekt : | C4: 101.08 Komunikace - ul. Vladimíra Krajiny | E4: ='101.08 101.08.1 Rek'!G2 -> Komunikace - Úsek č. 1
A6: P.č. | B6: Číslo položky | C6: Název položky | D6: MJ | E6: množství | F6: cena / MJ | G6: celkem (Kč) | H6: Jednotková hmotnost | I6: Celková hmotnost | J6: Jednotková dem.hmot. | K6: Celková dem.hmot.
A7: Díl: | B7: 1 | C7: Zemní práce | O7: 1
A8: 1 | B8: 113108310R00 | C8: Odstranění asfaltové vrstvy pl. do 50 m2, tl.10 cm | D8: m2 | E8: 12.8 | G8: =E8*F8 -> 0 | H8: 0 | I8: =E8*H8 -> 0 | J8: -0.22 | K8: =E8*J8 -> -2.816 | O8: 2 | AA8: 1 | AB8: 1 | AC8: 1 | AZ8: 1 | BA8: =IF(AZ8=1,G8,0) -> 0 | BB8: =IF(AZ8=2,G8,0) -> 0 | BC8: =IF(AZ8=3,G8,0) -> 0 | BD8: =IF(AZ8=4,G8,0) -> 0 | BE8: =IF(AZ8=5,G8,0) -> 0 | CA8: 1 | CB8: 1
C9: Pro osazení betonových obrubníků:64,00*0,10*2 | E9: 12.8 | M9: Pro osazení betonových obrubníků:64,00*0,10*2
A10: 2 | B10: 122202201R00 | C10: Odkopávky pro silnice v hor. 3 do 100 m3 | D10: m3 | E10: 16.68 | G10: =E10*F10 -> 0 | H10: 0 | I10: =E10*H10 -> 0 | J10: 0 | K10: =E10*J10 -> 0 | O10: 2 | AA10: 1 | AB10: 1 | AC10: 1 | AZ10: 1 | BA10: =IF(AZ10=1,G10,0) -> 0 | BB10: =IF(AZ10=2,G10,0) -> 0 | BC10: =IF(AZ10=3,G10,0) -> 0 | BD10: =IF(AZ10=4,G10,0) -> 0 | BE10: =IF(AZ10=5,G10,0) -> 0 | CA10: 1 | CB10: 1
C11: Pro osazení betonových obrubníků:64,00*0,30*0,20*2 | E11: 7.68 | M11: Pro osazení betonových obrubníků:64,00*0,30*0,20*2
C12: Pro vjezdy:(6,00+4,00)*3,00*0,30 | E12: 9 | M12: Pro vjezdy:(6,00+4,00)*3,00*0,30
A13: 3 | B13: 122202209R00 | C13: Příplatek za lepivost - odkop. pro silnice v hor.3 | D13: m3 | E13: 8.34 | G13: =E13*F13 -> 0 | H13: 0 | I13: =E13*H13 -> 0 | J13: 0 | K13: =E13*J13 -> 0 | O13: 2 | AA13: 1 | AB13: 1 | AC13: 1 | AZ13: 1 | BA13: =IF(AZ13=1,G13,0) -> 0 | BB13: =IF(AZ13=2,G13,0) -> 0 | BC13: =IF(AZ13=3,G13,0) -> 0 | BD13: =IF(AZ13=4,G13,0) -> 0 | BE13: =IF(AZ13=5,G13,0) -> 0 | CA13: 1 | CB13: 1
C14: Pro osazení betonových obrubníků:64,00*0,30*0,20*2*0,5 | E14: 3.84 | M14: Pro osazení betonových obrubníků:64,00*0,30*0,20*2*0,5
C15: Pro vjezdy:(6,00+4,00)*3,00*0,30*0,5 | E15: 4.5 | M15: Pro vjezdy:(6,00+4,00)*3,00*0,30*0,5
A16: 4 | B16: 162701105RSZ | C16: Vodorovné přemístění výkopku z hor.1-7 na skládku zhotovitele | D16: m3 | E16: 16.68 | G16: =E16*F16 -> 0 | H16: 0 | I16: =E16*H16 -> 0 | J16: 0 | K16: =E16*J16 -> 0 | O16: 2 | AA16: 1 | AB16: 1 | AC16: 1 | AZ16: 1 | BA16: =IF(AZ16=1,G16,0) -> 0 | BB16: =IF(AZ16=2,G16,0) -> 0 | BC16: =IF(AZ16=3,G16,0) -> 0 | BD16: =IF(AZ16=4,G16,0) -> 0 | BE16: =IF(AZ16=5,G16,0) -> 0 | CA16: 1 | CB16: 1
C17: Pro osazení betonových obrubníků:64,00*0,30*0,20*2 | E17: 7.68 | M17: Pro osazení betonových obrubníků:64,00*0,30*0,20*2
C18: Pro vjezdy:(6,00+4,00)*3,00*0,30 | E18: 9 | M18: Pro vjezdy:(6,00+4,00)*3,00*0,30
A19: 5 | B19: 181101102R00 | C19: Úprava pláně v zářezech v hor. 1-4, se zhutněním | D19: m2 | E19: 68.4 | G19: =E19*F19 -> 0 | H19: 0 | I19: =E19*H19 -> 0 | J19: 0 | K19: =E19*J19 -> 0 | O19: 2 | AA19: 1 | AB19: 1 | AC19: 1 | AZ19: 1 | BA19: =IF(AZ19=1,G19,0) -> 0 | BB19: =IF(AZ19=2,G19,0) -> 0 | BC19: =IF(AZ19=3,G19,0) -> 0 | BD19: =IF(AZ19=4,G19,0) -> 0 | BE19: =IF(AZ19=5,G19,0) -> 0 | CA19: 1 | CB19: 1
C20: Pro osazení betonových obrubníků:64,00*0,30*2 | E20: 38.4 | M20: Pro osazení betonových obrubníků:64,00*0,30*2
C21: Pro vjezdy:(6,00+4,00)*3,00 | E21: 30 | M21: Pro vjezdy:(6,00+4,00)*3,00
A22: 6 | B22: 181300012RAC | C22: Rozprostření ornice v rovině tloušťka 20 cm dovoz ornice ze vzdálenosti 5 km, osetí trávou | D22: m2 | E22: 168.4 | G22: =E22*F22 -> 0 | H22: 3e-05 | I22: =E22*H22 -> 0.005052 | J22: 0 | K22: =E22*J22 -> 0 | O22: 2 | AA22: 1 | AB22: 1 | AC22: 1 | AZ22: 1 | BA22: =IF(AZ22=1,G22,0) -> 0 | BB22: =IF(AZ22=2,G22,0) -> 0 | BC22: =IF(AZ22=3,G22,0) -> 0 | BD22: =IF(AZ22=4,G22,0) -> 0 | BE22: =IF(AZ22=5,G22,0) -> 0 | CA22: 1 | CB22: 1
C23: Včetně naložení ornice na skládce investora a přesunu hmot. | L23: Včetně naložení ornice na skládce investora a přesunu hmot. | O23: 3
C24: Doplnění ornice za obrubou:64,00*3,00 | E24: 192 | M24: Doplnění ornice za obrubou:64,00*3,00
C25: 64,00*0,10 | E25: 6.4 | M25: 64,00*0,10
C26: Odpočet vjezdy:-(6,00+4,00)*3,00 | E26: -30 | M26: Odpočet vjezdy:-(6,00+4,00)*3,00
A27: 7 | B27: 199000002R00 | C27: Poplatek za skládku horniny 1- 7 | D27: m3 | E27: 16.68 | G27: =E27*F27 -> 0 | H27: 0 | I27: =E27*H27 -> 0 | J27: 0 | K27: =E27*J27 -> 0 | O27: 2 | AA27: 1 | AB27: 1 | AC27: 1 | AZ27: 1 | BA27: =IF(AZ27=1,G27,0) -> 0 | BB27: =IF(AZ27=2,G27,0) -> 0 | BC27: =IF(AZ27=3,G27,0) -> 0 | BD27: =IF(AZ27=4,G27,0) -> 0 | BE27: =IF(AZ27=5,G27,0) -> 0 | CA27: 1 | CB27: 1
C28: Pro osazení betonových obrubníků:64,00*0,30*0,20*2 | E28: 7.68 | M28: Pro osazení betonových obrubníků:64,00*0,30*0,20*2
C29: Pro vjezdy:(6,00+4,00)*3,00*0,30 | E29: 9 | M29: Pro vjezdy:(6,00+4,00)*3,00*0,30
A30: 8 | B30: 979082113RRX | C30: Vodorovná doprava suti po suchu na skládku zhotovitele | D30: t | E30: 2.816 | G30: =E30*F30 -> 0 | H30: 0 | I30: =E30*H30 -> 0 | J30: 0 | K30: =E30*J30 -> 0 | O30: 2 | AA30: 1 | AB30: 1 | AC30: 1 | AZ30: 1 | BA30: =IF(AZ30=1,G30,0) -> 0 | BB30: =IF(AZ30=2,G30,0) -> 0 | BC30: =IF(AZ30=3,G30,0) -> 0 | BD30: =IF(AZ30=4,G30,0) -> 0 | BE30: =IF(AZ30=5,G30,0) -> 0 | CA30: 1 | CB30: 1
A31: 9 | B31: 979990112ASF | C31: Poplatek za skládku suti - asfalt a beton z kom. | D31: t | E31: 2.816 | G31: =E31*F31 -> 0 | H31: 0 | I31: =E31*H31 -> 0 | J31: 0 | K31: =E31*J31 -> 0 | O31: 2 | AA31: 1 | AB31: 1 | AC31: 1 | AZ31: 1 | BA31: =IF(AZ31=1,G31,0) -> 0 | BB31: =IF(AZ31=2,G31,0) -> 0 | BC31: =IF(AZ31=3,G31,0) -> 0 | BD31: =IF(AZ31=4,G31,0) -> 0 | BE31: =IF(AZ31=5,G31,0) -> 0 | CA31: 1 | CB31: 1
C32: Položka je určena pro suť o velikosti kusu do 30x30 cm (technologický materiál určený k recyklaci). | L32: Položka je určena pro suť o velikosti kusu do 30x30 cm (technologický materiál určený k recyklaci). | O32: 3
B33: Celkem za | C33: 1 Zemní práce | G33: =SUM(G7:G32) -> 0 | I33: =SUM(I7:I32) -> 0.005052 | K33: =SUM(K7:K32) -> -2.816 | O33: 4 | BA33: =SUM(BA7:BA32) -> 0 | BB33: =SUM(BB7:BB32) -> 0 | BC33: =SUM(BC7:BC32) -> 0 | BD33: =SUM(BD7:BD32) -> 0 | BE33: =SUM(BE7:BE32) -> 0
A34: Díl: | B34: 5 | C34: Komunikace | O34: 1
A35: 10 | B35: 564791111R00 | C35: Podklad pro zpevněné plochy z kam.drceného 0-63 mm | D35: m3 | E35: 7.68 | G35: =E35*F35 -> 0 | H35: 2.204 | I35: =E35*H35 -> 16.92672 | J35: 0 | K35: =E35*J35 -> 0 | O35: 2 | AA35: 1 | AB35: 1 | AC35: 1 | AZ35: 1 | BA35: =IF(AZ35=1,G35,0) -> 0 | BB35: =IF(AZ35=2,G35,0) -> 0 | BC35: =IF(AZ35=3,G35,0) -> 0 | BD35: =IF(AZ35=4,G35,0) -> 0 | BE35: =IF(AZ35=5,G35,0) -> 0 | CA35: 1 | CB35: 1
C36: Včetně kameniva, rozprostření a zhutnění podkladu. | L36: Včetně kameniva, rozprostření a zhutnění podkladu. | O36: 3
C37: Pro osazení betonových obrubníků:64,00*0,30*2*0,20 | E37: 7.68 | M37: Pro osazení betonových obrubníků:64,00*0,30*2*0,20
A38: 11 | B38: 564871111RT4 | C38: Podklad ze štěrkodrti po zhutnění tloušťky 25 cm štěrkodrť frakce 0-63 mm | D38: m2 | E38: 30 | G38: =E38*F38 -> 0 | H38: 0.55125 | I38: =E38*H38 -> 16.5375 | J38: 0 | K38: =E38*J38 -> 0 | O38: 2 | AA38: 1 | AB38: 1 | AC38: 1 | AZ38: 1 | BA38: =IF(AZ38=1,G38,0) -> 0 | BB38: =IF(AZ38=2,G38,0) -> 0 | BC38: =IF(AZ38=3,G38,0) -> 0 | BD38: =IF(AZ38=4,G38,0) -> 0 | BE38: =IF(AZ38=5,G38,0) -> 0 | CA38: 1 | CB38: 1
C39: Pro vjezdy:(6,00+4,00)*3,00 | E39: 30 | M39: Pro vjezdy:(6,00+4,00)*3,00
A40: 12 | B40: 565151211R00 | C40: Podklad z obal kam.ACP 16+,nad 3 m,tl.7 cm | D40: m2 | E40: 30 | G40: =E40*F40 -> 0 | H40: 0.18463 | I40: =E40*H40 -> 5.5389 | J40: 0 | K40: =E40*J40 -> 0 | O40: 2 | AA40: 1 | AB40: 1 | AC40: 1 | AZ40: 1 | BA40: =IF(AZ40=1,G40,0) -> 0 | BB40: =IF(AZ40=2,G40,0) -> 0 | BC40: =IF(AZ40=3,G40,0) -> 0 | BD40: =IF(AZ40=4,G40,0) -> 0 | BE40: =IF(AZ40=5,G40,0) -> 0 | CA40: 1 | CB40: 1
C41: Pro vjezdy:(6,00+4,00)*3,00 | E41: 30 | M41: Pro vjezdy:(6,00+4,00)*3,00
A42: 13 | B42: 572713112R00 | C42: Vyrovnání povrchu krytů kamen. obaleným asfaltem | D42: t | E42: 3.2 | G42: =E42*F42 -> 0 | H42: 1 | I42: =E42*H42 -> 3.2 | J42: 0 | K42: =E42*J42 -> 0 | O42: 2 | AA42: 1 | AB42: 1 | AC42: 1 | AZ42: 1 | BA42: =IF(AZ42=1,G42,0) -> 0 | BB42: =IF(AZ42=2,G42,0) -> 0 | BC42: =IF(AZ42=3,G42,0) -> 0 | BD42: =IF(AZ42=4,G42,0) -> 0 | BE42: =IF(AZ42=5,G42,0) -> 0 | CA42: 1 | CB42: 1
C43: Doplnění stávající asfaltové plochy podél nových obrubníků:64,00*2*0,10*0,10*2,5 | E43: 3.2 | M43: Doplnění stávající asfaltové plochy podél nových obrubníků:64,00*2*0,10*0,10*2,5
A44: 14 | B44: 573231110R00 | C44: Postřik živičný spojovací z emulze 0,3-0,5 kg/m2 | D44: m2 | E44: 414 | G44: =E44*F44 -> 0 | H44: 0.0005 | I44: =E44*H44 -> 0.207 | J44: 0 | K44: =E44*J44 -> 0 | O44: 2 | AA44: 1 | AB44: 1 | AC44: 1 | AZ44: 1 | BA44: =IF(AZ44=1,G44,0) -> 0 | BB44: =IF(AZ44=2,G44,0) -> 0 | BC44: =IF(AZ44=3,G44,0) -> 0 | BD44: =IF(AZ44=4,G44,0) -> 0 | BE44: =IF(AZ44=5,G44,0) -> 0 | CA44: 1 | CB44: 1
C45: Komunikace:64,00*6,00 | E45: 384 | M45: Komunikace:64,00*6,00
C46: Vjezdy:(6,00+4,00)*3,00 | E46: 30 | M46: Vjezdy:(6,00+4,00)*3,00
A47: 15 | B47: 577132111RT2 | C47: Beton asfalt. ACO 11+ obrusný, š.nad 3 m, tl. 4 cm plochy 201-1000 m2 | D47: m2 | E47: 414 | G47: =E47*F47 -> 0 | H47: 0.10373 | I47: =E47*H47 -> 42.94422 | J47: 0 | K47: =E47*J47 -> 0 | O47: 2 | AA47: 1 | AB47: 1 | AC47: 1 | AZ47: 1 | BA47: =IF(AZ47=1,G47,0) -> 0 | BB47: =IF(AZ47=2,G47,0) -> 0 | BC47: =IF(AZ47=3,G47,0) -> 0 | BD47: =IF(AZ47=4,G47,0) -> 0 | BE47: =IF(AZ47=5,G47,0) -> 0 | CA47: 1 | CB47: 1
C48: Komunikace:64,00*6,00 | E48: 384 | M48: Komunikace:64,00*6,00
C49: Vjezdy:(6,00+4,00)*3,00 | E49: 30 | M49: Vjezdy:(6,00+4,00)*3,00
B50: Celkem za | C50: 5 Komunikace | G50: =SUM(G34:G49) -> 0 | I50: =SUM(I34:I49) -> 85.35434 | K50: =SUM(K34:K49) -> 0 | O50: 4 | BA50: =SUM(BA34:BA49) -> 0 | BB50: =SUM(BB34:BB49) -> 0 | BC50: =SUM(BC34:BC49) -> 0 | BD50: =SUM(BD34:BD49) -> 0 | BE50: =SUM(BE34:BE49) -> 0
A51: Díl: | B51: 8 | C51: Trubní vedení | O51: 1
A52: 16 | B52: 899231111R00 | C52: Výšková úprava vstupu do 20 cm, zvýšení mříže | D52: kus | E52: 1 | G52: =E52*F52 -> 0 | H52: 0.43382 | I52: =E52*H52 -> 0.43382 | J52: 0 | K52: =E52*J52 -> 0 | O52: 2 | AA52: 1 | AB52: 1 | AC52: 1 | AZ52: 1 | BA52: =IF(AZ52=1,G52,0) -> 0 | BB52: =IF(AZ52=2,G52,0) -> 0 | BC52: =IF(AZ52=3,G52,0) -> 0 | BD52: =IF(AZ52=4,G52,0) -> 0 | BE52: =IF(AZ52=5,G52,0) -> 0 | CA52: 1 | CB52: 1
A53: 17 | B53: 899431111R00 | C53: Výšková úprava do 20 cm, zvýšení krytu šoupěte | D53: kus | E53: 1 | G53: =E53*F53 -> 0 | H53: 0.3159 | I53: =E53*H53 -> 0.3159 | J53: 0 | K53: =E53*J53 -> 0 | O53: 2 | AA53: 1 | AB53: 1 | AC53: 1 | AZ53: 1 | BA53: =IF(AZ53=1,G53,0) -> 0 | BB53: =IF(AZ53=2,G53,0) -> 0 | BC53: =IF(AZ53=3,G53,0) -> 0 | BD53: =IF(AZ53=4,G53,0) -> 0 | BE53: =IF(AZ53=5,G53,0) -> 0 | CA53: 1 | CB53: 1
A54: 18 | B54: 939431111RT2 | C54: Výměna kanaliz.poklopu za samonivelační, hl.200 mm včetně dodávky litinového poklopu D400 SN600 | D54: kus | E54: 2 | G54: =E54*F54 -> 0 | H54: 0.56041 | I54: =E54*H54 -> 1.12082 | J54: -0.32076 | K54: =E54*J54 -> -0.64152 | O54: 2 | AA54: 1 | AB54: 0 | AC54: 0 | AZ54: 1 | BA54: =IF(AZ54=1,G54,0) -> 0 | BB54: =IF(AZ54=2,G54,0) -> 0 | BC54: =IF(AZ54=3,G54,0) -> 0 | BD54: =IF(AZ54=4,G54,0) -> 0 | BE54: =IF(AZ54=5,G54,0) -> 0 | CA54: 1 | CB54: 0
C55: Samonivelační bezpantový těžký poklop KASI KDM65 případně část KDM63 dle upřesnění provozovatele. | L55: Samonivelační bezpantový těžký poklop KASI KDM65 případně část KDM63 dle upřesnění provozovatele. | O55: 3
C56: Poklop se znakem "Město Turnov" | L56: Poklop se znakem "Město Turnov" | O56: 3
B57: Celkem za | C57: 8 Trubní vedení | G57: =SUM(G51:G56) -> 0 | I57: =SUM(I51:I56) -> 1.87054 | K57: =SUM(K51:K56) -> -0.64152 | O57: 4 | BA57: =SUM(BA51:BA56) -> 0 | BB57: =SUM(BB51:BB56) -> 0 | BC57: =SUM(BC51:BC56) -> 0 | BD57: =SUM(BD51:BD56) -> 0 | BE57: =SUM(BE51:BE56) -> 0
A58: Díl: | B58: 91 | C58: Doplňující práce na komunikaci | O58: 1
A59: 19 | B59: 917862111RT7 | C59: Osazení stojat. obrub.bet. s opěrou,lože z C 12/15 včetně obrubníku ABO 2 - 15 100/15/25 | D59: m | E59: 128 | G59: =E59*F59 -> 0 | H59: 0.26981 | I59: =E59*H59 -> 34.53568 | J59: 0 | K59: =E59*J59 -> 0 | O59: 2 | AA59: 1 | AB59: 1 | AC59: 1 | AZ59: 1 | BA59: =IF(AZ59=1,G59,0) -> 0 | BB59: =IF(AZ59=2,G59,0) -> 0 | BC59: =IF(AZ59=3,G59,0) -> 0 | BD59: =IF(AZ59=4,G59,0) -> 0 | BE59: =IF(AZ59=5,G59,0) -> 0 | CA59: 1 | CB59: 1
C60: Osazení obrubníků:64,00*2 | E60: 128 | M60: Osazení obrubníků:64,00*2
A61: 20 | B61: 918101111R00 | C61: Lože pod obrubníky nebo obruby dlažeb z C 12/15 | D61: m3 | E61: 3.2 | G61: =E61*F61 -> 0 | H61: 2.525 | I61: =E61*H61 -> 8.08 | J61: 0 | K61: =E61*J61 -> 0 | O61: 2 | AA61: 1 | AB61: 1 | AC61: 1 | AZ61: 1 | BA61: =IF(AZ61=1,G61,0) -> 0 | BB61: =IF(AZ61=2,G61,0) -> 0 | BC61: =IF(AZ61=3,G61,0) -> 0 | BD61: =IF(AZ61=4,G61,0) -> 0 | BE61: =IF(AZ61=5,G61,0) -> 0 | CA61: 1 | CB61: 1
C62: Osazení obrubníků:64,00*2*0,25*0,10 | E62: 3.2 | M62: Osazení obrubníků:64,00*2*0,25*0,10
A63: 21 | B63: 919731122R00 | C63: Zarovnání styčné plochy živičné tl. do 10 cm | D63: m | E63: 128 | G63: =E63*F63 -> 0 | H63: 0 | I63: =E63*H63 -> 0 | J63: 0 | K63: =E63*J63 -> 0 | O63: 2 | AA63: 1 | AB63: 1 | AC63: 1 | AZ63: 1 | BA63: =IF(AZ63=1,G63,0) -> 0 | BB63: =IF(AZ63=2,G63,0) -> 0 | BC63: =IF(AZ63=3,G63,0) -> 0 | BD63: =IF(AZ63=4,G63,0) -> 0 | BE63: =IF(AZ63=5,G63,0) -> 0 | CA63: 1 | CB63: 1
C64: Pro osazení betonových obrubníků:64,00*2 | E64: 128 | M64: Pro osazení betonových obrubníků:64,00*2
A65: 22 | B65: 919735112R00 | C65: Řezání stávajícího živičného krytu tl. 5 - 10 cm | D65: m | E65: 128 | G65: =E65*F65 -> 0 | H65: 0 | I65: =E65*H65 -> 0 | J65: 0 | K65: =E65*J65 -> 0 | O65: 2 | AA65: 1 | AB65: 1 | AC65: 1 | AZ65: 1 | BA65: =IF(AZ65=1,G65,0) -> 0 | BB65: =IF(AZ65=2,G65,0) -> 0 | BC65: =IF(AZ65=3,G65,0) -> 0 | BD65: =IF(AZ65=4,G65,0) -> 0 | BE65: =IF(AZ65=5,G65,0) -> 0 | CA65: 1 | CB65: 1
C66: Pro osazení betonových obrubníků:64,00*2 | E66: 128 | M66: Pro osazení betonových obrubníků:64,00*2
B67: Celkem za | C67: 91 Doplňující práce na komunikaci | G67: =SUM(G58:G66) -> 0 | I67: =SUM(I58:I66) -> 42.61568 | K67: =SUM(K58:K66) -> 0 | O67: 4 | BA67: =SUM(BA58:BA66) -> 0 | BB67: =SUM(BB58:BB66) -> 0 | BC67: =SUM(BC58:BC66) -> 0 | BD67: =SUM(BD58:BD66) -> 0 | BE67: =SUM(BE58:BE66) -> 0
A68: Díl: | B68: 93 | C68: Dokončovací práce inženýrských staveb | O68: 1
A69: 23 | B69: 938908411R00 | C69: Očištění povrchu krytu saponátovým roztokem | D69: m2 | E69: 384 | G69: =E69*F69 -> 0 | H69: 1e-05 | I69: =E69*H69 -> 0.00384 | J69: 0 | K69: =E69*J69 -> 0 | O69: 2 | AA69: 1 | AB69: 1 | AC69: 1 | AZ69: 1 | BA69: =IF(AZ69=1,G69,0) -> 0 | BB69: =IF(AZ69=2,G69,0) -> 0 | BC69: =IF(AZ69=3,G69,0) -> 0 | BD69: =IF(AZ69=4,G69,0) -> 0 | BE69: =IF(AZ69=5,G69,0) -> 0 | CA69: 1 | CB69: 1
C70: Komunikace:64,00*6,00 | E70: 384 | M70: Komunikace:64,00*6,00
A71: 24 | B71: 938909311R00 | C71: Odstranění nánosu z povrchu živičného nebo beton. | D71: m2 | E71: 384 | G71: =E71*F71 -> 0 | H71: 0 | I71: =E71*H71 -> 0 | J71: 0 | K71: =E71*J71 -> 0 | O71: 2 | AA71: 1 | AB71: 1 | AC71: 1 | AZ71: 1 | BA71: =IF(AZ71=1,G71,0) -> 0 | BB71: =IF(AZ71=2,G71,0) -> 0 | BC71: =IF(AZ71=3,G71,0) -> 0 | BD71: =IF(AZ71=4,G71,0) -> 0 | BE71: =IF(AZ71=5,G71,0) -> 0 | CA71: 1 | CB71: 1
C72: Komunikace:64,00*6,00 | E72: 384 | M72: Komunikace:64,00*6,00
B73: Celkem za | C73: 93 Dokončovací práce inženýrských staveb | G73: =SUM(G68:G72) -> 0 | I73: =SUM(I68:I72) -> 0.00384 | K73: =SUM(K68:K72) -> 0 | O73: 4 | BA73: =SUM(BA68:BA72) -> 0 | BB73: =SUM(BB68:BB72) -> 0 | BC73: =SUM(BC68:BC72) -> 0 | BD73: =SUM(BD68:BD72) -> 0 | BE73: =SUM(BE68:BE72) -> 0
A74: Díl: | B74: 99 | C74: Staveništní přesun hmot | O74: 1
A75: 25 | B75: 998225111R00 | C75: Přesun hmot, pozemní komunikace, kryt živičný | D75: t | E75: 129.849452 | G75: =E75*F75 -> 0 | H75: 0 | I75: =E75*H75 -> 0 | K75: =E75*J75 -> 0 | O75: 2 | AA75: 7 | AB75: 1 | AC75: 2 | AZ75: 1 | BA75: =IF(AZ75=1,G75,0) -> 0 | BB75: =IF(AZ75=2,G75,0) -> 0 | BC75: =IF(AZ75=3,G75,0) -> 0 | BD75: =IF(AZ75=4,G75,0) -> 0 | BE75: =IF(AZ75=5,G75,0) -> 0 | CA75: 7 | CB75: 1
B76: Celkem za | C76: 99 Staveništní přesun hmot | G76: =SUM(G74:G75) -> 0 | I76: =SUM(I74:I75) -> 0 | K76: =SUM(K74:K75) -> 0 | O76: 4 | BA76: =SUM(BA74:BA75) -> 0 | BB76: =SUM(BB74:BB75) -> 0 | BC76: =SUM(BC74:BC75) -> 0 | BD76: =SUM(BD74:BD75) -> 0 | BE76: =SUM(BE74:BE75) -> 0

Sheet 101.08 101.08.2 KL
A1: POLOŽKOVÝ ROZPOČET
A2: Rozpočet | C2: 101.08.2 | D2: Komunikace - Křižovatka č. 1 | F2: JKSO | G2: 822.29
A4: Objekt | F4: SKP
A5: 101.08 | C5: Komunikace - ul. Vladimíra Krajiny | F5: Měrná jednotka | G5: m2
A6: Stavba | F6: Počet jednotek | G6: 0
A7: 3268 | C7: Komunikace a IS v rozvojové lokalitě Hruštice - Ká | F7: Náklady na m.j. | G7: =IF(G6=0,,ROUND((F30+F32)/G6,1)) -> 0
A8: Projektant | C8: PROFES PROJEKT spol.s r.o. | F8: Typ rozpočtu
A9: Zpracovatel projektu
A10: Objednatel | C10: Město TURNOV
A11: Dodavatel | C11: . | F11: Zakázkové číslo
A12: Rozpočtoval | F12: Počet listů
A13: ROZPOČTOVÉ NÁKLADY
A14: Základní rozpočtové náklady
B15: HSV celkem | C15: ='101.08 101.08.2 Rek'!E13 -> 0
A16: Z | B16: PSV celkem | C16: ='101.08 101.08.2 Rek'!F13 -> 0
A17: R | B17: M práce celkem | C17: ='101.08 101.08.2 Rek'!H13 -> 0
A18: N | B18: M dodávky celkem | C18: ='101.08 101.08.2 Rek'!G13 -> 0
A19: ZRN celkem | C19: =SUM(C15:C18) -> 0
A21: HZS | C21: ='101.08 101.08.2 Rek'!I13 -> 0
A22: ZRN+HZS | C22: =C19+C21 -> 0
A23: ZRN+ost.náklady+HZS | C23: =C22+G23 -> 0
A24: Vypracoval | D24: Za zhotovitele | F24: Za objednatele
A25: Jméno : | D25: Jméno : | F25: Jméno :
A26: Datum : | D26: Datum : | F26: Datum :
A28: Podpis : | D28: Podpis: | F28: Podpis:
A30: Základ pro DPH | C30: 21 | D30: % | F30: =C23-F32 -> 0
A31: DPH | C31: =C30 -> 21 | D31: % | F31: =ROUND(PRODUCT(F30,C31/100),0) -> 0
A32: Základ pro DPH | C32: 0 | D32: % | F32: 0
A33: DPH | C33: =C32 -> 0 | D33: % | F33: =ROUND(PRODUCT(F32,C33/100),0) -> 0
A34: CENA ZA OBJEKT CELKEM | F34: =ROUND(SUM(F30:F33),0) -> 0
A36: Poznámka :

Sheet 101.08 101.08.2 Rek
A1: Stavba : | C1: 3268 Komunikace a IS v rozvojové lokalitě Hruštice - Ká | G1: Rozpočet : | H1: 101.08.2
A2: Objekt : | C2: 101.08 Komunikace - ul. Vladimíra Krajiny | G2: Komunikace - Křižovatka č. 1
A4: REKAPITULACE STAVEBNÍCH DÍLŮ
B6: Stavební díl | E6: HSV | F6: PSV | G6: Dodávka | H6: Montáž | I6: HZS
A7: ='101.08 101.08.2 Pol'!B7 -> 1 | B7: ='101.08 101.08.2 Pol'!C7 -> Zemní práce | E7: ='101.08 101.08.2 Pol'!BA27 -> 0 | F7: ='101.08 101.08.2 Pol'!BB27 -> 0 | G7: ='101.08 101.08.2 Pol'!BC27 -> 0 | H7: ='101.08 101.08.2 Pol'!BD27 -> 0 | I7: ='101.08 101.08.2 Pol'!BE27 -> 0
A8: ='101.08 101.08.2 Pol'!B28 -> 5 | B8: ='101.08 101.08.2 Pol'!C28 -> Komunikace | E8: ='101.08 101.08.2 Pol'!BA45 -> 0 | F8: ='101.08 101.08.2 Pol'!BB45 -> 0 | G8: ='101.08 101.08.2 Pol'!BC45 -> 0 | H8: ='101.08 101.08.2 Pol'!BD45 -> 0 | I8: ='101.08 101.08.2 Pol'!BE45 -> 0
A9: ='101.08 101.08.2 Pol'!B46 -> 8 | B9: ='101.08 101.08.2 Pol'!C46 -> Trubní vedení | E9: ='101.08 101.08.2 Pol'!BA51 -> 0 | F9: ='101.08 101.08.2 Pol'!BB51 -> 0 | G9: ='101.08 101.08.2 Pol'!BC51 -> 0 | H9: ='101.08 101.08.2 Pol'!BD51 -> 0 | I9: ='101.08 101.08.2 Pol'!BE51 -> 0
A10: ='101.08 101.08.2 Pol'!B52 -> 91 | B10: ='101.08 101.08.2 Pol'!C52 -> Doplňující práce na komunikaci | E10: ='101.08 101.08.2 Pol'!BA63 -> 0 | F10: ='101.08 101.08.2 Pol'!BB63 -> 0 | G10: ='101.08 101.08.2 Pol'!BC63 -> 0 | H10: ='101.08 101.08.2 Pol'!BD63 -> 0 | I10: ='101.08 101.08.2 Pol'!BE63 -> 0
A11: ='101.08 101.08.2 Pol'!B64 -> 93 | B11: ='101.08 101.08.2 Pol'!C64 -> Dokončovací práce inženýrských staveb | E11: ='101.08 101.08.2 Pol'!BA69 -> 0 | F11: ='101.08 101.08.2 Pol'!BB69 -> 0 | G11: ='101.08 101.08.2 Pol'!BC69 -> 0 | H11: ='101.08 101.08.2 Pol'!BD69 -> 0 | I11: ='101.08 101.08.2 Pol'!BE69 -> 0
A12: ='101.08 101.08.2 Pol'!B70 -> 99 | B12: ='101.08 101.08.2 Pol'!C70 -> Staveništní přesun hmot | E12: ='101.08 101.08.2 Pol'!BA72 -> 0 | F12: ='101.08 101.08.2 Pol'!BB72 -> 0 | G12: ='101.08 101.08.2 Pol'!BC72 -> 0 | H12: ='101.08 101.08.2 Pol'!BD72 -> 0 | I12: ='101.08 101.08.2 Pol'!BE72 -> 0
B13: CELKEM OBJEKT | E13: =SUM(E7:E12) -> 0 | F13: =SUM(F7:F12) -> 0 | G13: =SUM(G7:G12) -> 0 | H13: =SUM(H7:H12) -> 0 | I13: =SUM(I7:I12) -> 0

Sheet 101.08 101.08.2 Pol
A1: Položkový rozpočet
A3: Stavba : | C3: 3268 Komunikace a IS v rozvojové lokalitě Hruštice - Ká | E3: Rozpočet: | F3: ='101.08 101.08.2 Rek'!H1 -> 101.08.2
A4: Objekt : | C4: 101.08 Komunikace - ul. Vladimíra Krajiny | E4: ='101.08 101.08.2 Rek'!G2 -> Komunikace - Křižovatka č. 1
A6: P.č. | B6: Číslo položky | C6: Název položky | D6: MJ | E6: množství | F6: cena / MJ | G6: celkem (Kč) | H6: Jednotková hmotnost | I6: Celková hmotnost | J6: Jednotková dem.hmot. | K6: Celková dem.hmot.
A7: Díl: | B7: 1 | C7: Zemní práce | O7: 1
A8: 1 | B8: 113108310R00 | C8: Odstranění asfaltové vrstvy pl. do 50 m2, tl.10 cm | D8: m2 | E8: 37.965 | G8: =E8*F8 -> 0 | H8: 0 | I8: =E8*H8 -> 0 | J8: -0.22 | K8: =E8*J8 -> -8.3523 | O8: 2 | AA8: 1 | AB8: 1 | AC8: 1 | AZ8: 1 | BA8: =IF(AZ8=1,G8,0) -> 0 | BB8: =IF(AZ8=2,G8,0) -> 0 | BC8: =IF(AZ8=3,G8,0) -> 0 | BD8: =IF(AZ8=4,G8,0) -> 0 | BE8: =IF(AZ8=5,G8,0) -> 0 | CA8: 1 | CB8: 1
C9: Pro osazení betonových obrubníků:(9,45*3+6,30*1)*0,10 | E9: 3.465 | M9: Pro osazení betonových obrubníků:(9,45*3+6,30*1)*0,10
C10: Křižovatka - Náběhy:6,00*1,50*2+5,50*1,50*2 | E10: 34.5 | M10: Křižovatka - Náběhy:6,00*1,50*2+5,50*1,50*2
A11: 2 | B11: 122202201R00 | C11: Odkopávky pro silnice v hor. 3 do 100 m3 | D11: m3 | E11: 2.079 | G11: =E11*F11 -> 0 | H11: 0 | I11: =E11*H11 -> 0 | J11: 0 | K11: =E11*J11 -> 0 | O11: 2 | AA11: 1 | AB11: 1 | AC11: 1 | AZ11: 1 | BA11: =IF(AZ11=1,G11,0) -> 0 | BB11: =IF(AZ11=2,G11,0) -> 0 | BC11: =IF(AZ11=3,G11,0) -> 0 | BD11: =IF(AZ11=4,G11,0) -> 0 | BE11: =IF(AZ11=5,G11,0) -> 0 | CA11: 1 | CB11: 1
C12: Pro osazení betonových obrubníků:(9,45*3+6,30)*0,30*0,20 | E12: 2.079 | M12: Pro osazení betonových obrubníků:(9,45*3+6,30)*0,30*0,20
A13: 3 | B13: 122202209R00 | C13: Příplatek za lepivost - odkop. pro silnice v hor.3 | D13: m3 | E13: 1.0395 | G13: =E13*F13 -> 0 | H13: 0 | I13: =E13*H13 -> 0 | J13: 0 | K13: =E13*J13 -> 0 | O13: 2 | AA13: 1 | AB13: 1 | AC13: 1 | AZ13: 1 | BA13: =IF(AZ13=1,G13,0) -> 0 | BB13: =IF(AZ13=2,G13,0) -> 0 | BC13: =IF(AZ13=3,G13,0) -> 0 | BD13: =IF(AZ13=4,G13,0) -> 0 | BE13: =IF(AZ13=5,G13,0) -> 0 | CA13: 1 | CB13: 1
C14: Pro osazení betonových obrubníků:(9,45*3+6,30)*0,30*0,20*0,5 | E14: 1.0395 | M14: Pro osazení betonových obrubníků:(9,45*3+6,30)*0,30*0,20*0,5
A15: 4 | B15: 162701105RSZ | C15: Vodorovné přemístění výkopku z hor.1-7 na skládku zhotovitele | D15: m3 | E15: 2.079 | G15: =E15*F15 -> 0 | H15: 0 | I15: =E15*H15 -> 0 | J15: 0 | K15: =E15*J15 -> 0 | O15: 2 | AA15: 1 | AB15: 1 | AC15: 1 | AZ15: 1 | BA15: =IF(AZ15=1,G15,0) -> 0 | BB15: =IF(AZ15=2,G15,0) -> 0 | BC15: =IF(AZ15=3,G15,0) -> 0 | BD15: =IF(AZ15=4,G15,0) -> 0 | BE15: =IF(AZ15=5,G15,0) -> 0 | CA15: 1 | CB15: 1
C16: Pro osazení betonových obrubníků:(9,45*3+6,30)*0,30*0,20 | E16: 2.079 | M16: Pro osazení betonových obrubníků:(9,45*3+6,30)*0,30*0,20
A17: 5 | B17: 181101102R00 | C17: Úprava pláně v zářezech v hor. 1-4, se zhutněním | D17: m2 | E17: 10.395 | G17: =E17*F17 -> 0 | H17: 0 | I17: =E17*H17 -> 0 | J17: 0 | K17: =E17*J17 -> 0 | O17: 2 | AA17: 1 | AB17: 1 | AC17: 1 | AZ17: 1 | BA17: =IF(AZ17=1,G17,0) -> 0 | BB17: =IF(AZ17=2,G17,0) -> 0 | BC17: =IF(AZ17=3,G17,0) -> 0 | BD17: =IF(AZ17=4,G17,0) -> 0 | BE17: =IF(AZ17=5,G17,0) -> 0 | CA17: 1 | CB17: 1
C18: Pro osazení betonových obrubníků:(9,45*3+6,30)*0,30 | E18: 10.395 | M18: Pro osazení betonových obrubníků:(9,45*3+6,30)*0,30
A19: 6 | B19: 181300012RAC | C19: Rozprostření ornice v rovině tloušťka 20 cm dovoz ornice ze vzdálenosti 5 km, osetí trávou | D19: m2 | E19: 38.1 | G19: =E19*F19 -> 0 | H19: 3e-05 | I19: =E19*H19 -> 0.001143 | J19: 0 | K19: =E19*J19 -> 0 | O19: 2 | AA19: 1 | AB19: 1 | AC19: 1 | AZ19: 1 | BA19: =IF(AZ19=1,G19,0) -> 0 | BB19: =IF(AZ19=2,G19,0) -> 0 | BC19: =IF(AZ19=3,G19,0) -> 0 | BD19: =IF(AZ19=4,G19,0) -> 0 | BE19: =IF(AZ19=5,G19,0) -> 0 | CA19: 1 | CB19: 1
C20: Včetně naložení ornice na skládce investora a přesunu hmot. | L20: Včetně naložení ornice na skládce investora a přesunu hmot. | O20: 3
C21: Doplnění ornice za obrubou:6,00*3,00*2+7,00*3,00+4,50*2,50-7,75*3-3,45*2 | E21: 38.1 | M21: Doplnění ornice za obrubou:6,00*3,00*2+7,00*3,00+4,50*2,50-7,75*3-3,45*2
A22: 7 | B22: 199000002R00 | C22: Poplatek za skládku horniny 1- 7 | D22: m3 | E22: 2.079 | G22: =E22*F22 -> 0 | H22: 0 | I22: =E22*H22 -> 0 | J22: 0 | K22: =E22*J22 -> 0 | O22: 2 | AA22: 1 | AB22: 1 | AC22: 1 | AZ22: 1 | BA22: =IF(AZ22=1,G22,0) -> 0 | BB22: =IF(AZ22=2,G22,0) -> 0 | BC22: =IF(AZ22=3,G22,0) -> 0 | BD22: =IF(AZ22=4,G22,0) -> 0 | BE22: =IF(AZ22=5,G22,0) -> 0 | CA22: 1 | CB22: 1
C23: Pro osazení betonových obrubníků:(9,45*3+6,30)*0,30*0,20 | E23: 2.079 | M23: Pro osazení betonových obrubníků:(9,45*3+6,30)*0,30*0,20
A24: 8 | B24: 979082113RRX | C24: Vodorovná doprava suti po suchu na skládku zhotovitele | D24: t | E24: 8.3532 | G24: =E24*F24 -> 0 | H24: 0 | I24: =E24*H24 -> 0 | J24: 0 | K24: =E24*J24 -> 0 | O24: 2 | AA24: 1 | AB24: 1 | AC24: 1 | AZ24: 1 | BA24: =IF(AZ24=1,G24,0) -> 0 | BB24: =IF(AZ24=2,G24,0) -> 0 | BC24: =IF(AZ24=3,G24,0) -> 0 | BD24: =IF(AZ24=4,G24,0) -> 0 | BE24: =IF(AZ24=5,G24,0) -> 0 | CA24: 1 | CB24: 1
A25: 9 | B25: 979990112ASF | C25: Poplatek za skládku suti - asfalt a beton z kom. | D25: t | E25: 8.3523 | G25: =E25*F25 -> 0 | H25: 0 | I25: =E25*H25 -> 0 | J25: 0 | K25: =E25*J25 -> 0 | O25: 2 | AA25: 1 | AB25: 1 | AC25: 1 | AZ25: 1 | BA25: =IF(AZ25=1,G25,0) -> 0 | BB25: =IF(AZ25=2,G25,0) -> 0 | BC25: =IF(AZ25=3,G25,0) -> 0 | BD25: =IF(AZ25=4,G25,0) -> 0 | BE25: =IF(AZ25=5,G25,0) -> 0 | CA25: 1 | CB25: 1
C26: Položka je určena pro suť o velikosti kusu do 30x30 cm (technologický materiál určený k recyklaci). | L26: Položka je určena pro suť o velikosti kusu do 30x30 cm (technologický materiál určený k recyklaci). | O26: 3
B27: Celkem za | C27: 1 Zemní práce | G27: =SUM(G7:G26) -> 0 | I27: =SUM(I7:I26) -> 0.001143 | K27: =SUM(K7:K26) -> -8.3523 | O27: 4 | BA27: =SUM(BA7:BA26) -> 0 | BB27: =SUM(BB7:BB26) -> 0 | BC27: =SUM(BC7:BC26) -> 0 | BD27: =SUM(BD7:BD26) -> 0 | BE27: =SUM(BE7:BE26) -> 0
A28: Díl: | B28: 5 | C28: Komunikace | O28: 1
A29: 10 | B29: 564791111R00 | C29: Podklad pro zpevněné plochy z kam.drceného 0-63 mm | D29: m3 | E29: 2.079 | G29: =E29*F29 -> 0 | H29: 2.204 | I29: =E29*H29 -> 4.582116 | J29: 0 | K29: =E29*J29 -> 0 | O29: 2 | AA29: 1 | AB29: 1 | AC29: 1 | AZ29: 1 | BA29: =IF(AZ29=1,G29,0) -> 0 | BB29: =IF(AZ29=2,G29,0) -> 0 | BC29: =IF(AZ29=3,G29,0) -> 0 | BD29: =IF(AZ29=4,G29,0) -> 0 | BE29: =IF(AZ29=5,G29,0) -> 0 | CA29: 1 | CB29: 1
C30: Včetně kameniva, rozprostření a zhutnění podkladu. | L30: Včetně kameniva, rozprostření a zhutnění podkladu. | O30: 3
C31: Pro osazení betonových obrubníků:(9,45*3+6,30*1)*0,30*0,2 | E31: 2.079 | M31: Pro osazení betonových obrubníků:(9,45*3+6,30*1)*0,30*0,2
A32: 11 | B32: 565141211RT3 | C32: Podklad z obal kam.ACP 16+,nad 3 m,tl.6 cm plochy 101-200 m2 | D32: m2 | E32: 180.45 | G32: =E32*F32 -> 0 | H32: 0.15826 | I32: =E32*H32 -> 28.558017 | J32: 0 | K32: =E32*J32 -> 0 | O32: 2 | AA32: 1 | AB32: 1 | AC32: 1 | AZ32: 1 | BA32: =IF(AZ32=1,G32,0) -> 0 | BB32: =IF(AZ32=2,G32,0) -> 0 | BC32: =IF(AZ32=3,G32,0) -> 0 | BD32: =IF(AZ32=4,G32,0) -> 0 | BE32: =IF(AZ32=5,G32,0) -> 0 | CA32: 1 | CB32: 1
C33: Křižovatka:16,00*6,00+6,00*5,50+4,50*5,50+7,75*3+3,45*1 | E33: 180.45 | M33: Křižovatka:16,00*6,00+6,00*5,50+4,50*5,50+7,75*3+3,45*1
A34: 12 | B34: 572713112R00 | C34: Vyrovnání povrchu krytů kamen. obaleným asfaltem | D34: t | E34: 0.8662 | G34: =E34*F34 -> 0 | H34: 1 | I34: =E34*H34 -> 0.8662 | J34: 0 | K34: =E34*J34 -> 0 | O34: 2 | AA34: 1 | AB34: 1 | AC34: 1 | AZ34: 1 | BA34: =IF(AZ34=1,G34,0) -> 0 | BB34: =IF(AZ34=2,G34,0) -> 0 | BC34: =IF(AZ34=3,G34,0) -> 0 | BD34: =IF(AZ34=4,G34,0) -> 0 | BE34: =IF(AZ34=5,G34,0) -> 0 | CA34: 1 | CB34: 1
C35: Doplnění stávající asfaltové plochy podél nových obrubníků:(9,45*3+6,30*1)*0,10*0,10*2,5 | E35: 0.8662 | M35: Doplnění stávající asfaltové plochy podél nových obrubníků:(9,45*3+6,30*1)*0,10*0,10*2,5
A36: 13 | B36: 573231110R00 | C36: Postřik živičný spojovací z emulze 0,3-0,5 kg/m2 | D36: m2 | E36: 180.45 | G36: =E36*F36 -> 0 | H36: 0.0005 | I36: =E36*H36 -> 0.090225 | J36: 0 | K36: =E36*J36 -> 0 | O36: 2 | AA36: 1 | AB36: 1 | AC36: 1 | AZ36: 1 | BA36: =IF(AZ36=1,G36,0) -> 0 | BB36: =IF(AZ36=2,G36,0) -> 0 | BC36: =IF(AZ36=3,G36,0) -> 0 | BD36: =IF(AZ36=4,G36,0) -> 0 | BE36: =IF(AZ36=5,G36,0) -> 0 | CA36: 1 | CB36: 1
C37: Křižovatka:16,00*6,00+6,00*5,50+4,50*5,50+7,75*3+3,45*1 | E37: 180.45 | M37: Křižovatka:16,00*6,00+6,00*5,50+4,50*5,50+7,75*3+3,45*1
A38: 14 | B38: 577132111RT3 | C38: Beton asfalt. ACO 11+ obrusný, š.nad 3 m, tl. 4 cm plochy 101-200 m2 | D38: m2 | E38: 180.45 | G38: =E38*F38 -> 0 | H38: 0.10373 | I38: =E38*H38 -> 18.7180785 | J38: 0 | K38: =E38*J38 -> 0 | O38: 2 | AA38: 1 | AB38: 1 | AC38: 1 | AZ38: 1 | BA38: =IF(AZ38=1,G38,0) -> 0 | BB38: =IF(AZ38=2,G38,0) -> 0 | BC38: =IF(AZ38=3,G38,0) -> 0 | BD38: =IF(AZ38=4,G38,0) -> 0 | BE38: =IF(AZ38=5,G38,0) -> 0 | CA38: 1 | CB38: 1
C39: Křižovatka:16,00*6,00+6,00*5,50+4,50*5,50+7,75*3+3,45*1 | E39: 180.45 | M39: Křižovatka:16,00*6,00+6,00*5,50+4,50*5,50+7,75*3+3,45*1
A40: 15 | B40: 591241111R00 | C40: Kladení dlažby drobné kostky, lože z MC tl. 5 cm | D40: m2 | E40: 34.5 | G40: =E40*F40 -> 0 | H40: 0.31388 | I40: =E40*H40 -> 10.82886 | J40: 0 | K40: =E40*J40 -> 0 | O40: 2 | AA40: 1 | AB40: 1 | AC40: 1 | AZ40: 1 | BA40: =IF(AZ40=1,G40,0) -> 0 | BB40: =IF(AZ40=2,G40,0) -> 0 | BC40: =IF(AZ40=3,G40,0) -> 0 | BD40: =IF(AZ40=4,G40,0) -> 0 | BE40: =IF(AZ40=5,G40,0) -> 0 | CA40: 1 | CB40: 1
C41: V položce jsou zakalkulovány i náklady na dodání hmot pro lože a na dodání téhož materiálu na výplň spár. V položce nejsou zakalkulovány náklady na dodání dlažebních kostek (dležba investora). | L41: V položce jsou zakalkulovány i náklady na dodání hmot pro lože a na dodání téhož materiálu na výplň spár. V položce nejsou zakalkulovány náklady na dodání dlažebních kostek (dležba investora). | O41: 3
C42: Křižovatka - náběhy:6,00*1,50*2+5,50*1,50*2 | E42: 34.5 | M42: Křižovatka - náběhy:6,00*1,50*2+5,50*1,50*2
A43: 16 | B43: 979084216R00 | C43: Vodorovná doprava vybour. hmot po suchu do 5 km | D43: t | E43: 8.625 | G43: =E43*F43 -> 0 | H43: 0 | I43: =E43*H43 -> 0 | J43: 0 | K43: =E43*J43 -> 0 | O43: 2 | AA43: 1 | AB43: 1 | AC43: 1 | AZ43: 1 | BA43: =IF(AZ43=1,G43,0) -> 0 | BB43: =IF(AZ43=2,G43,0) -> 0 | BC43: =IF(AZ43=3,G43,0) -> 0 | BD43: =IF(AZ43=4,G43,0) -> 0 | BE43: =IF(AZ43=5,G43,0) -> 0 | CA43: 1 | CB43: 1
A44: 17 | B44: 979087213R00 | C44: Nakládání vybour.hmot na dop.prostředky-komunikace | D44: t | E44: 8.625 | G44: =E44*F44 -> 0 | H44: 0 | I44: =E44*H44 -> 0 | J44: 0 | K44: =E44*J44 -> 0 | O44: 2 | AA44: 1 | AB44: 1 | AC44: 1 | AZ44: 1 | BA44: =IF(AZ44=1,G44,0) -> 0 | BB44: =IF(AZ44=2,G44,0) -> 0 | BC44: =IF(AZ44=3,G44,0) -> 0 | BD44: =IF(AZ44=4,G44,0) -> 0 | BE44: =IF(AZ44=5,G44,0) -> 0 | CA44: 1 | CB44: 1
B45: Celkem za | C45: 5 Komunikace | G45: =SUM(G28:G44) -> 0 | I45: =SUM(I28:I44) -> 63.6434965 | K45: =SUM(K28:K44) -> 0 | O45: 4 | BA45: =SUM(BA28:BA44) -> 0 | BB45: =SUM(BB28:BB44) -> 0 | BC45: =SUM(BC28:BC44) -> 0 | BD45: =SUM(BD28:BD44) -> 0 | BE45: =SUM(BE28:BE44) -> 0
A46: Díl: | B46: 8 | C46: Trubní vedení | O46: 1
A47: 18 | B47: 899431111R00 | C47: Výšková úprava do 20 cm, zvýšení krytu šoupěte | D47: kus | E47: 4 | G47: =E47*F47 -> 0 | H47: 0.3159 | I47: =E47*H47 -> 1.2636 | J47: 0 | K47: =E47*J47 -> 0 | O47: 2 | AA47: 1 | AB47: 1 | AC47: 1 | AZ47: 1 | BA47: =IF(AZ47=1,G47,0) -> 0 | BB47: =IF(AZ47=2,G47,0) -> 0 | BC47: =IF(AZ47=3,G47,0) -> 0 | BD47: =IF(AZ47=4,G47,0) -> 0 | BE47: =IF(AZ47=5,G47,0) -> 0 | CA47: 1 | CB47: 1
A48: 19 | B48: 939431111RT2 | C48: Výměna kanaliz.poklopu za samonivelační, hl.200 mm včetně dodávky litinového poklopu D400 SN600 | D48: kus | E48: 1 | G48: =E48*F48 -> 0 | H48: 0.56041 | I48: =E48*H48 -> 0.56041 | J48: -0.32076 | K48: =E48*J48 -> -0.32076 | O48: 2 | AA48: 1 | AB48: 0 | AC48: 0 | AZ48: 1 | BA48: =IF(AZ48=1,G48,0) -> 0 | BB48: =IF(AZ48=2,G48,0) -> 0 | BC48: =IF(AZ48=3,G48,0) -> 0 | BD48: =IF(AZ48=4,G48,0) -> 0 | BE48: =IF(AZ48=5,G48,0) -> 0 | CA48: 1 | CB48: 0
C49: Samonivelační bezpantový těžký poklop KASI KDM65 případně část KDM63 dle upřesnění provozovatele. | L49: Samonivelační bezpantový těžký poklop KASI KDM65 případně část KDM63 dle upřesnění provozovatele. | O49: 3
C50: Poklop se znakem "Město Turnov" | L50: Poklop se znakem "Město Turnov" | O50: 3
B51: Celkem za | C51: 8 Trubní vedení | G51: =SUM(G46:G50) -> 0 | I51: =SUM(I46:I50) -> 1.82401 | K51: =SUM(K46:K50) -> -0.32076 | O51: 4 | BA51: =SUM(BA46:BA50) -> 0 | BB51: =SUM(BB46:BB50) -> 0 | BC51: =SUM(BC46:BC50) -> 0 | BD51: =SUM(BD46:BD50) -> 0 | BE51: =SUM(BE46:BE50) -> 0
A52: Díl: | B52: 91 | C52: Doplňující práce na komunikaci | O52: 1
A53: 20 | B53: 917862111RT7 | C53: Osazení stojat. obrub.bet. s opěrou,lože z C 12/15 včetně obrubníku ABO 2 - 15 100/15/25 | D53: m | E53: 34.65 | G53: =E53*F53 -> 0 | H53: 0.26981 | I53: =E53*H53 -> 9.3489165 | J53: 0 | K53: =E53*J53 -> 0 | O53: 2 | AA53: 1 | AB53: 1 | AC53: 1 | AZ53: 1 | BA53: =IF(AZ53=1,G53,0) -> 0 | BB53: =IF(AZ53=2,G53,0) -> 0 | BC53: =IF(AZ53=3,G53,0) -> 0 | BD53: =IF(AZ53=4,G53,0) -> 0 | BE53: =IF(AZ53=5,G53,0) -> 0 | CA53: 1 | CB53: 1
C54: Osazení obrubníků:9,45*3+6,30*1 | E54: 34.65 | M54: Osazení obrubníků:9,45*3+6,30*1
A55: 21 | B55: 918101111R00 | C55: Lože pod obrubníky nebo obruby dlažeb z C 12/15 | D55: m3 | E55: 0.8662 | G55: =E55*F55 -> 0 | H55: 2.525 | I55: =E55*H55 -> 2.187155 | J55: 0 | K55: =E55*J55 -> 0 | O55: 2 | AA55: 1 | AB55: 1 | AC55: 1 | AZ55: 1 | BA55: =IF(AZ55=1,G55,0) -> 0 | BB55: =IF(AZ55=2,G55,0) -> 0 | BC55: =IF(AZ55=3,G55,0) -> 0 | BD55: =IF(AZ55=4,G55,0) -> 0 | BE55: =IF(AZ55=5,G55,0) -> 0 | CA55: 1 | CB55: 1
C56: Osazení obrubníků:(9,45*3+6,30*1)*0,25*0,10 | E56: 0.8662 | M56: Osazení obrubníků:(9,45*3+6,30*1)*0,25*0,10
A57: 22 | B57: 919731122R00 | C57: Zarovnání styčné plochy živičné tl. do 10 cm | D57: m | E57: 80.65 | G57: =E57*F57 -> 0 | H57: 0 | I57: =E57*H57 -> 0 | J57: 0 | K57: =E57*J57 -> 0 | O57: 2 | AA57: 1 | AB57: 1 | AC57: 1 | AZ57: 1 | BA57: =IF(AZ57=1,G57,0) -> 0 | BB57: =IF(AZ57=2,G57,0) -> 0 | BC57: =IF(AZ57=3,G57,0) -> 0 | BD57: =IF(AZ57=4,G57,0) -> 0 | BE57: =IF(AZ57=5,G57,0) -> 0 | CA57: 1 | CB57: 1
C58: Pro osazení betonových obrubníků:9,45*3+6,30*1 | E58: 34.65 | M58: Pro osazení betonových obrubníků:9,45*3+6,30*1
C59: Křižovatka - Náběhy:6,00*2*2+5,50*2*2 | E59: 46 | M59: Křižovatka - Náběhy:6,00*2*2+5,50*2*2
A60: 23 | B60: 919735112R00 | C60: Řezání stávajícího živičného krytu tl. 5 - 10 cm | D60: m | E60: 80.65 | G60: =E60*F60 -> 0 | H60: 0 | I60: =E60*H60 -> 0 | J60: 0 | K60: =E60*J60 -> 0 | O60: 2 | AA60: 1 | AB60: 1 | AC60: 1 | AZ60: 1 | BA60: =IF(AZ60=1,G60,0) -> 0 | BB60: =IF(AZ60=2,G60,0) -> 0 | BC60: =IF(AZ60=3,G60,0) -> 0 | BD60: =IF(AZ60=4,G60,0) -> 0 | BE60: =IF(AZ60=5,G60,0) -> 0 | CA60: 1 | CB60: 1
C61: Pro osazení betonových obrubníků:9,45*3+6,30*1 | E61: 34.65 | M61: Pro osazení betonových obrubníků:9,45*3+6,30*1
C62: Křižovatka - Náběhy:6,00*2*2+5,50*2*2 | E62: 46 | M62: Křižovatka - Náběhy:6,00*2*2+5,50*2*2
B63: Celkem za | C63: 91 Doplňující práce na komunikaci | G63: =SUM(G52:G62) -> 0 | I63: =SUM(I52:I62) -> 11.5360715 | K63: =SUM(K52:K62) -> 0 | O63: 4 | BA63: =SUM(BA52:BA62) -> 0 | BB63: =SUM(BB52:BB62) -> 0 | BC63: =SUM(BC52:BC62) -> 0 | BD63: =SUM(BD52:BD62) -> 0 | BE63: =SUM(BE52:BE62) -> 0
A64: Díl: | B64: 93 | C64: Dokončovací práce inženýrských staveb | O64: 1
A65: 24 | B65: 938908411R00 | C65: Očištění povrchu krytu saponátovým roztokem | D65: m2 | E65: 180.45 | G65: =E65*F65 -> 0 | H65: 1e-05 | I65: =E65*H65 -> 0.0018045 | J65: 0 | K65: =E65*J65 -> 0 | O65: 2 | AA65: 1 | AB65: 1 | AC65: 1 | AZ65: 1 | BA65: =IF(AZ65=1,G65,0) -> 0 | BB65: =IF(AZ65=2,G65,0) -> 0 | BC65: =IF(AZ65=3,G65,0) -> 0 | BD65: =IF(AZ65=4,G65,0) -> 0 | BE65: =IF(AZ65=5,G65,0) -> 0 | CA65: 1 | CB65: 1
C66: Křižovatka:16,00*6,00+6,00*5,50+4,50*5,50+7,75*3+3,45*1 | E66: 180.45 | M66: Křižovatka:16,00*6,00+6,00*5,50+4,50*5,50+7,75*3+3,45*1
A67: 25 | B67: 938909311R00 | C67: Odstranění nánosu z povrchu živičného nebo beton. | D67: m2 | E67: 180.45 | G67: =E67*F67 -> 0 | H67: 0 | I67: =E67*H67 -> 0 | J67: 0 | K67: =E67*J67 -> 0 | O67: 2 | AA67: 1 | AB67: 1 | AC67: 1 | AZ67: 1 | BA67: =IF(AZ67=1,G67,0) -> 0 | BB67: =IF(AZ67=2,G67,0) -> 0 | BC67: =IF(AZ67=3,G67,0) -> 0 | BD67: =IF(AZ67=4,G67,0) -> 0 | BE67: =IF(AZ67=5,G67,0) -> 0 | CA67: 1 | CB67: 1
C68: Křižovatka:16,00*6,00+6,00*5,50+4,50*5,50+7,75*3+3,45*1 | E68: 180.45 | M68: Křižovatka:16,00*6,00+6,00*5,50+4,50*5,50+7,75*3+3,45*1
B69: Celkem za | C69: 93 Dokončovací práce inženýrských staveb | G69: =SUM(G64:G68) -> 0 | I69: =SUM(I64:I68) -> 0.0018045 | K69: =SUM(K64:K68) -> 0 | O69: 4 | BA69: =SUM(BA64:BA68) -> 0 | BB69: =SUM(BB64:BB68) -> 0 | BC69: =SUM(BC64:BC68) -> 0 | BD69: =SUM(BD64:BD68) -> 0 | BE69: =SUM(BE64:BE68) -> 0
A70: Díl: | B70: 99 | C70: Staveništní přesun hmot | O70: 1
A71: 26 | B71: 998225111R00 | C71: Přesun hmot, pozemní komunikace, kryt živičný | D71: t | E71: 77.0065255 | G71: =E71*F71 -> 0 | H71: 0 | I71: =E71*H71 -> 0 | K71: =E71*J71 -> 0 | O71: 2 | AA71: 7 | AB71: 1 | AC71: 2 | AZ71: 1 | BA71: =IF(AZ71=1,G71,0) -> 0 | BB71: =IF(AZ71=2,G71,0) -> 0 | BC71: =IF(AZ71=3,G71,0) -> 0 | BD71: =IF(AZ71=4,G71,0) -> 0 | BE71: =IF(AZ71=5,G71,0) -> 0 | CA71: 7 | CB71: 1
B72: Celkem za | C72: 99 Staveništní přesun hmot | G72: =SUM(G70:G71) -> 0 | I72: =SUM(I70:I71) -> 0 | K72: =SUM(K70:K71) -> 0 | O72: 4 | BA72: =SUM(BA70:BA71) -> 0 | BB72: =SUM(BB70:BB71) -> 0 | BC72: =SUM(BC70:BC71) -> 0 | BD72: =SUM(BD70:BD71) -> 0 | BE72: =SUM(BE70:BE71) -> 0

Sheet 101.08 101.08.3 KL
A1: POLOŽKOVÝ ROZPOČET
A2: Rozpočet | C2: 101.08.3 | D2: Komunikace - Úsek č. 2 | F2: JKSO | G2: 822.29
A4: Objekt | F4: SKP
A5: 101.08 | C5: Komunikace - ul. Vladimíra Krajiny | F5: Měrná jednotka | G5: m2
A6: Stavba | F6: Počet jednotek | G6: 0
A7: 3268 | C7: Komunikace a IS v rozvojové lokalitě Hruštice - Ká | F7: Náklady na m.j. | G7: =IF(G6=0,,ROUND((F30+F32)/G6,1)) -> 0
A8: Projektant | C8: PROFES PROJEKT spol.s r.o. | F8: Typ rozpočtu
A9: Zpracovatel projektu
A10: Objednatel | C10: Město TURNOV
A11: Dodavatel | C11: . | F11: Zakázkové číslo
A12: Rozpočtoval | F12: Počet listů
A13: ROZPOČTOVÉ NÁKLADY
A14: Základní rozpočtové náklady
B15: HSV celkem | C15: ='101.08 101.08.3 Rek'!E13 -> 0
A16: Z | B16: PSV celkem | C16: ='101.08 101.08.3 Rek'!F13 -> 0
A17: R | B17: M práce celkem | C17: ='101.08 101.08.3 Rek'!H13 -> 0
A18: N | B18: M dodávky celkem | C18: ='101.08 101.08.3 Rek'!G13 -> 0
A19: ZRN celkem | C19: =SUM(C15:C18) -> 0
A21: HZS | C21: ='101.08 101.08.3 Rek'!I13 -> 0
A22: ZRN+HZS | C22: =C19+C21 -> 0
A23: ZRN+ost.náklady+HZS | C23: =C22+G23 -> 0
A24: Vypracoval | D24: Za zhotovitele | F24: Za objednatele
A25: Jméno : | D25: Jméno : | F25: Jméno :
A26: Datum : | D26: Datum : | F26: Datum :
A28: Podpis : | D28: Podpis: | F28: Podpis:
A30: Základ pro DPH | C30: 21 | D30: % | F30: =C23-F32 -> 0
A31: DPH | C31: =C30 -> 21 | D31: % | F31: =ROUND(PRODUCT(F30,C31/100),0) -> 0
A32: Základ pro DPH | C32: 0 | D32: % | F32: 0
A33: DPH | C33: =C32 -> 0 | D33: % | F33: =ROUND(PRODUCT(F32,C33/100),0) -> 0
A34: CENA ZA OBJEKT CELKEM | F34: =ROUND(SUM(F30:F33),0) -> 0
A36: Poznámka :

Sheet 101.08 101.08.3 Rek
A1: Stavba : | C1: 3268 Komunikace a IS v rozvojové lokalitě Hruštice - Ká | G1: Rozpočet : | H1: 101.08.3
A2: Objekt : | C2: 101.08 Komunikace - ul. Vladimíra Krajiny | G2: Komunikace - Úsek č. 2
A4: REKAPITULACE STAVEBNÍCH DÍLŮ
B6: Stavební díl | E6: HSV | F6: PSV | G6: Dodávka | H6: Montáž | I6: HZS
A7: ='101.08 101.08.3 Pol'!B7 -> 1 | B7: ='101.08 101.08.3 Pol'!C7 -> Zemní práce | E7: ='101.08 101.08.3 Pol'!BA32 -> 0 | F7: ='101.08 101.08.3 Pol'!BB32 -> 0 | G7: ='101.08 101.08.3 Pol'!BC32 -> 0 | H7: ='101.08 101.08.3 Pol'!BD32 -> 0 | I7: ='101.08 101.08.3 Pol'!BE32 -> 0
A8: ='101.08 101.08.3 Pol'!B33 -> 5 | B8: ='101.08 101.08.3 Pol'!C33 -> Komunikace | E8: ='101.08 101.08.3 Pol'!BA49 -> 0 | F8: ='101.08 101.08.3 Pol'!BB49 -> 0 | G8: ='101.08 101.08.3 Pol'!BC49 -> 0 | H8: ='101.08 101.08.3 Pol'!BD49 -> 0 | I8: ='101.08 101.08.3 Pol'!BE49 -> 0
A9: ='101.08 101.08.3 Pol'!B50 -> 8 | B9: ='101.08 101.08.3 Pol'!C50 -> Trubní vedení | E9: ='101.08 101.08.3 Pol'!BA56 -> 0 | F9: ='101.08 101.08.3 Pol'!BB56 -> 0 | G9: ='101.08 101.08.3 Pol'!BC56 -> 0 | H9: ='101.08 101.08.3 Pol'!BD56 -> 0 | I9: ='101.08 101.08.3 Pol'!BE56 -> 0
A10: ='101.08 101.08.3 Pol'!B57 -> 91 | B10: ='101.08 101.08.3 Pol'!C57 -> Doplňující práce na komunikaci | E10: ='101.08 101.08.3 Pol'!BA66 -> 0 | F10: ='101.08 101.08.3 Pol'!BB66 -> 0 | G10: ='101.08 101.08.3 Pol'!BC66 -> 0 | H10: ='101.08 101.08.3 Pol'!BD66 -> 0 | I10: ='101.08 101.08.3 Pol'!BE66 -> 0
A11: ='101.08 101.08.3 Pol'!B67 -> 93 | B11: ='101.08 101.08.3 Pol'!C67 -> Dokončovací práce inženýrských staveb | E11: ='101.08 101.08.3 Pol'!BA72 -> 0 | F11: ='101.08 101.08.3 Pol'!BB72 -> 0 | G11: ='101.08 101.08.3 Pol'!BC72 -> 0 | H11: ='101.08 101.08.3 Pol'!BD72 -> 0 | I11: ='101.08 101.08.3 Pol'!BE72 -> 0
A12: ='101.08 101.08.3 Pol'!B73 -> 99 | B12: ='101.08 101.08.3 Pol'!C73 -> Staveništní přesun hmot | E12: ='101.08 101.08.3 Pol'!BA75 -> 0 | F12: ='101.08 101.08.3 Pol'!BB75 -> 0 | G12: ='101.08 101.08.3 Pol'!BC75 -> 0 | H12: ='101.08 101.08.3 Pol'!BD75 -> 0 | I12: ='101.08 101.08.3 Pol'!BE75 -> 0
B13: CELKEM OBJEKT | E13: =SUM(E7:E12) -> 0 | F13: =SUM(F7:F12) -> 0 | G13: =SUM(G7:G12) -> 0 | H13: =SUM(H7:H12) -> 0 | I13: =SUM(I7:I12) -> 0

Sheet 101.08 101.08.3 Pol
A1: Položkový rozpočet
A3: Stavba : | C3: 3268 Komunikace a IS v rozvojové lokalitě Hruštice - Ká | E3: Rozpočet: | F3: ='101.08 101.08.3 Rek'!H1 -> 101.08.3
A4: Objekt : | C4: 101.08 Komunikace - ul. Vladimíra Krajiny | E4: ='101.08 101.08.3 Rek'!G2 -> Komunikace - Úsek č. 2
A6: P.č. | B6: Číslo položky | C6: Název položky | D6: MJ | E6: množství | F6: cena / MJ | G6: celkem (Kč) | H6: Jednotková hmotnost | I6: Celková hmotnost | J6: Jednotková dem.hmot. | K6: Celková dem.hmot.
A7: Díl: | B7: 1 | C7: Zemní práce | O7: 1
A8: 1 | B8: 113108310R00 | C8: Odstranění asfaltové vrstvy pl. do 50 m2, tl.10 cm | D8: m2 | E8: 11.6 | G8: =E8*F8 -> 0 | H8: 0 | I8: =E8*H8 -> 0 | J8: -0.22 | K8: =E8*J8 -> -2.552 | O8: 2 | AA8: 1 | AB8: 1 | AC8: 1 | AZ8: 1 | BA8: =IF(AZ8=1,G8,0) -> 0 | BB8: =IF(AZ8=2,G8,0) -> 0 | BC8: =IF(AZ8=3,G8,0) -> 0 | BD8: =IF(AZ8=4,G8,0) -> 0 | BE8: =IF(AZ8=5,G8,0) -> 0 | CA8: 1 | CB8: 1
C9: Pro osazení betonových obrubníků:58,00*0,10*2 | E9: 11.6 | M9: Pro osazení betonových obrubníků:58,00*0,10*2
A10: 2 | B10: 122202201R00 | C10: Odkopávky pro silnice v hor. 3 do 100 m3 | D10: m3 | E10: 21.36 | G10: =E10*F10 -> 0 | H10: 0 | I10: =E10*H10 -> 0 | J10: 0 | K10: =E10*J10 -> 0 | O10: 2 | AA10: 1 | AB10: 1 | AC10: 1 | AZ10: 1 | BA10: =IF(AZ10=1,G10,0) -> 0 | BB10: =IF(AZ10=2,G10,0) -> 0 | BC10: =IF(AZ10=3,G10,0) -> 0 | BD10: =IF(AZ10=4,G10,0) -> 0 | BE10: =IF(AZ10=5,G10,0) -> 0 | CA10: 1 | CB10: 1
C11: Pro osazení betonových obrubníků:58,00*0,30*0,20*2 | E11: 6.96 | M11: Pro osazení betonových obrubníků:58,00*0,30*0,20*2
C12: Pro vjezdy:(6,00*2+4,00)*3,00*0,30 | E12: 14.4 | M12: Pro vjezdy:(6,00*2+4,00)*3,00*0,30
A13: 3 | B13: 122202209R00 | C13: Příplatek za lepivost - odkop. pro silnice v hor.3 | D13: m3 | E13: 10.68 | G13: =E13*F13 -> 0 | H13: 0 | I13: =E13*H13 -> 0 | J13: 0 | K13: =E13*J13 -> 0 | O13: 2 | AA13: 1 | AB13: 1 | AC13: 1 | AZ13: 1 | BA13: =IF(AZ13=1,G13,0) -> 0 | BB13: =IF(AZ13=2,G13,0) -> 0 | BC13: =IF(AZ13=3,G13,0) -> 0 | BD13: =IF(AZ13=4,G13,0) -> 0 | BE13: =IF(AZ13=5,G13,0) -> 0 | CA13: 1 | CB13: 1
C14: Pro osazení betonových obrubníků:58,00*0,30*0,20*2*0,5 | E14: 3.48 | M14: Pro osazení betonových obrubníků:58,00*0,30*0,20*2*0,5
C15: Pro vjezdy:(6,00*2+4,00)*3,00*0,30*0,5 | E15: 7.2 | M15: Pro vjezdy:(6,00*2+4,00)*3,00*0,30*0,5
A16: 4 | B16: 162701105RSZ | C16: Vodorovné přemístění výkopku z hor.1-7 na skládku zhotovitele | D16: m3 | E16: 21.36 | G16: =E16*F16 -> 0 | H16: 0 | I16: =E16*H16 -> 0 | J16: 0 | K16: =E16*J16 -> 0 | O16: 2 | AA16: 1 | AB16: 1 | AC16: 1 | AZ16: 1 | BA16: =IF(AZ16=1,G16,0) -> 0 | BB16: =IF(AZ16=2,G16,0) -> 0 | BC16: =IF(AZ16=3,G16,0) -> 0 | BD16: =IF(AZ16=4,G16,0) -> 0 | BE16: =IF(AZ16=5,G16,0) -> 0 | CA16: 1 | CB16: 1
C17: Pro osazení betonových obrubníků:58,00*0,30*0,20*2 | E17: 6.96 | M17: Pro osazení betonových obrubníků:58,00*0,30*0,20*2
C18: Pro vjezdy:(6,00*2+4,00)*3,00*0,30 | E18: 14.4 | M18: Pro vjezdy:(6,00*2+4,00)*3,00*0,30
A19: 5 | B19: 181101102R00 | C19: Úprava pláně v zářezech v hor. 1-4, se zhutněním | D19: m2 | E19: 82.8 | G19: =E19*F19 -> 0 | H19: 0 | I19: =E19*H19 -> 0 | J19: 0 | K19: =E19*J19 -> 0 | O19: 2 | AA19: 1 | AB19: 1 | AC19: 1 | AZ19: 1 | BA19: =IF(AZ19=1,G19,0) -> 0 | BB19: =IF(AZ19=2,G19,0) -> 0 | BC19: =IF(AZ19=3,G19,0) -> 0 | BD19: =IF(AZ19=4,G19,0) -> 0 | BE19: =IF(AZ19=5,G19,0) -> 0 | CA19: 1 | CB19: 1
C20: Pro osazení betonových obrubníků:58,00*0,30*2 | E20: 34.8 | M20: Pro osazení betonových obrubníků:58,00*0,30*2
C21: Pro vjezdy:(6,00*2+4,00)*3,00 | E21: 48 | M21: Pro vjezdy:(6,00*2+4,00)*3,00
A22: 6 | B22: 181300012RAC | C22: Rozprostření ornice v rovině tloušťka 20 cm dovoz ornice ze vzdálenosti 5 km, osetí trávou | D22: m2 | E22: 300 | G22: =E22*F22 -> 0 | H22: 3e-05 | I22: =E22*H22 -> 0.009 | J22: 0 | K22: =E22*J22 -> 0 | O22: 2 | AA22: 1 | AB22: 1 | AC22: 1 | AZ22: 1 | BA22: =IF(AZ22=1,G22,0) -> 0 | BB22: =IF(AZ22=2,G22,0) -> 0 | BC22: =IF(AZ22=3,G22,0) -> 0 | BD22: =IF(AZ22=4,G22,0) -> 0 | BE22: =IF(AZ22=5,G22,0) -> 0 | CA22: 1 | CB22: 1
C23: Včetně naložení ornice na skládce investora a přesunu hmot. | L23: Včetně naložení ornice na skládce investora a přesunu hmot. | O23: 3
C24: Doplnění ornice za obrubou:58,00*2*3,00 | E24: 348 | M24: Doplnění ornice za obrubou:58,00*2*3,00
C25: Odpočet vjezdy:-(6,00*2+4,00)*3,00 | E25: -48 | M25: Odpočet vjezdy:-(6,00*2+4,00)*3,00
A26: 7 | B26: 199000002R00 | C26: Poplatek za skládku horniny 1- 7 | D26: m3 | E26: 21.36 | G26: =E26*F26 -> 0 | H26: 0 | I26: =E26*H26 -> 0 | J26: 0 | K26: =E26*J26 -> 0 | O26: 2 | AA26: 1 | AB26: 1 | AC26: 1 | AZ26: 1 | BA26: =IF(AZ26=1,G26,0) -> 0 | BB26: =IF(AZ26=2,G26,0) -> 0 | BC26: =IF(AZ26=3,G26,0) -> 0 | BD26: =IF(AZ26=4,G26,0) -> 0 | BE26: =IF(AZ26=5,G26,0) -> 0 | CA26: 1 | CB26: 1
C27: Pro osazení betonových obrubníků:58,00*0,30*0,20*2 | E27: 6.96 | M27: Pro osazení betonových obrubníků:58,00*0,30*0,20*2
C28: Pro vjezdy:(6,00*2+4,00)*3,00*0,30 | E28: 14.4 | M28: Pro vjezdy:(6,00*2+4,00)*3,00*0,30
A29: 8 | B29: 979082113RRX | C29: Vodorovná doprava suti po suchu na skládku zhotovitele | D29: t | E29: 2.552 | G29: =E29*F29 -> 0 | H29: 0 | I29: =E29*H29 -> 0 | J29: 0 | K29: =E29*J29 -> 0 | O29: 2 | AA29: 1 | AB29: 1 | AC29: 1 | AZ29: 1 | BA29: =IF(AZ29=1,G29,0) -> 0 | BB29: =IF(AZ29=2,G29,0) -> 0 | BC29: =IF(AZ29=3,G29,0) -> 0 | BD29: =IF(AZ29=4,G29,0) -> 0 | BE29: =IF(AZ29=5,G29,0) -> 0 | CA29: 1 | CB29: 1
A30: 9 | B30: 979990112ASF | C30: Poplatek za skládku suti - asfalt a beton z kom. | D30: t | E30: 2.552 | G30: =E30*F30 -> 0 | H30: 0 | I30: =E30*H30 -> 0 | J30: 0 | K30: =E30*J30 -> 0 | O30: 2 | AA30: 1 | AB30: 1 | AC30: 1 | AZ30: 1 | BA30: =IF(AZ30=1,G30,0) -> 0 | BB30: =IF(AZ30=2,G30,0) -> 0 | BC30: =IF(AZ30=3,G30,0) -> 0 | BD30: =IF(AZ30=4,G30,0) -> 0 | BE30: =IF(AZ30=5,G30,0) -> 0 | CA30: 1 | CB30: 1
C31: Položka je určena pro suť o velikosti kusu do 30x30 cm (technologický materiál určený k recyklaci). | L31: Položka je určena pro suť o velikosti kusu do 30x30 cm (technologický materiál určený k recyklaci). | O31: 3
B32: Celkem za | C32: 1 Zemní práce | G32: =SUM(G7:G31) -> 0 | I32: =SUM(I7:I31) -> 0.009 | K32: =SUM(K7:K31) -> -2.552 | O32: 4 | BA32: =SUM(BA7:BA31) -> 0 | BB32: =SUM(BB7:BB31) -> 0 | BC32: =SUM(BC7:BC31) -> 0 | BD32: =SUM(BD7:BD31) -> 0 | BE32: =SUM(BE7:BE31) -> 0
A33: Díl: | B33: 5 | C33: Komunikace | O33: 1
A34: 10 | B34: 564791111R00 | C34: Podklad pro zpevněné plochy z kam.drceného 0-63 mm | D34: m3 | E34: 6.96 | G34: =E34*F34 -> 0 | H34: 2.204 | I34: =E34*H34 -> 15.33984 | J34: 0 | K34: =E34*J34 -> 0 | O34: 2 | AA34: 1 | AB34: 1 | AC34: 1 | AZ34: 1 | BA34: =IF(AZ34=1,G34,0) -> 0 | BB34: =IF(AZ34=2,G34,0) -> 0 | BC34: =IF(AZ34=3,G34,0) -> 0 | BD34: =IF(AZ34=4,G34,0) -> 0 | BE34: =IF(AZ34=5,G34,0) -> 0 | CA34: 1 | CB34: 1
C35: Včetně kameniva, rozprostření a zhutnění podkladu. | L35: Včetně kameniva, rozprostření a zhutnění podkladu. | O35: 3
C36: Pro osazení betonových obrubníků:58,00*0,30*2*0,20 | E36: 6.96 | M36: Pro osazení betonových obrubníků:58,00*0,30*2*0,20
A37: 11 | B37: 564871111RT4 | C37: Podklad ze štěrkodrti po zhutnění tloušťky 25 cm štěrkodrť frakce 0-63 mm | D37: m2 | E37: 48 | G37: =E37*F37 -> 0 | H37: 0.55125 | I37: =E37*H37 -> 26.46 | J37: 0 | K37: =E37*J37 -> 0 | O37: 2 | AA37: 1 | AB37: 1 | AC37: 1 | AZ37: 1 | BA37: =IF(AZ37=1,G37,0) -> 0 | BB37: =IF(AZ37=2,G37,0) -> 0 | BC37: =IF(AZ37=3,G37,0) -> 0 | BD37: =IF(AZ37=4,G37,0) -> 0 | BE37: =IF(AZ37=5,G37,0) -> 0 | CA37: 1 | CB37: 1
C38: Pro vjezdy:(6,00*2+4,00)*3,00 | E38: 48 | M38: Pro vjezdy:(6,00*2+4,00)*3,00
A39: 12 | B39: 565151211R00 | C39: Podklad z obal kam.ACP 16+,nad 3 m,tl.7 cm | D39: m2 | E39: 48 | G39: =E39*F39 -> 0 | H39: 0.18463 | I39: =E39*H39 -> 8.86224 | J39: 0 | K39: =E39*J39 -> 0 | O39: 2 | AA39: 1 | AB39: 1 | AC39: 1 | AZ39: 1 | BA39: =IF(AZ39=1,G39,0) -> 0 | BB39: =IF(AZ39=2,G39,0) -> 0 | BC39: =IF(AZ39=3,G39,0) -> 0 | BD39: =IF(AZ39=4,G39,0) -> 0 | BE39: =IF(AZ39=5,G39,0) -> 0 | CA39: 1 | CB39: 1
C40: Pro vjezdy:(6,00*2+4,00)*3,00 | E40: 48 | M40: Pro vjezdy:(6,00*2+4,00)*3,00
A41: 13 | B41: 572713112R00 | C41: Vyrovnání povrchu krytů kamen. obaleným asfaltem | D41: t | E41: 2.9 | G41: =E41*F41 -> 0 | H41: 1 | I41: =E41*H41 -> 2.9 | J41: 0 | K41: =E41*J41 -> 0 | O41: 2 | AA41: 1 | AB41: 1 | AC41: 1 | AZ41: 1 | BA41: =IF(AZ41=1,G41,0) -> 0 | BB41: =IF(AZ41=2,G41,0) -> 0 | BC41: =IF(AZ41=3,G41,0) -> 0 | BD41: =IF(AZ41=4,G41,0) -> 0 | BE41: =IF(AZ41=5,G41,0) -> 0 | CA41: 1 | CB41: 1
C42: Doplnění stávající asfaltové plochy podél nových obrubníků:58,00*2*0,10*0,10*2,5 | E42: 2.9 | M42: Doplnění stávající asfaltové plochy podél nových obrubníků:58,00*2*0,10*0,10*2,5
A43: 14 | B43: 573231110R00 | C43: Postřik živičný spojovací z emulze 0,3-0,5 kg/m2 | D43: m2 | E43: 396 | G43: =E43*F43 -> 0 | H43: 0.0005 | I43: =E43*H43 -> 0.198 | J43: 0 | K43: =E43*J43 -> 0 | O43: 2 | AA43: 1 | AB43: 1 | AC43: 1 | AZ43: 1 | BA43: =IF(AZ43=1,G43,0) -> 0 | BB43: =IF(AZ43=2,G43,0) -> 0 | BC43: =IF(AZ43=3,G43,0) -> 0 | BD43: =IF(AZ43=4,G43,0) -> 0 | BE43: =IF(AZ43=5,G43,0) -> 0 | CA43: 1 | CB43: 1
C44: Komunikace:58,00*6,00 | E44: 348 | M44: Komunikace:58,00*6,00
C45: Vjezdy:(6,00*2+4,00)*3,00 | E45: 48 | M45: Vjezdy:(6,00*2+4,00)*3,00
A46: 15 | B46: 577132111RT2 | C46: Beton asfalt. ACO 11+ obrusný, š.nad 3 m, tl. 4 cm plochy 201-1000 m2 | D46: m2 | E46: 396 | G46: =E46*F46 -> 0 | H46: 0.10373 | I46: =E46*H46 -> 41.07708 | J46: 0 | K46: =E46*J46 -> 0 | O46: 2 | AA46: 1 | AB46: 1 | AC46: 1 | AZ46: 1 | BA46: =IF(AZ46=1,G46,0) -> 0 | BB46: =IF(AZ46=2,G46,0) -> 0 | BC46: =IF(AZ46=3,G46,0) -> 0 | BD46: =IF(AZ46=4,G46,0) -> 0 | BE46: =IF(AZ46=5,G46,0) -> 0 | CA46: 1 | CB46: 1
C47: Komunikace:58,00*6,00 | E47: 348 | M47: Komunikace:58,00*6,00
C48: Vjezdy:(6,00*2+4,00)*3,00 | E48: 48 | M48: Vjezdy:(6,00*2+4,00)*3,00
B49: Celkem za | C49: 5 Komunikace | G49: =SUM(G33:G48) -> 0 | I49: =SUM(I33:I48) -> 94.83716 | K49: =SUM(K33:K48) -> 0 | O49: 4 | BA49: =SUM(BA33:BA48) -> 0 | BB49: =SUM(BB33:BB48) -> 0 | BC49: =SUM(BC33:BC48) -> 0 | BD49: =SUM(BD33:BD48) -> 0 | BE49: =SUM(BE33:BE48) -> 0
A50: Díl: | B50: 8 | C50: Trubní vedení | O50: 1
A51: 16 | B51: 899231111R00 | C51: Výšková úprava vstupu do 20 cm, zvýšení mříže | D51: kus | E51: 1 | G51: =E51*F51 -> 0 | H51: 0.43382 | I51: =E51*H51 -> 0.43382 | J51: 0 | K51: =E51*J51 -> 0 | O51: 2 | AA51: 1 | AB51: 1 | AC51: 1 | AZ51: 1 | BA51: =IF(AZ51=1,G51,0) -> 0 | BB51: =IF(AZ51=2,G51,0) -> 0 | BC51: =IF(AZ51=3,G51,0) -> 0 | BD51: =IF(AZ51=4,G51,0) -> 0 | BE51: =IF(AZ51=5,G51,0) -> 0 | CA51: 1 | CB51: 1
A52: 17 | B52: 899431111R00 | C52: Výšková úprava do 20 cm, zvýšení krytu šoupěte | D52: kus | E52: 2 | G52: =E52*F52 -> 0 | H52: 0.3159 | I52: =E52*H52 -> 0.6318 | J52: 0 | K52: =E52*J52 -> 0 | O52: 2 | AA52: 1 | AB52: 1 | AC52: 1 | AZ52: 1 | BA52: =IF(AZ52=1,G52,0) -> 0 | BB52: =IF(AZ52=2,G52,0) -> 0 | BC52: =IF(AZ52=3,G52,0) -> 0 | BD52: =IF(AZ52=4,G52,0) -> 0 | BE52: =IF(AZ52=5,G52,0) -> 0 | CA52: 1 | CB52: 1
A53: 18 | B53: 939431111RT2 | C53: Výměna kanaliz.poklopu za samonivelační, hl.200 mm včetně dodávky litinového poklopu D400 SN600 | D53: kus | E53: 1 | G53: =E53*F53 -> 0 | H53: 0.56041 | I53: =E53*H53 -> 0.56041 | J53: -0.32076 | K53: =E53*J53 -> -0.32076 | O53: 2 | AA53: 1 | AB53: 0 | AC53: 0 | AZ53: 1 | BA53: =IF(AZ53=1,G53,0) -> 0 | BB53: =IF(AZ53=2,G53,0) -> 0 | BC53: =IF(AZ53=3,G53,0) -> 0 | BD53: =IF(AZ53=4,G53,0) -> 0 | BE53: =IF(AZ53=5,G53,0) -> 0 | CA53: 1 | CB53: 0
C54: Samonivelační bezpantový těžký poklop KASI KDM65 případně část KDM63 dle upřesnění provozovatele. | L54: Samonivelační bezpantový těžký poklop KASI KDM65 případně část KDM63 dle upřesnění provozovatele. | O54: 3
C55: Poklop se znakem "Město Turnov" | L55: Poklop se znakem "Město Turnov" | O55: 3
B56: Celkem za | C56: 8 Trubní vedení | G56: =SUM(G50:G55) -> 0 | I56: =SUM(I50:I55) -> 1.62603 | K56: =SUM(K50:K55) -> -0.32076 | O56: 4 | BA56: =SUM(BA50:BA55) -> 0 | BB56: =SUM(BB50:BB55) -> 0 | BC56: =SUM(BC50:BC55) -> 0 | BD56: =SUM(BD50:BD55) -> 0 | BE56: =SUM(BE50:BE55) -> 0
A57: Díl: | B57: 91 | C57: Doplňující práce na komunikaci | O57: 1
A58: 19 | B58: 917862111RT7 | C58: Osazení stojat. obrub.bet. s opěrou,lože z C 12/15 včetně obrubníku ABO 2 - 15 100/15/25 | D58: m | E58: 116 | G58: =E58*F58 -> 0 | H58: 0.26981 | I58: =E58*H58 -> 31.29796 | J58: 0 | K58: =E58*J58 -> 0 | O58: 2 | AA58: 1 | AB58: 1 | AC58: 1 | AZ58: 1 | BA58: =IF(AZ58=1,G58,0) -> 0 | BB58: =IF(AZ58=2,G58,0) -> 0 | BC58: =IF(AZ58=3,G58,0) -> 0 | BD58: =IF(AZ58=4,G58,0) -> 0 | BE58: =IF(AZ58=5,G58,0) -> 0 | CA58: 1 | CB58: 1
C59: Osazení obrubníků:58,00*2 | E59: 116 | M59: Osazení obrubníků:58,00*2
A60: 20 | B60: 918101111R00 | C60: Lože pod obrubníky nebo obruby dlažeb z C 12/15 | D60: m3 | E60: 2.9 | G60: =E60*F60 -> 0 | H60: 2.525 | I60: =E60*H60 -> 7.3225 | J60: 0 | K60: =E60*J60 -> 0 | O60: 2 | AA60: 1 | AB60: 1 | AC60: 1 | AZ60: 1 | BA60: =IF(AZ60=1,G60,0) -> 0 | BB60: =IF(AZ60=2,G60,0) -> 0 | BC60: =IF(AZ60=3,G60,0) -> 0 | BD60: =IF(AZ60=4,G60,0) -> 0 | BE60: =IF(AZ60=5,G60,0) -> 0 | CA60: 1 | CB60: 1
C61: Osazení obrubníků:58,00*2*0,25*0,10 | E61: 2.9 | M61: Osazení obrubníků:58,00*2*0,25*0,10
A62: 21 | B62: 919731122R00 | C62: Zarovnání styčné plochy živičné tl. do 10 cm | D62: m | E62: 116 | G62: =E62*F62 -> 0 | H62: 0 | I62: =E62*H62 -> 0 | J62: 0 | K62: =E62*J62 -> 0 | O62: 2 | AA62: 1 | AB62: 1 | AC62: 1 | AZ62: 1 | BA62: =IF(AZ62=1,G62,0) -> 0 | BB62: =IF(AZ62=2,G62,0) -> 0 | BC62: =IF(AZ62=3,G62,0) -> 0 | BD62: =IF(AZ62=4,G62,0) -> 0 | BE62: =IF(AZ62=5,G62,0) -> 0 | CA62: 1 | CB62: 1
C63: Pro osazení betonových obrubníků:58,00*2 | E63: 116 | M63: Pro osazení betonových obrubníků:58,00*2
A64: 22 | B64: 919735112R00 | C64: Řezání stávajícího živičného krytu tl. 5 - 10 cm | D64: m | E64: 116 | G64: =E64*F64 -> 0 | H64: 0 | I64: =E64*H64 -> 0 | J64: 0 | K64: =E64*J64 -> 0 | O64: 2 | AA64: 1 | AB64: 1 | AC64: 1 | AZ64: 1 | BA64: =IF(AZ64=1,G64,0) -> 0 | BB64: =IF(AZ64=2,G64,0) -> 0 | BC64: =IF(AZ64=3,G64,0) -> 0 | BD64: =IF(AZ64=4,G64,0) -> 0 | BE64: =IF(AZ64=5,G64,0) -> 0 | CA64: 1 | CB64: 1
C65: Pro osazení betonových obrubníků:58,00*2 | E65: 116 | M65: Pro osazení betonových obrubníků:58,00*2
B66: Celkem za | C66: 91 Doplňující práce na komunikaci | G66: =SUM(G57:G65) -> 0 | I66: =SUM(I57:I65) -> 38.62046 | K66: =SUM(K57:K65) -> 0 | O66: 4 | BA66: =SUM(BA57:BA65) -> 0 | BB66: =SUM(BB57:BB65) -> 0 | BC66: =SUM(BC57:BC65) -> 0 | BD66: =SUM(BD57:BD65) -> 0 | BE66: =SUM(BE57:BE65) -> 0
A67: Díl: | B67: 93 | C67: Dokončovací práce inženýrských staveb | O67: 1
A68: 23 | B68: 938908411R00 | C68: Očištění povrchu krytu saponátovým roztokem | D68: m2 | E68: 348 | G68: =E68*F68 -> 0 | H68: 1e-05 | I68: =E68*H68 -> 0.00348 | J68: 0 | K68: =E68*J68 -> 0 | O68: 2 | AA68: 1 | AB68: 1 | AC68: 1 | AZ68: 1 | BA68: =IF(AZ68=1,G68,0) -> 0 | BB68: =IF(AZ68=2,G68,0) -> 0 | BC68: =IF(AZ68=3,G68,0) -> 0 | BD68: =IF(AZ68=4,G68,0) -> 0 | BE68: =IF(AZ68=5,G68,0) -> 0 | CA68: 1 | CB68: 1
C69: Komunikace:58,00*6,00 | E69: 348 | M69: Komunikace:58,00*6,00
A70: 24 | B70: 938909311R00 | C70: Odstranění nánosu z povrchu živičného nebo beton. | D70: m2 | E70: 348 | G70: =E70*F70 -> 0 | H70: 0 | I70: =E70*H70 -> 0 | J70: 0 | K70: =E70*J70 -> 0 | O70: 2 | AA70: 1 | AB70: 1 | AC70: 1 | AZ70: 1 | BA70: =IF(AZ70=1,G70,0) -> 0 | BB70: =IF(AZ70=2,G70,0) -> 0 | BC70: =IF(AZ70=3,G70,0) -> 0 | BD70: =IF(AZ70=4,G70,0) -> 0 | BE70: =IF(AZ70=5,G70,0) -> 0 | CA70: 1 | CB70: 1
C71: Komunikace:58,00*6,00 | E71: 348 | M71: Komunikace:58,00*6,00
B72: Celkem za | C72: 93 Dokončovací práce inženýrských staveb | G72: =SUM(G67:G71) -> 0 | I72: =SUM(I67:I71) -> 0.00348 | K72: =SUM(K67:K71) -> 0 | O72: 4 | BA72: =SUM(BA67:BA71) -> 0 | BB72: =SUM(BB67:BB71) -> 0 | BC72: =SUM(BC67:BC71) -> 0 | BD72: =SUM(BD67:BD71) -> 0 | BE72: =SUM(BE67:BE71) -> 0
A73: Díl: | B73: 99 | C73: Staveništní přesun hmot | O73: 1
A74: 25 | B74: 998225111R00 | C74: Přesun hmot, pozemní komunikace, kryt živičný | D74: t | E74: 135.09613 | G74: =E74*F74 -> 0 | H74: 0 | I74: =E74*H74 -> 0 | K74: =E74*J74 -> 0 | O74: 2 | AA74: 7 | AB74: 1 | AC74: 2 | AZ74: 1 | BA74: =IF(AZ74=1,G74,0) -> 0 | BB74: =IF(AZ74=2,G74,0) -> 0 | BC74: =IF(AZ74=3,G74,0) -> 0 | BD74: =IF(AZ74=4,G74,0) -> 0 | BE74: =IF(AZ74=5,G74,0) -> 0 | CA74: 7 | CB74: 1
B75: Celkem za | C75: 99 Staveništní přesun hmot | G75: =SUM(G73:G74) -> 0 | I75: =SUM(I73:I74) -> 0 | K75: =SUM(K73:K74) -> 0 | O75: 4 | BA75: =SUM(BA73:BA74) -> 0 | BB75: =SUM(BB73:BB74) -> 0 | BC75: =SUM(BC73:BC74) -> 0 | BD75: =SUM(BD73:BD74) -> 0 | BE75: =SUM(BE73:BE74) -> 0

Sheet 101.08 101.08.4 KL
A1: POLOŽKOVÝ ROZPOČET
A2: Rozpočet | C2: 101.08.4 | D2: Komunikace - Křižovatka č. 2 | F2: JKSO | G2: 822.29
A4: Objekt | F4: SKP
A5: 101.08 | C5: Komunikace - ul. Vladimíra Krajiny | F5: Měrná jednotka | G5: m2
A6: Stavba | F6: Počet jednotek | G6: 0
A7: 3268 | C7: Komunikace a IS v rozvojové lokalitě Hruštice - Ká | F7: Náklady na m.j. | G7: =IF(G6=0,,ROUND((F30+F32)/G6,1)) -> 0
A8: Projektant | C8: PROFES PROJEKT spol.s r.o. | F8: Typ rozpočtu
A9: Zpracovatel projektu
A10: Objednatel | C10: Město TURNOV
A11: Dodavatel | C11: . | F11: Zakázkové číslo
A12: Rozpočtoval | F12: Počet listů
A13: ROZPOČTOVÉ NÁKLADY
A14: Základní rozpočtové náklady
B15: HSV celkem | C15: ='101.08 101.08.4 Rek'!E13 -> 0
A16: Z | B16: PSV celkem | C16: ='101.08 101.08.4 Rek'!F13 -> 0
A17: R | B17: M práce celkem | C17: ='101.08 101.08.4 Rek'!H13 -> 0
A18: N | B18: M dodávky celkem | C18: ='101.08 101.08.4 Rek'!G13 -> 0
A19: ZRN celkem | C19: =SUM(C15:C18) -> 0
A21: HZS | C21: ='101.08 101.08.4 Rek'!I13 -> 0
A22: ZRN+HZS | C22: =C19+C21 -> 0
A23: ZRN+ost.náklady+HZS | C23: =C22+G23 -> 0
A24: Vypracoval | D24: Za zhotovitele | F24: Za objednatele
A25: Jméno : | D25: Jméno : | F25: Jméno :
A26: Datum : | D26: Datum : | F26: Datum :
A28: Podpis : | D28: Podpis: | F28: Podpis:
A30: Základ pro DPH | C30: 21 | D30: % | F30: =C23-F32 -> 0
A31: DPH | C31: =C30 -> 21 | D31: % | F31: =ROUND(PRODUCT(F30,C31/100),0) -> 0
A32: Základ pro DPH | C32: 0 | D32: % | F32: 0
A33: DPH | C33: =C32 -> 0 | D33: % | F33: =ROUND(PRODUCT(F32,C33/100),0) -> 0
A34: CENA ZA OBJEKT CELKEM | F34: =ROUND(SUM(F30:F33),0) -> 0
A36: Poznámka :

Sheet 101.08 101.08.4 Rek
A1: Stavba : | C1: 3268 Komunikace a IS v rozvojové lokalitě Hruštice - Ká | G1: Rozpočet : | H1: 101.08.4
A2: Objekt : | C2: 101.08 Komunikace - ul. Vladimíra Krajiny | G2: Komunikace - Křižovatka č. 2
A4: REKAPITULACE STAVEBNÍCH DÍLŮ
B6: Stavební díl | E6: HSV | F6: PSV | G6: Dodávka | H6: Montáž | I6: HZS
A7: ='101.08 101.08.4 Pol'!B7 -> 1 | B7: ='101.08 101.08.4 Pol'!C7 -> Zemní práce | E7: ='101.08 101.08.4 Pol'!BA27 -> 0 | F7: ='101.08 101.08.4 Pol'!BB27 -> 0 | G7: ='101.08 101.08.4 Pol'!BC27 -> 0 | H7: ='101.08 101.08.4 Pol'!BD27 -> 0 | I7: ='101.08 101.08.4 Pol'!BE27 -> 0
A8: ='101.08 101.08.4 Pol'!B28 -> 5 | B8: ='101.08 101.08.4 Pol'!C28 -> Komunikace | E8: ='101.08 101.08.4 Pol'!BA45 -> 0 | F8: ='101.08 101.08.4 Pol'!BB45 -> 0 | G8: ='101.08 101.08.4 Pol'!BC45 -> 0 | H8: ='101.08 101.08.4 Pol'!BD45 -> 0 | I8: ='101.08 101.08.4 Pol'!BE45 -> 0
A9: ='101.08 101.08.4 Pol'!B46 -> 8 | B9: ='101.08 101.08.4 Pol'!C46 -> Trubní vedení | E9: ='101.08 101.08.4 Pol'!BA48 -> 0 | F9: ='101.08 101.08.4 Pol'!BB48 -> 0 | G9: ='101.08 101.08.4 Pol'!BC48 -> 0 | H9: ='101.08 101.08.4 Pol'!BD48 -> 0 | I9: ='101.08 101.08.4 Pol'!BE48 -> 0
A10: ='101.08 101.08.4 Pol'!B49 -> 91 | B10: ='101.08 101.08.4 Pol'!C49 -> Doplňující práce na komunikaci | E10: ='101.08 101.08.4 Pol'!BA60 -> 0 | F10: ='101.08 101.08.4 Pol'!BB60 -> 0 | G10: ='101.08 101.08.4 Pol'!BC60 -> 0 | H10: ='101.08 101.08.4 Pol'!BD60 -> 0 | I10: ='101.08 101.08.4 Pol'!BE60 -> 0
A11: ='101.08 101.08.4 Pol'!B61 -> 93 | B11: ='101.08 101.08.4 Pol'!C61 -> Dokončovací práce inženýrských staveb | E11: ='101.08 101.08.4 Pol'!BA66 -> 0 | F11: ='101.08 101.08.4 Pol'!BB66 -> 0 | G11: ='101.08 101.08.4 Pol'!BC66 -> 0 | H11: ='101.08 101.08.4 Pol'!BD66 -> 0 | I11: ='101.08 101.08.4 Pol'!BE66 -> 0
A12: ='101.08 101.08.4 Pol'!B67 -> 99 | B12: ='101.08 101.08.4 Pol'!C67 -> Staveništní přesun hmot | E12: ='101.08 101.08.4 Pol'!BA69 -> 0 | F12: ='101.08 101.08.4 Pol'!BB69 -> 0 | G12: ='101.08 101.08.4 Pol'!BC69 -> 0 | H12: ='101.08 101.08.4 Pol'!BD69 -> 0 | I12: ='101.08 101.08.4 Pol'!BE69 -> 0
B13: CELKEM OBJEKT | E13: =SUM(E7:E12) -> 0 | F13: =SUM(F7:F12) -> 0 | G13: =SUM(G7:G12) -> 0 | H13: =SUM(H7:H12) -> 0 | I13: =SUM(I7:I12) -> 0

Sheet 101.08 101.08.4 Pol
A1: Položkový rozpočet
A3: Stavba : | C3: 3268 Komunikace a IS v rozvojové lokalitě Hruštice - Ká | E3: Rozpočet: | F3: ='101.08 101.08.4 Rek'!H1 -> 101.08.4
A4: Objekt : | C4: 101.08 Komunikace - ul. Vladimíra Krajiny | E4: ='101.08 101.08.4 Rek'!G2 -> Komunikace - Křižovatka č. 2
A6: P.č. | B6: Číslo položky | C6: Název položky | D6: MJ | E6: množství | F6: cena / MJ | G6: celkem (Kč) | H6: Jednotková hmotnost | I6: Celková hmotnost | J6: Jednotková dem.hmot. | K6: Celková dem.hmot.
A7: Díl: | B7: 1 | C7: Zemní práce | O7: 1
A8: 1 | B8: 113108310R00 | C8: Odstranění asfaltové vrstvy pl. do 50 m2, tl.10 cm | D8: m2 | E8: 30.64 | G8: =E8*F8 -> 0 | H8: 0 | I8: =E8*H8 -> 0 | J8: -0.22 | K8: =E8*J8 -> -6.7408 | O8: 2 | AA8: 1 | AB8: 1 | AC8: 1 | AZ8: 1 | BA8: =IF(AZ8=1,G8,0) -> 0 | BB8: =IF(AZ8=2,G8,0) -> 0 | BC8: =IF(AZ8=3,G8,0) -> 0 | BD8: =IF(AZ8=4,G8,0) -> 0 | BE8: =IF(AZ8=5,G8,0) -> 0 | CA8: 1 | CB8: 1
C9: Pro osazení betonových obrubníků:(19,00+1,50*4+9,45*2)*0,10 | E9: 4.39 | M9: Pro osazení betonových obrubníků:(19,00+1,50*4+9,45*2)*0,10
C10: Křižovatka - Náběhy:6,00*1,50*2+5,50*1,50 | E10: 26.25 | M10: Křižovatka - Náběhy:6,00*1,50*2+5,50*1,50
A11: 2 | B11: 122202201R00 | C11: Odkopávky pro silnice v hor. 3 do 100 m3 | D11: m3 | E11: 2.634 | G11: =E11*F11 -> 0 | H11: 0 | I11: =E11*H11 -> 0 | J11: 0 | K11: =E11*J11 -> 0 | O11: 2 | AA11: 1 | AB11: 1 | AC11: 1 | AZ11: 1 | BA11: =IF(AZ11=1,G11,0) -> 0 | BB11: =IF(AZ11=2,G11,0) -> 0 | BC11: =IF(AZ11=3,G11,0) -> 0 | BD11: =IF(AZ11=4,G11,0) -> 0 | BE11: =IF(AZ11=5,G11,0) -> 0 | CA11: 1 | CB11: 1
C12: Pro osazení betonových obrubníků:(19,00+1,50*4+9,45*2)*0,30*0,20 | E12: 2.634 | M12: Pro osazení betonových obrubníků:(19,00+1,50*4+9,45*2)*0,30*0,20
A13: 3 | B13: 122202209R00 | C13: Příplatek za lepivost - odkop. pro silnice v hor.3 | D13: m3 | E13: 1.317 | G13: =E13*F13 -> 0 | H13: 0 | I13: =E13*H13 -> 0 | J13: 0 | K13: =E13*J13 -> 0 | O13: 2 | AA13: 1 | AB13: 1 | AC13: 1 | AZ13: 1 | BA13: =IF(AZ13=1,G13,0) -> 0 | BB13: =IF(AZ13=2,G13,0) -> 0 | BC13: =IF(AZ13=3,G13,0) -> 0 | BD13: =IF(AZ13=4,G13,0) -> 0 | BE13: =IF(AZ13=5,G13,0) -> 0 | CA13: 1 | CB13: 1
C14: Pro osazení betonových obrubníků:(19,00+1,50*4+9,45*2)*0,30*0,20*0,5 | E14: 1.317 | M14: Pro osazení betonových obrubníků:(19,00+1,50*4+9,45*2)*0,30*0,20*0,5
A15: 4 | B15: 162701105RSZ | C15: Vodorovné přemístění výkopku z hor.1-7 na skládku zhotovitele | D15: m3 | E15: 2.634 | G15: =E15*F15 -> 0 | H15: 0 | I15: =E15*H15 -> 0 | J15: 0 | K15: =E15*J15 -> 0 | O15: 2 | AA15: 1 | AB15: 1 | AC15: 1 | AZ15: 1 | BA15: =IF(AZ15=1,G15,0) -> 0 | BB15: =IF(AZ15=2,G15,0) -> 0 | BC15: =IF(AZ15=3,G15,0) -> 0 | BD15: =IF(AZ15=4,G15,0) -> 0 | BE15: =IF(AZ15=5,G15,0) -> 0 | CA15: 1 | CB15: 1
C16: Pro osazení betonových obrubníků:(19,00+1,50*4+9,45*2)*0,30*0,20 | E16: 2.634 | M16: Pro osazení betonových obrubníků:(19,00+1,50*4+9,45*2)*0,30*0,20
A17: 5 | B17: 181101102R00 | C17: Úprava pláně v zářezech v hor. 1-4, se zhutněním | D17: m2 | E17: 13.17 | G17: =E17*F17 -> 0 | H17: 0 | I17: =E17*H17 -> 0 | J17: 0 | K17: =E17*J17 -> 0 | O17: 2 | AA17: 1 | AB17: 1 | AC17: 1 | AZ17: 1 | BA17: =IF(AZ17=1,G17,0) -> 0 | BB17: =IF(AZ17=2,G17,0) -> 0 | BC17: =IF(AZ17=3,G17,0) -> 0 | BD17: =IF(AZ17=4,G17,0) -> 0 | BE17: =IF(AZ17=5,G17,0) -> 0 | CA17: 1 | CB17: 1
C18: Pro osazení betonových obrubníků:(19,00+1,50*4+9,45*2)*0,30 | E18: 13.17 | M18: Pro osazení betonových obrubníků:(19,00+1,50*4+9,45*2)*0,30
A19: 6 | B19: 181300012RAC | C19: Rozprostření ornice v rovině tloušťka 20 cm dovoz ornice ze vzdálenosti 5 km, osetí trávou | D19: m2 | E19: 85.75 | G19: =E19*F19 -> 0 | H19: 3e-05 | I19: =E19*H19 -> 0.0025725 | J19: 0 | K19: =E19*J19 -> 0 | O19: 2 | AA19: 1 | AB19: 1 | AC19: 1 | AZ19: 1 | BA19: =IF(AZ19=1,G19,0) -> 0 | BB19: =IF(AZ19=2,G19,0) -> 0 | BC19: =IF(AZ19=3,G19,0) -> 0 | BD19: =IF(AZ19=4,G19,0) -> 0 | BE19: =IF(AZ19=5,G19,0) -> 0 | CA19: 1 | CB19: 1
C20: Včetně naložení ornice na skládce investora a přesunu hmot. | L20: Včetně naložení ornice na skládce investora a přesunu hmot. | O20: 3
C21: Doplnění ornice za obrubou:19,00*3,00+(5,00+6,00)*3,00+4,50*2,50-7,75*2 | E21: 85.75 | M21: Doplnění ornice za obrubou:19,00*3,00+(5,00+6,00)*3,00+4,50*2,50-7,75*2
A22: 7 | B22: 199000002R00 | C22: Poplatek za skládku horniny 1- 7 | D22: m3 | E22: 2.634 | G22: =E22*F22 -> 0 | H22: 0 | I22: =E22*H22 -> 0 | J22: 0 | K22: =E22*J22 -> 0 | O22: 2 | AA22: 1 | AB22: 1 | AC22: 1 | AZ22: 1 | BA22: =IF(AZ22=1,G22,0) -> 0 | BB22: =IF(AZ22=2,G22,0) -> 0 | BC22: =IF(AZ22=3,G22,0) -> 0 | BD22: =IF(AZ22=4,G22,0) -> 0 | BE22: =IF(AZ22=5,G22,0) -> 0 | CA22: 1 | CB22: 1
C23: Pro osazení betonových obrubníků:(19,00+1,50*4+9,45*2)*0,30*0,20 | E23: 2.634 | M23: Pro osazení betonových obrubníků:(19,00+1,50*4+9,45*2)*0,30*0,20
A24: 8 | B24: 979082113RRX | C24: Vodorovná doprava suti po suchu na skládku zhotovitele | D24: t | E24: 6.7408 | G24: =E24*F24 -> 0 | H24: 0 | I24: =E24*H24 -> 0 | J24: 0 | K24: =E24*J24 -> 0 | O24: 2 | AA24: 1 | AB24: 1 | AC24: 1 | AZ24: 1 | BA24: =IF(AZ24=1,G24,0) -> 0 | BB24: =IF(AZ24=2,G24,0) -> 0 | BC24: =IF(AZ24=3,G24,0) -> 0 | BD24: =IF(AZ24=4,G24,0) -> 0 | BE24: =IF(AZ24=5,G24,0) -> 0 | CA24: 1 | CB24: 1
A25: 9 | B25: 979990112ASF | C25: Poplatek za skládku suti - asfalt a beton z kom. | D25: t | E25: 6.7408 | G25: =E25*F25 -> 0 | H25: 0 | I25: =E25*H25 -> 0 | J25: 0 | K25: =E25*J25 -> 0 | O25: 2 | AA25: 1 | AB25: 1 | AC25: 1 | AZ25: 1 | BA25: =IF(AZ25=1,G25,0) -> 0 | BB25: =IF(AZ25=2,G25,0) -> 0 | BC25: =IF(AZ25=3,G25,0) -> 0 | BD25: =IF(AZ25=4,G25,0) -> 0 | BE25: =IF(AZ25=5,G25,0) -> 0 | CA25: 1 | CB25: 1
C26: Položka je určena pro suť o velikosti kusu do 30x30 cm (technologický materiál určený k recyklaci). | L26: Položka je určena pro suť o velikosti kusu do 30x30 cm (technologický materiál určený k recyklaci). | O26: 3
B27: Celkem za | C27: 1 Zemní práce | G27: =SUM(G7:G26) -> 0 | I27: =SUM(I7:I26) -> 0.0025725 | K27: =SUM(K7:K26) -> -6.7408 | O27: 4 | BA27: =SUM(BA7:BA26) -> 0 | BB27: =SUM(BB7:BB26) -> 0 | BC27: =SUM(BC7:BC26) -> 0 | BD27: =SUM(BD7:BD26) -> 0 | BE27: =SUM(BE7:BE26) -> 0
A28: Díl: | B28: 5 | C28: Komunikace | O28: 1
A29: 10 | B29: 564791111R00 | C29: Podklad pro zpevněné plochy z kam.drceného 0-63 mm | D29: m3 | E29: 2.634 | G29: =E29*F29 -> 0 | H29: 2.204 | I29: =E29*H29 -> 5.805336 | J29: 0 | K29: =E29*J29 -> 0 | O29: 2 | AA29: 1 | AB29: 1 | AC29: 1 | AZ29: 1 | BA29: =IF(AZ29=1,G29,0) -> 0 | BB29: =IF(AZ29=2,G29,0) -> 0 | BC29: =IF(AZ29=3,G29,0) -> 0 | BD29: =IF(AZ29=4,G29,0) -> 0 | BE29: =IF(AZ29=5,G29,0) -> 0 | CA29: 1 | CB29: 1
C30: Včetně kameniva, rozprostření a zhutnění podkladu. | L30: Včetně kameniva, rozprostření a zhutnění podkladu. | O30: 3
C31: Pro osazení betonových obrubníků:(19,00+1,50*4+9,45*2)*0,30*0,2 | E31: 2.634 | M31: Pro osazení betonových obrubníků:(19,00+1,50*4+9,45*2)*0,30*0,2
A32: 11 | B32: 565141211RT3 | C32: Podklad z obal kam.ACP 16+,nad 3 m,tl.6 cm plochy 101-200 m2 | D32: m2 | E32: 144.5 | G32: =E32*F32 -> 0 | H32: 0.15826 | I32: =E32*H32 -> 22.86857 | J32: 0 | K32: =E32*J32 -> 0 | O32: 2 | AA32: 1 | AB32: 1 | AC32: 1 | AZ32: 1 | BA32: =IF(AZ32=1,G32,0) -> 0 | BB32: =IF(AZ32=2,G32,0) -> 0 | BC32: =IF(AZ32=3,G32,0) -> 0 | BD32: =IF(AZ32=4,G32,0) -> 0 | BE32: =IF(AZ32=5,G32,0) -> 0 | CA32: 1 | CB32: 1
C33: Křižovatka:16,00*6,00+6,00*5,50+7,75*2 | E33: 144.5 | M33: Křižovatka:16,00*6,00+6,00*5,50+7,75*2
A34: 12 | B34: 572713112R00 | C34: Vyrovnání povrchu krytů kamen. obaleným asfaltem | D34: t | E34: 1.0975 | G34: =E34*F34 -> 0 | H34: 1 | I34: =E34*H34 -> 1.0975 | J34: 0 | K34: =E34*J34 -> 0 | O34: 2 | AA34: 1 | AB34: 1 | AC34: 1 | AZ34: 1 | BA34: =IF(AZ34=1,G34,0) -> 0 | BB34: =IF(AZ34=2,G34,0) -> 0 | BC34: =IF(AZ34=3,G34,0) -> 0 | BD34: =IF(AZ34=4,G34,0) -> 0 | BE34: =IF(AZ34=5,G34,0) -> 0 | CA34: 1 | CB34: 1
C35: Doplnění stávající asfaltové plochy podél nových obrubníků:(19,00+1,50*4+9,45*2)*0,10*0,10*2,5 | E35: 1.0975 | M35: Doplnění stávající asfaltové plochy podél nových obrubníků:(19,00+1,50*4+9,45*2)*0,10*0,10*2,5
A36: 13 | B36: 573231110R00 | C36: Postřik živičný spojovací z emulze 0,3-0,5 kg/m2 | D36: m2 | E36: 144.5 | G36: =E36*F36 -> 0 | H36: 0.0005 | I36: =E36*H36 -> 0.07225 | J36: 0 | K36: =E36*J36 -> 0 | O36: 2 | AA36: 1 | AB36: 1 | AC36: 1 | AZ36: 1 | BA36: =IF(AZ36=1,G36,0) -> 0 | BB36: =IF(AZ36=2,G36,0) -> 0 | BC36: =IF(AZ36=3,G36,0) -> 0 | BD36: =IF(AZ36=4,G36,0) -> 0 | BE36: =IF(AZ36=5,G36,0) -> 0 | CA36: 1 | CB36: 1
C37: Křižovatka:16,00*6,00+6,00*5,50+7,75*2 | E37: 144.5 | M37: Křižovatka:16,00*6,00+6,00*5,50+7,75*2
A38: 14 | B38: 577132111RT3 | C38: Beton asfalt. ACO 11+ obrusný, š.nad 3 m, tl. 4 cm plochy 101-200 m2 | D38: m2 | E38: 144.5 | G38: =E38*F38 -> 0 | H38: 0.10373 | I38: =E38*H38 -> 14.988985 | J38: 0 | K38: =E38*J38 -> 0 | O38: 2 | AA38: 1 | AB38: 1 | AC38: 1 | AZ38: 1 | BA38: =IF(AZ38=1,G38,0) -> 0 | BB38: =IF(AZ38=2,G38,0) -> 0 | BC38: =IF(AZ38=3,G38,0) -> 0 | BD38: =IF(AZ38=4,G38,0) -> 0 | BE38: =IF(AZ38=5,G38,0) -> 0 | CA38: 1 | CB38: 1
C39: Křižovatka:16,00*6,00+6,00*5,50+7,75*2 | E39: 144.5 | M39: Křižovatka:16,00*6,00+6,00*5,50+7,75*2
A40: 15 | B40: 591241111R00 | C40: Kladení dlažby drobné kostky, lože z MC tl. 5 cm | D40: m2 | E40: 26.25 | G40: =E40*F40 -> 0 | H40: 0.31388 | I40: =E40*H40 -> 8.23935 | J40: 0 | K40: =E40*J40 -> 0 | O40: 2 | AA40: 1 | AB40: 1 | AC40: 1 | AZ40: 1 | BA40: =IF(AZ40=1,G40,0) -> 0 | BB40: =IF(AZ40=2,G40,0) -> 0 | BC40: =IF(AZ40=3,G40,0) -> 0 | BD40: =IF(AZ40=4,G40,0) -> 0 | BE40: =IF(AZ40=5,G40,0) -> 0 | CA40: 1 | CB40: 1
C41: V položce jsou zakalkulovány i náklady na dodání hmot pro lože a na dodání téhož materiálu na výplň spár. V položce nejsou zakalkulovány náklady na dodání dlažebních kostek (dležba investora). | L41: V položce jsou zakalkulovány i náklady na dodání hmot pro lože a na dodání téhož materiálu na výplň spár. V položce nejsou zakalkulovány náklady na dodání dlažebních kostek (dležba investora). | O41: 3
C42: Křižovatka - náběhy:6,00*1,50*2+5,50*1,50*1 | E42: 26.25 | M42: Křižovatka - náběhy:6,00*1,50*2+5,50*1,50*1
A43: 16 | B43: 979084216R00 | C43: Vodorovná doprava vybour. hmot po suchu do 5 km | D43: t | E43: 6.5625 | G43: =E43*F43 -> 0 | H43: 0 | I43: =E43*H43 -> 0 | J43: 0 | K43: =E43*J43 -> 0 | O43: 2 | AA43: 1 | AB43: 1 | AC43: 1 | AZ43: 1 | BA43: =IF(AZ43=1,G43,0) -> 0 | BB43: =IF(AZ43=2,G43,0) -> 0 | BC43: =IF(AZ43=3,G43,0) -> 0 | BD43: =IF(AZ43=4,G43,0) -> 0 | BE43: =IF(AZ43=5,G43,0) -> 0 | CA43: 1 | CB43: 1
A44: 17 | B44: 979087213R00 | C44: Nakládání vybour.hmot na dop.prostředky-komunikace | D44: t | E44: 6.5625 | G44: =E44*F44 -> 0 | H44: 0 | I44: =E44*H44 -> 0 | J44: 0 | K44: =E44*J44 -> 0 | O44: 2 | AA44: 1 | AB44: 1 | AC44: 1 | AZ44: 1 | BA44: =IF(AZ44=1,G44,0) -> 0 | BB44: =IF(AZ44=2,G44,0) -> 0 | BC44: =IF(AZ44=3,G44,0) -> 0 | BD44: =IF(AZ44=4,G44,0) -> 0 | BE44: =IF(AZ44=5,G44,0) -> 0 | CA44: 1 | CB44: 1
B45: Celkem za | C45: 5 Komunikace | G45: =SUM(G28:G44) -> 0 | I45: =SUM(I28:I44) -> 53.071991 | K45: =SUM(K28:K44) -> 0 | O45: 4 | BA45: =SUM(BA28:BA44) -> 0 | BB45: =SUM(BB28:BB44) -> 0 | BC45: =SUM(BC28:BC44) -> 0 | BD45: =SUM(BD28:BD44) -> 0 | BE45: =SUM(BE28:BE44) -> 0
A46: Díl: | B46: 8 | C46: Trubní vedení | O46: 1
A47: 18 | B47: 899431111R00 | C47: Výšková úprava do 20 cm, zvýšení krytu šoupěte | D47: kus | E47: 2 | G47: =E47*F47 -> 0 | H47: 0.3159 | I47: =E47*H47 -> 0.6318 | J47: 0 | K47: =E47*J47 -> 0 | O47: 2 | AA47: 1 | AB47: 1 | AC47: 1 | AZ47: 1 | BA47: =IF(AZ47=1,G47,0) -> 0 | BB47: =IF(AZ47=2,G47,0) -> 0 | BC47: =IF(AZ47=3,G47,0) -> 0 | BD47: =IF(AZ47=4,G47,0) -> 0 | BE47: =IF(AZ47=5,G47,0) -> 0 | CA47: 1 | CB47: 1
B48: Celkem za | C48: 8 Trubní vedení | G48: =SUM(G46:G47) -> 0 | I48: =SUM(I46:I47) -> 0.6318 | K48: =SUM(K46:K47) -> 0 | O48: 4 | BA48: =SUM(BA46:BA47) -> 0 | BB48: =SUM(BB46:BB47) -> 0 | BC48: =SUM(BC46:BC47) -> 0 | BD48: =SUM(BD46:BD47) -> 0 | BE48: =SUM(BE46:BE47) -> 0
A49: Díl: | B49: 91 | C49: Doplňující práce na komunikaci | O49: 1
A50: 19 | B50: 917862111RT7 | C50: Osazení stojat. obrub.bet. s opěrou,lože z C 12/15 včetně obrubníku ABO 2 - 15 100/15/25 | D50: m | E50: 43.9 | G50: =E50*F50 -> 0 | H50: 0.26981 | I50: =E50*H50 -> 11.844659 | J50: 0 | K50: =E50*J50 -> 0 | O50: 2 | AA50: 1 | AB50: 1 | AC50: 1 | AZ50: 1 | BA50: =IF(AZ50=1,G50,0) -> 0 | BB50: =IF(AZ50=2,G50,0) -> 0 | BC50: =IF(AZ50=3,G50,0) -> 0 | BD50: =IF(AZ50=4,G50,0) -> 0 | BE50: =IF(AZ50=5,G50,0) -> 0 | CA50: 1 | CB50: 1
C51: Osazení obrubníků:19,00+1,50*4+9,45*2 | E51: 43.9 | M51: Osazení obrubníků:19,00+1,50*4+9,45*2
A52: 20 | B52: 918101111R00 | C52: Lože pod obrubníky nebo obruby dlažeb z C 12/15 | D52: m3 | E52: 1.0975 | G52: =E52*F52 -> 0 | H52: 2.525 | I52: =E52*H52 -> 2.7711875 | J52: 0 | K52: =E52*J52 -> 0 | O52: 2 | AA52: 1 | AB52: 1 | AC52: 1 | AZ52: 1 | BA52: =IF(AZ52=1,G52,0) -> 0 | BB52: =IF(AZ52=2,G52,0) -> 0 | BC52: =IF(AZ52=3,G52,0) -> 0 | BD52: =IF(AZ52=4,G52,0) -> 0 | BE52: =IF(AZ52=5,G52,0) -> 0 | CA52: 1 | CB52: 1
C53: Osazení obrubníků:(19,00+1,50*4+9,45*2)*0,25*0,10 | E53: 1.0975 | M53: Osazení obrubníků:(19,00+1,50*4+9,45*2)*0,25*0,10
A54: 21 | B54: 919731122R00 | C54: Zarovnání styčné plochy živičné tl. do 10 cm | D54: m | E54: 78.9 | G54: =E54*F54 -> 0 | H54: 0 | I54: =E54*H54 -> 0 | J54: 0 | K54: =E54*J54 -> 0 | O54: 2 | AA54: 1 | AB54: 1 | AC54: 1 | AZ54: 1 | BA54: =IF(AZ54=1,G54,0) -> 0 | BB54: =IF(AZ54=2,G54,0) -> 0 | BC54: =IF(AZ54=3,G54,0) -> 0 | BD54: =IF(AZ54=4,G54,0) -> 0 | BE54: =IF(AZ54=5,G54,0) -> 0 | CA54: 1 | CB54: 1
C55: Pro osazení betonových obrubníků:19,00+1,50*4+9,45*2 | E55: 43.9 | M55: Pro osazení betonových obrubníků:19,00+1,50*4+9,45*2
C56: Křižovatka - Náběhy:6,00*2*2+5,50*2*1 | E56: 35 | M56: Křižovatka - Náběhy:6,00*2*2+5,50*2*1
A57: 22 | B57: 919735112R00 | C57: Řezání stávajícího živičného krytu tl. 5 - 10 cm | D57: m | E57: 78.9 | G57: =E57*F57 -> 0 | H57: 0 | I57: =E57*H57 -> 0 | J57: 0 | K57: =E57*J57 -> 0 | O57: 2 | AA57: 1 | AB57: 1 | AC57: 1 | AZ57: 1 | BA57: =IF(AZ57=1,G57,0) -> 0 | BB57: =IF(AZ57=2,G57,0) -> 0 | BC57: =IF(AZ57=3,G57,0) -> 0 | BD57: =IF(AZ57=4,G57,0) -> 0 | BE57: =IF(AZ57=5,G57,0) -> 0 | CA57: 1 | CB57: 1
C58: Pro osazení betonových obrubníků:19,00+1,50*4+9,45*2 | E58: 43.9 | M58: Pro osazení betonových obrubníků:19,00+1,50*4+9,45*2
C59: Křižovatka - Náběhy:6,00*2*2+5,50*2*1 | E59: 35 | M59: Křižovatka - Náběhy:6,00*2*2+5,50*2*1
B60: Celkem za | C60: 91 Doplňující práce na komunikaci | G60: =SUM(G49:G59) -> 0 | I60: =SUM(I49:I59) -> 14.6158465 | K60: =SUM(K49:K59) -> 0 | O60: 4 | BA60: =SUM(BA49:BA59) -> 0 | BB60: =SUM(BB49:BB59) -> 0 | BC60: =SUM(BC49:BC59) -> 0 | BD60: =SUM(BD49:BD59) -> 0 | BE60: =SUM(BE49:BE59) -> 0
A61: Díl: | B61: 93 | C61: Dokončovací práce inženýrských staveb | O61: 1
A62: 23 | B62: 938908411R00 | C62: Očištění povrchu krytu saponátovým roztokem | D62: m2 | E62: 144.5 | G62: =E62*F62 -> 0 | H62: 1e-05 | I62: =E62*H62 -> 0.001445 | J62: 0 | K62: =E62*J62 -> 0 | O62: 2 | AA62: 1 | AB62: 1 | AC62: 1 | AZ62: 1 | BA62: =IF(AZ62=1,G62,0) -> 0 | BB62: =IF(AZ62=2,G62,0) -> 0 | BC62: =IF(AZ62=3,G62,0) -> 0 | BD62: =IF(AZ62=4,G62,0) -> 0 | BE62: =IF(AZ62=5,G62,0) -> 0 | CA62: 1 | CB62: 1
C63: Křižovatka:16,00*6,00+6,00*5,50+7,75*2 | E63: 144.5 | M63: Křižovatka:16,00*6,00+6,00*5,50+7,75*2
A64: 24 | B64: 938909311R00 | C64: Odstranění nánosu z povrchu živičného nebo beton. | D64: m2 | E64: 144.5 | G64: =E64*F64 -> 0 | H64: 0 | I64: =E64*H64 -> 0 | J64: 0 | K64: =E64*J64 -> 0 | O64: 2 | AA64: 1 | AB64: 1 | AC64: 1 | AZ64: 1 | BA64: =IF(AZ64=1,G64,0) -> 0 | BB64: =IF(AZ64=2,G64,0) -> 0 | BC64: =IF(AZ64=3,G64,0) -> 0 | BD64: =IF(AZ64=4,G64,0) -> 0 | BE64: =IF(AZ64=5,G64,0) -> 0 | CA64: 1 | CB64: 1
C65: Křižovatka:16,00*6,00+6,00*5,50+7,75*2 | E65: 144.5 | M65: Křižovatka:16,00*6,00+6,00*5,50+7,75*2
B66: Celkem za | C66: 93 Dokončovací práce inženýrských staveb | G66: =SUM(G61:G65) -> 0 | I66: =SUM(I61:I65) -> 0.001445 | K66: =SUM(K61:K65) -> 0 | O66: 4 | BA66: =SUM(BA61:BA65) -> 0 | BB66: =SUM(BB61:BB65) -> 0 | BC66: =SUM(BC61:BC65) -> 0 | BD66: =SUM(BD61:BD65) -> 0 | BE66: =SUM(BE61:BE65) -> 0
A67: Díl: | B67: 99 | C67: Staveništní přesun hmot | O67: 1
A68: 25 | B68: 998225111R00 | C68: Přesun hmot, pozemní komunikace, kryt živičný | D68: t | E68: 68.323655 | G68: =E68*F68 -> 0 | H68: 0 | I68: =E68*H68 -> 0 | K68: =E68*J68 -> 0 | O68: 2 | AA68: 7 | AB68: 1 | AC68: 2 | AZ68: 1 | BA68: =IF(AZ68=1,G68,0) -> 0 | BB68: =IF(AZ68=2,G68,0) -> 0 | BC68: =IF(AZ68=3,G68,0) -> 0 | BD68: =IF(AZ68=4,G68,0) -> 0 | BE68: =IF(AZ68=5,G68,0) -> 0 | CA68: 7 | CB68: 1
B69: Celkem za | C69: 99 Staveništní přesun hmot | G69: =SUM(G67:G68) -> 0 | I69: =SUM(I67:I68) -> 0 | K69: =SUM(K67:K68) -> 0 | O69: 4 | BA69: =SUM(BA67:BA68) -> 0 | BB69: =SUM(BB67:BB68) -> 0 | BC69: =SUM(BC67:BC68) -> 0 | BD69: =SUM(BD67:BD68) -> 0 | BE69: =SUM(BE67:BE68) -> 0

Sheet 101.08 101.08.5 KL
A1: POLOŽKOVÝ ROZPOČET
A2: Rozpočet | C2: 101.08.5 | D2: Komunikace - Úsek č. 3 | F2: JKSO | G2: 822.29
A4: Objekt | F4: SKP
A5: 101.08 | C5: Komunikace - ul. Vladimíra Krajiny | F5: Měrná jednotka | G5: m2
A6: Stavba | F6: Počet jednotek | G6: 0
A7: 3268 | C7: Komunikace a IS v rozvojové lokalitě Hruštice - Ká | F7: Náklady na m.j. | G7: =IF(G6=0,,ROUND((F30+F32)/G6,1)) -> 0
A8: Projektant | C8: PROFES PROJEKT spol.s r.o. | F8: Typ rozpočtu
A9: Zpracovatel projektu
A10: Objednatel | C10: Město TURNOV
A11: Dodavatel | C11: . | F11: Zakázkové číslo
A12: Rozpočtoval | F12: Počet listů
A13: ROZPOČTOVÉ NÁKLADY
A14: Základní rozpočtové náklady
B15: HSV celkem | C15: ='101.08 101.08.5 Rek'!E13 -> 0
A16: Z | B16: PSV celkem | C16: ='101.08 101.08.5 Rek'!F13 -> 0
A17: R | B17: M práce celkem | C17: ='101.08 101.08.5 Rek'!H13 -> 0
A18: N | B18: M dodávky celkem | C18: ='101.08 101.08.5 Rek'!G13 -> 0
A19: ZRN celkem | C19: =SUM(C15:C18) -> 0
A21: HZS | C21: ='101.08 101.08.5 Rek'!I13 -> 0
A22: ZRN+HZS | C22: =C19+C21 -> 0
A23: ZRN+ost.náklady+HZS | C23: =C22+G23 -> 0
A24: Vypracoval | D24: Za zhotovitele | F24: Za objednatele
A25: Jméno : | D25: Jméno : | F25: Jméno :
A26: Datum : | D26: Datum : | F26: Datum :
A28: Podpis : | D28: Podpis: | F28: Podpis:
A30: Základ pro DPH | C30: 21 | D30: % | F30: =C23-F32 -> 0
A31: DPH | C31: =C30 -> 21 | D31: % | F31: =ROUND(PRODUCT(F30,C31/100),0) -> 0
A32: Základ pro DPH | C32: 0 | D32: % | F32: 0
A33: DPH | C33: =C32 -> 0 | D33: % | F33: =ROUND(PRODUCT(F32,C33/100),0) -> 0
A34: CENA ZA OBJEKT CELKEM | F34: =ROUND(SUM(F30:F33),0) -> 0
A36: Poznámka :

Sheet 101.08 101.08.5 Rek
A1: Stavba : | C1: 3268 Komunikace a IS v rozvojové lokalitě Hruštice - Ká | G1: Rozpočet : | H1: 101.08.5
A2: Objekt : | C2: 101.08 Komunikace - ul. Vladimíra Krajiny | G2: Komunikace - Úsek č. 3
A4: REKAPITULACE STAVEBNÍCH DÍLŮ
B6: Stavební díl | E6: HSV | F6: PSV | G6: Dodávka | H6: Montáž | I6: HZS
A7: ='101.08 101.08.5 Pol'!B7 -> 1 | B7: ='101.08 101.08.5 Pol'!C7 -> Zemní práce | E7: ='101.08 101.08.5 Pol'!BA32 -> 0 | F7: ='101.08 101.08.5 Pol'!BB32 -> 0 | G7: ='101.08 101.08.5 Pol'!BC32 -> 0 | H7: ='101.08 101.08.5 Pol'!BD32 -> 0 | I7: ='101.08 101.08.5 Pol'!BE32 -> 0
A8: ='101.08 101.08.5 Pol'!B33 -> 5 | B8: ='101.08 101.08.5 Pol'!C33 -> Komunikace | E8: ='101.08 101.08.5 Pol'!BA49 -> 0 | F8: ='101.08 101.08.5 Pol'!BB49 -> 0 | G8: ='101.08 101.08.5 Pol'!BC49 -> 0 | H8: ='101.08 101.08.5 Pol'!BD49 -> 0 | I8: ='101.08 101.08.5 Pol'!BE49 -> 0
A9: ='101.08 101.08.5 Pol'!B50 -> 8 | B9: ='101.08 101.08.5 Pol'!C50 -> Trubní vedení | E9: ='101.08 101.08.5 Pol'!BA56 -> 0 | F9: ='101.08 101.08.5 Pol'!BB56 -> 0 | G9: ='101.08 101.08.5 Pol'!BC56 -> 0 | H9: ='101.08 101.08.5 Pol'!BD56 -> 0 | I9: ='101.08 101.08.5 Pol'!BE56 -> 0
A10: ='101.08 101.08.5 Pol'!B57 -> 91 | B10: ='101.08 101.08.5 Pol'!C57 -> Doplňující práce na komunikaci | E10: ='101.08 101.08.5 Pol'!BA66 -> 0 | F10: ='101.08 101.08.5 Pol'!BB66 -> 0 | G10: ='101.08 101.08.5 Pol'!BC66 -> 0 | H10: ='101.08 101.08.5 Pol'!BD66 -> 0 | I10: ='101.08 101.08.5 Pol'!BE66 -> 0
A11: ='101.08 101.08.5 Pol'!B67 -> 93 | B11: ='101.08 101.08.5 Pol'!C67 -> Dokončovací práce inženýrských staveb | E11: ='101.08 101.08.5 Pol'!BA72 -> 0 | F11: ='101.08 101.08.5 Pol'!BB72 -> 0 | G11: ='101.08 101.08.5 Pol'!BC72 -> 0 | H11: ='101.08 101.08.5 Pol'!BD72 -> 0 | I11: ='101.08 101.08.5 Pol'!BE72 -> 0
A12: ='101.08 101.08.5 Pol'!B73 -> 99 | B12: ='101.08 101.08.5 Pol'!C73 -> Staveništní přesun hmot | E12: ='101.08 101.08.5 Pol'!BA75 -> 0 | F12: ='101.08 101.08.5 Pol'!BB75 -> 0 | G12: ='101.08 101.08.5 Pol'!BC75 -> 0 | H12: ='101.08 101.08.5 Pol'!BD75 -> 0 | I12: ='101.08 101.08.5 Pol'!BE75 -> 0
B13: CELKEM OBJEKT | E13: =SUM(E7:E12) -> 0 | F13: =SUM(F7:F12) -> 0 | G13: =SUM(G7:G12) -> 0 | H13: =SUM(H7:H12) -> 0 | I13: =SUM(I7:I12) -> 0

Sheet 101.08 101.08.5 Pol
A1: Položkový rozpočet
A3: Stavba : | C3: 3268 Komunikace a IS v rozvojové lokalitě Hruštice - Ká | E3: Rozpočet: | F3: ='101.08 101.08.5 Rek'!H1 -> 101.08.5
A4: Objekt : | C4: 101.08 Komunikace - ul. Vladimíra Krajiny | E4: ='101.08 101.08.5 Rek'!G2 -> Komunikace - Úsek č. 3
A6: P.č. | B6: Číslo položky | C6: Název položky | D6: MJ | E6: množství | F6: cena / MJ | G6: celkem (Kč) | H6: Jednotková hmotnost | I6: Celková hmotnost | J6: Jednotková dem.hmot. | K6: Celková dem.hmot.
A7: Díl: | B7: 1 | C7: Zemní práce | O7: 1
A8: 1 | B8: 113108310R00 | C8: Odstranění asfaltové vrstvy pl. do 50 m2, tl.10 cm | D8: m2 | E8: 2.8 | G8: =E8*F8 -> 0 | H8: 0 | I8: =E8*H8 -> 0 | J8: -0.22 | K8: =E8*J8 -> -0.616 | O8: 2 | AA8: 1 | AB8: 1 | AC8: 1 | AZ8: 1 | BA8: =IF(AZ8=1,G8,0) -> 0 | BB8: =IF(AZ8=2,G8,0) -> 0 | BC8: =IF(AZ8=3,G8,0) -> 0 | BD8: =IF(AZ8=4,G8,0) -> 0 | BE8: =IF(AZ8=5,G8,0) -> 0 | CA8: 1 | CB8: 1
C9: Pro osazení betonových obrubníků:14,00*0,10*2 | E9: 2.8 | M9: Pro osazení betonových obrubníků:14,00*0,10*2
A10: 2 | B10: 122202201R00 | C10: Odkopávky pro silnice v hor. 3 do 100 m3 | D10: m3 | E10: 7.08 | G10: =E10*F10 -> 0 | H10: 0 | I10: =E10*H10 -> 0 | J10: 0 | K10: =E10*J10 -> 0 | O10: 2 | AA10: 1 | AB10: 1 | AC10: 1 | AZ10: 1 | BA10: =IF(AZ10=1,G10,0) -> 0 | BB10: =IF(AZ10=2,G10,0) -> 0 | BC10: =IF(AZ10=3,G10,0) -> 0 | BD10: =IF(AZ10=4,G10,0) -> 0 | BE10: =IF(AZ10=5,G10,0) -> 0 | CA10: 1 | CB10: 1
C11: Pro osazení betonových obrubníků:14,00*0,30*0,20*2 | E11: 1.68 | M11: Pro osazení betonových obrubníků:14,00*0,30*0,20*2
C12: Pro vjezdy:6,00*3,00*0,30 | E12: 5.4 | M12: Pro vjezdy:6,00*3,00*0,30
A13: 3 | B13: 122202209R00 | C13: Příplatek za lepivost - odkop. pro silnice v hor.3 | D13: m3 | E13: 3.54 | G13: =E13*F13 -> 0 | H13: 0 | I13: =E13*H13 -> 0 | J13: 0 | K13: =E13*J13 -> 0 | O13: 2 | AA13: 1 | AB13: 1 | AC13: 1 | AZ13: 1 | BA13: =IF(AZ13=1,G13,0) -> 0 | BB13: =IF(AZ13=2,G13,0) -> 0 | BC13: =IF(AZ13=3,G13,0) -> 0 | BD13: =IF(AZ13=4,G13,0) -> 0 | BE13: =IF(AZ13=5,G13,0) -> 0 | CA13: 1 | CB13: 1
C14: Pro osazení betonových obrubníků:14,00*0,30*0,20*2*0,5 | E14: 0.84 | M14: Pro osazení betonových obrubníků:14,00*0,30*0,20*2*0,5
C15: Pro vjezdy:6,00*3,00*0,30*0,5 | E15: 2.7 | M15: Pro vjezdy:6,00*3,00*0,30*0,5
A16: 4 | B16: 162701105RSZ | C16: Vodorovné přemístění výkopku z hor.1-7 na skládku zhotovitele | D16: m3 | E16: 7.08 | G16: =E16*F16 -> 0 | H16: 0 | I16: =E16*H16 -> 0 | J16: 0 | K16: =E16*J16 -> 0 | O16: 2 | AA16: 1 | AB16: 1 | AC16: 1 | AZ16: 1 | BA16: =IF(AZ16=1,G16,0) -> 0 | BB16: =IF(AZ16=2,G16,0) -> 0 | BC16: =IF(AZ16=3,G16,0) -> 0 | BD16: =IF(AZ16=4,G16,0) -> 0 | BE16: =IF(AZ16=5,G16,0) -> 0 | CA16: 1 | CB16: 1
C17: Pro osazení betonových obrubníků:14,00*0,30*0,20*2 | E17: 1.68 | M17: Pro osazení betonových obrubníků:14,00*0,30*0,20*2
C18: Pro vjezdy:6,00*3,00*0,30 | E18: 5.4 | M18: Pro vjezdy:6,00*3,00*0,30
A19: 5 | B19: 181101102R00 | C19: Úprava pláně v zářezech v hor. 1-4, se zhutněním | D19: m2 | E19: 26.4 | G19: =E19*F19 -> 0 | H19: 0 | I19: =E19*H19 -> 0 | J19: 0 | K19: =E19*J19 -> 0 | O19: 2 | AA19: 1 | AB19: 1 | AC19: 1 | AZ19: 1 | BA19: =IF(AZ19=1,G19,0) -> 0 | BB19: =IF(AZ19=2,G19,0) -> 0 | BC19: =IF(AZ19=3,G19,0) -> 0 | BD19: =IF(AZ19=4,G19,0) -> 0 | BE19: =IF(AZ19=5,G19,0) -> 0 | CA19: 1 | CB19: 1
C20: Pro osazení betonových obrubníků:14,00*0,30*2 | E20: 8.4 | M20: Pro osazení betonových obrubníků:14,00*0,30*2
C21: Pro vjezdy:6,00*3,00 | E21: 18 | M21: Pro vjezdy:6,00*3,00
A22: 6 | B22: 181300012RAC | C22: Rozprostření ornice v rovině tloušťka 20 cm dovoz ornice ze vzdálenosti 5 km, osetí trávou | D22: m2 | E22: 66 | G22: =E22*F22 -> 0 | H22: 3e-05 | I22: =E22*H22 -> 0.00198 | J22: 0 | K22: =E22*J22 -> 0 | O22: 2 | AA22: 1 | AB22: 1 | AC22: 1 | AZ22: 1 | BA22: =IF(AZ22=1,G22,0) -> 0 | BB22: =IF(AZ22=2,G22,0) -> 0 | BC22: =IF(AZ22=3,G22,0) -> 0 | BD22: =IF(AZ22=4,G22,0) -> 0 | BE22: =IF(AZ22=5,G22,0) -> 0 | CA22: 1 | CB22: 1
C23: Včetně naložení ornice na skládce investora a přesunu hmot. | L23: Včetně naložení ornice na skládce investora a přesunu hmot. | O23: 3
C24: Doplnění ornice za obrubou:14,00*2*3,00 | E24: 84 | M24: Doplnění ornice za obrubou:14,00*2*3,00
C25: Odpočet vjezdy:-6,00*3,00 | E25: -18 | M25: Odpočet vjezdy:-6,00*3,00
A26: 7 | B26: 199000002R00 | C26: Poplatek za skládku horniny 1- 7 | D26: m3 | E26: 7.08 | G26: =E26*F26 -> 0 | H26: 0 | I26: =E26*H26 -> 0 | J26: 0 | K26: =E26*J26 -> 0 | O26: 2 | AA26: 1 | AB26: 1 | AC26: 1 | AZ26: 1 | BA26: =IF(AZ26=1,G26,0) -> 0 | BB26: =IF(AZ26=2,G26,0) -> 0 | BC26: =IF(AZ26=3,G26,0) -> 0 | BD26: =IF(AZ26=4,G26,0) -> 0 | BE26: =IF(AZ26=5,G26,0) -> 0 | CA26: 1 | CB26: 1
C27: Pro osazení betonových obrubníků:14,00*0,30*0,20*2 | E27: 1.68 | M27: Pro osazení betonových obrubníků:14,00*0,30*0,20*2
C28: Pro vjezdy:6,00*3,00*0,30 | E28: 5.4 | M28: Pro vjezdy:6,00*3,00*0,30
A29: 8 | B29: 979082113RRX | C29: Vodorovná doprava suti po suchu na skládku zhotovitele | D29: t | E29: 0.616 | G29: =E29*F29 -> 0 | H29: 0 | I29: =E29*H29 -> 0 | J29: 0 | K29: =E29*J29 -> 0 | O29: 2 | AA29: 1 | AB29: 1 | AC29: 1 | AZ29: 1 | BA29: =IF(AZ29=1,G29,0) -> 0 | BB29: =IF(AZ29=2,G29,0) -> 0 | BC29: =IF(AZ29=3,G29,0) -> 0 | BD29: =IF(AZ29=4,G29,0) -> 0 | BE29: =IF(AZ29=5,G29,0) -> 0 | CA29: 1 | CB29: 1
A30: 9 | B30: 979990112ASF | C30: Poplatek za skládku suti - asfalt a beton z kom. | D30: t | E30: 0.616 | G30: =E30*F30 -> 0 | H30: 0 | I30: =E30*H30 -> 0 | J30: 0 | K30: =E30*J30 -> 0 | O30: 2 | AA30: 1 | AB30: 1 | AC30: 1 | AZ30: 1 | BA30: =IF(AZ30=1,G30,0) -> 0 | BB30: =IF(AZ30=2,G30,0) -> 0 | BC30: =IF(AZ30=3,G30,0) -> 0 | BD30: =IF(AZ30=4,G30,0) -> 0 | BE30: =IF(AZ30=5,G30,0) -> 0 | CA30: 1 | CB30: 1
C31: Položka je určena pro suť o velikosti kusu do 30x30 cm (technologický materiál určený k recyklaci). | L31: Položka je určena pro suť o velikosti kusu do 30x30 cm (technologický materiál určený k recyklaci). | O31: 3
B32: Celkem za | C32: 1 Zemní práce | G32: =SUM(G7:G31) -> 0 | I32: =SUM(I7:I31) -> 0.00198 | K32: =SUM(K7:K31) -> -0.616 | O32: 4 | BA32: =SUM(BA7:BA31) -> 0 | BB32: =SUM(BB7:BB31) -> 0 | BC32: =SUM(BC7:BC31) -> 0 | BD32: =SUM(BD7:BD31) -> 0 | BE32: =SUM(BE7:BE31) -> 0
A33: Díl: | B33: 5 | C33: Komunikace | O33: 1
A34: 10 | B34: 564791111R00 | C34: Podklad pro zpevněné plochy z kam.drceného 0-63 mm | D34: m3 | E34: 1.68 | G34: =E34*F34 -> 0 | H34: 2.204 | I34: =E34*H34 -> 3.70272 | J34: 0 | K34: =E34*J34 -> 0 | O34: 2 | AA34: 1 | AB34: 1 | AC34: 1 | AZ34: 1 | BA34: =IF(AZ34=1,G34,0) -> 0 | BB34: =IF(AZ34=2,G34,0) -> 0 | BC34: =IF(AZ34=3,G34,0) -> 0 | BD34: =IF(AZ34=4,G34,0) -> 0 | BE34: =IF(AZ34=5,G34,0) -> 0 | CA34: 1 | CB34: 1
C35: Včetně kameniva, rozprostření a zhutnění podkladu. | L35: Včetně kameniva, rozprostření a zhutnění podkladu. | O35: 3
C36: Pro osazení betonových obrubníků:14,00*0,30*2*0,20 | E36: 1.68 | M36: Pro osazení betonových obrubníků:14,00*0,30*2*0,20
A37: 11 | B37: 564871111RT4 | C37: Podklad ze štěrkodrti po zhutnění tloušťky 25 cm štěrkodrť frakce 0-63 mm | D37: m2 | E37: 18 | G37: =E37*F37 -> 0 | H37: 0.55125 | I37: =E37*H37 -> 9.9225 | J37: 0 | K37: =E37*J37 -> 0 | O37: 2 | AA37: 1 | AB37: 1 | AC37: 1 | AZ37: 1 | BA37: =IF(AZ37=1,G37,0) -> 0 | BB37: =IF(AZ37=2,G37,0) -> 0 | BC37: =IF(AZ37=3,G37,0) -> 0 | BD37: =IF(AZ37=4,G37,0) -> 0 | BE37: =IF(AZ37=5,G37,0) -> 0 | CA37: 1 | CB37: 1
C38: Pro vjezdy:6,00*3,00 | E38: 18 | M38: Pro vjezdy:6,00*3,00
A39: 12 | B39: 565151211R00 | C39: Podklad z obal kam.ACP 16+,nad 3 m,tl.7 cm | D39: m2 | E39: 18 | G39: =E39*F39 -> 0 | H39: 0.18463 | I39: =E39*H39 -> 3.32334 | J39: 0 | K39: =E39*J39 -> 0 | O39: 2 | AA39: 1 | AB39: 1 | AC39: 1 | AZ39: 1 | BA39: =IF(AZ39=1,G39,0) -> 0 | BB39: =IF(AZ39=2,G39,0) -> 0 | BC39: =IF(AZ39=3,G39,0) -> 0 | BD39: =IF(AZ39=4,G39,0) -> 0 | BE39: =IF(AZ39=5,G39,0) -> 0 | CA39: 1 | CB39: 1
C40: Pro vjezdy:6,00*3,00 | E40: 18 | M40: Pro vjezdy:6,00*3,00
A41: 13 | B41: 572713112R00 | C41: Vyrovnání povrchu krytů kamen. obaleným asfaltem | D41: t | E41: 0.7 | G41: =E41*F41 -> 0 | H41: 1 | I41: =E41*H41 -> 0.7 | J41: 0 | K41: =E41*J41 -> 0 | O41: 2 | AA41: 1 | AB41: 1 | AC41: 1 | AZ41: 1 | BA41: =IF(AZ41=1,G41,0) -> 0 | BB41: =IF(AZ41=2,G41,0) -> 0 | BC41: =IF(AZ41=3,G41,0) -> 0 | BD41: =IF(AZ41=4,G41,0) -> 0 | BE41: =IF(AZ41=5,G41,0) -> 0 | CA41: 1 | CB41: 1
C42: Doplnění stávající asfaltové plochy podél nových obrubníků:14,00*2*0,10*0,10*2,5 | E42: 0.7 | M42: Doplnění stávající asfaltové plochy podél nových obrubníků:14,00*2*0,10*0,10*2,5
A43: 14 | B43: 573231110R00 | C43: Postřik živičný spojovací z emulze 0,3-0,5 kg/m2 | D43: m2 | E43: 102 | G43: =E43*F43 -> 0 | H43: 0.0005 | I43: =E43*H43 -> 0.051 | J43: 0 | K43: =E43*J43 -> 0 | O43: 2 | AA43: 1 | AB43: 1 | AC43: 1 | AZ43: 1 | BA43: =IF(AZ43=1,G43,0) -> 0 | BB43: =IF(AZ43=2,G43,0) -> 0 | BC43: =IF(AZ43=3,G43,0) -> 0 | BD43: =IF(AZ43=4,G43,0) -> 0 | BE43: =IF(AZ43=5,G43,0) -> 0 | CA43: 1 | CB43: 1
C44: Komunikace:14,00*6,00 | E44: 84 | M44: Komunikace:14,00*6,00
C45: Vjezdy:6,00*3,00 | E45: 18 | M45: Vjezdy:6,00*3,00
A46: 15 | B46: 577132111RT2 | C46: Beton asfalt. ACO 11+ obrusný, š.nad 3 m, tl. 4 cm plochy 201-1000 m2 | D46: m2 | E46: 102 | G46: =E46*F46 -> 0 | H46: 0.10373 | I46: =E46*H46 -> 10.58046 | J46: 0 | K46: =E46*J46 -> 0 | O46: 2 | AA46: 1 | AB46: 1 | AC46: 1 | AZ46: 1 | BA46: =IF(AZ46=1,G46,0) -> 0 | BB46: =IF(AZ46=2,G46,0) -> 0 | BC46: =IF(AZ46=3,G46,0) -> 0 | BD46: =IF(AZ46=4,G46,0) -> 0 | BE46: =IF(AZ46=5,G46,0) -> 0 | CA46: 1 | CB46: 1
C47: Komunikace:14,00*6,00 | E47: 84 | M47: Komunikace:14,00*6,00
C48: Vjezdy:6,00*3,00 | E48: 18 | M48: Vjezdy:6,00*3,00
B49: Celkem za | C49: 5 Komunikace | G49: =SUM(G33:G48) -> 0 | I49: =SUM(I33:I48) -> 28.28002 | K49: =SUM(K33:K48) -> 0 | O49: 4 | BA49: =SUM(BA33:BA48) -> 0 | BB49: =SUM(BB33:BB48) -> 0 | BC49: =SUM(BC33:BC48) -> 0 | BD49: =SUM(BD33:BD48) -> 0 | BE49: =SUM(BE33:BE48) -> 0
A50: Díl: | B50: 8 | C50: Trubní vedení | O50: 1
A51: 16 | B51: 899231111R00 | C51: Výšková úprava vstupu do 20 cm, zvýšení mříže | D51: kus | E51: 1 | G51: =E51*F51 -> 0 | H51: 0.43382 | I51: =E51*H51 -> 0.43382 | J51: 0 | K51: =E51*J51 -> 0 | O51: 2 | AA51: 1 | AB51: 1 | AC51: 1 | AZ51: 1 | BA51: =IF(AZ51=1,G51,0) -> 0 | BB51: =IF(AZ51=2,G51,0) -> 0 | BC51: =IF(AZ51=3,G51,0) -> 0 | BD51: =IF(AZ51=4,G51,0) -> 0 | BE51: =IF(AZ51=5,G51,0) -> 0 | CA51: 1 | CB51: 1
A52: 17 | B52: 899431111R00 | C52: Výšková úprava do 20 cm, zvýšení krytu šoupěte | D52: kus | E52: 2 | G52: =E52*F52 -> 0 | H52: 0.3159 | I52: =E52*H52 -> 0.6318 | J52: 0 | K52: =E52*J52 -> 0 | O52: 2 | AA52: 1 | AB52: 1 | AC52: 1 | AZ52: 1 | BA52: =IF(AZ52=1,G52,0) -> 0 | BB52: =IF(AZ52=2,G52,0) -> 0 | BC52: =IF(AZ52=3,G52,0) -> 0 | BD52: =IF(AZ52=4,G52,0) -> 0 | BE52: =IF(AZ52=5,G52,0) -> 0 | CA52: 1 | CB52: 1
A53: 18 | B53: 939431111RT2 | C53: Výměna kanaliz.poklopu za samonivelační, hl.200 mm včetně dodávky litinového poklopu D400 SN600 | D53: kus | E53: 1 | G53: =E53*F53 -> 0 | H53: 0.56041 | I53: =E53*H53 -> 0.56041 | J53: -0.32076 | K53: =E53*J53 -> -0.32076 | O53: 2 | AA53: 1 | AB53: 0 | AC53: 0 | AZ53: 1 | BA53: =IF(AZ53=1,G53,0) -> 0 | BB53: =IF(AZ53=2,G53,0) -> 0 | BC53: =IF(AZ53=3,G53,0) -> 0 | BD53: =IF(AZ53=4,G53,0) -> 0 | BE53: =IF(AZ53=5,G53,0) -> 0 | CA53: 1 | CB53: 0
C54: Samonivelační bezpantový těžký poklop KASI KDM65 případně část KDM63 dle upřesnění provozovatele. | L54: Samonivelační bezpantový těžký poklop KASI KDM65 případně část KDM63 dle upřesnění provozovatele. | O54: 3
C55: Poklop se znakem "Město Turnov" | L55: Poklop se znakem "Město Turnov" | O55: 3
B56: Celkem za | C56: 8 Trubní vedení | G56: =SUM(G50:G55) -> 0 | I56: =SUM(I50:I55) -> 1.62603 | K56: =SUM(K50:K55) -> -0.32076 | O56: 4 | BA56: =SUM(BA50:BA55) -> 0 | BB56: =SUM(BB50:BB55) -> 0 | BC56: =SUM(BC50:BC55) -> 0 | BD56: =SUM(BD50:BD55) -> 0 | BE56: =SUM(BE50:BE55) -> 0
A57: Díl: | B57: 91 | C57: Doplňující práce na komunikaci | O57: 1
A58: 19 | B58: 917862111RT7 | C58: Osazení stojat. obrub.bet. s opěrou,lože z C 12/15 včetně obrubníku ABO 2 - 15 100/15/25 | D58: m | E58: 28 | G58: =E58*F58 -> 0 | H58: 0.26981 | I58: =E58*H58 -> 7.55468 | J58: 0 | K58: =E58*J58 -> 0 | O58: 2 | AA58: 1 | AB58: 1 | AC58: 1 | AZ58: 1 | BA58: =IF(AZ58=1,G58,0) -> 0 | BB58: =IF(AZ58=2,G58,0) -> 0 | BC58: =IF(AZ58=3,G58,0) -> 0 | BD58: =IF(AZ58=4,G58,0) -> 0 | BE58: =IF(AZ58=5,G58,0) -> 0 | CA58: 1 | CB58: 1
C59: Osazení obrubníků:14,00*2 | E59: 28 | M59: Osazení obrubníků:14,00*2
A60: 20 | B60: 918101111R00 | C60: Lože pod obrubníky nebo obruby dlažeb z C 12/15 | D60: m3 | E60: 0.7 | G60: =E60*F60 -> 0 | H60: 2.525 | I60: =E60*H60 -> 1.7675 | J60: 0 | K60: =E60*J60 -> 0 | O60: 2 | AA60: 1 | AB60: 1 | AC60: 1 | AZ60: 1 | BA60: =IF(AZ60=1,G60,0) -> 0 | BB60: =IF(AZ60=2,G60,0) -> 0 | BC60: =IF(AZ60=3,G60,0) -> 0 | BD60: =IF(AZ60=4,G60,0) -> 0 | BE60: =IF(AZ60=5,G60,0) -> 0 | CA60: 1 | CB60: 1
C61: Osazení obrubníků:14,00*2*0,25*0,10 | E61: 0.7 | M61: Osazení obrubníků:14,00*2*0,25*0,10
A62: 21 | B62: 919731122R00 | C62: Zarovnání styčné plochy živičné tl. do 10 cm | D62: m | E62: 28 | G62: =E62*F62 -> 0 | H62: 0 | I62: =E62*H62 -> 0 | J62: 0 | K62: =E62*J62 -> 0 | O62: 2 | AA62: 1 | AB62: 1 | AC62: 1 | AZ62: 1 | BA62: =IF(AZ62=1,G62,0) -> 0 | BB62: =IF(AZ62=2,G62,0) -> 0 | BC62: =IF(AZ62=3,G62,0) -> 0 | BD62: =IF(AZ62=4,G62,0) -> 0 | BE62: =IF(AZ62=5,G62,0) -> 0 | CA62: 1 | CB62: 1
C63: Pro osazení betonových obrubníků:14,00*2 | E63: 28 | M63: Pro osazení betonových obrubníků:14,00*2
A64: 22 | B64: 919735112R00 | C64: Řezání stávajícího živičného krytu tl. 5 - 10 cm | D64: m | E64: 28 | G64: =E64*F64 -> 0 | H64: 0 | I64: =E64*H64 -> 0 | J64: 0 | K64: =E64*J64 -> 0 | O64: 2 | AA64: 1 | AB64: 1 | AC64: 1 | AZ64: 1 | BA64: =IF(AZ64=1,G64,0) -> 0 | BB64: =IF(AZ64=2,G64,0) -> 0 | BC64: =IF(AZ64=3,G64,0) -> 0 | BD64: =IF(AZ64=4,G64,0) -> 0 | BE64: =IF(AZ64=5,G64,0) -> 0 | CA64: 1 | CB64: 1
C65: Pro osazení betonových obrubníků:14,00*2 | E65: 28 | M65: Pro osazení betonových obrubníků:14,00*2
B66: Celkem za | C66: 91 Doplňující práce na komunikaci | G66: =SUM(G57:G65) -> 0 | I66: =SUM(I57:I65) -> 9.32218 | K66: =SUM(K57:K65) -> 0 | O66: 4 | BA66: =SUM(BA57:BA65) -> 0 | BB66: =SUM(BB57:BB65) -> 0 | BC66: =SUM(BC57:BC65) -> 0 | BD66: =SUM(BD57:BD65) -> 0 | BE66: =SUM(BE57:BE65) -> 0
A67: Díl: | B67: 93 | C67: Dokončovací práce inženýrských staveb | O67: 1
A68: 23 | B68: 938908411R00 | C68: Očištění povrchu krytu saponátovým roztokem | D68: m2 | E68: 84 | G68: =E68*F68 -> 0 | H68: 1e-05 | I68: =E68*H68 -> 0.00084 | J68: 0 | K68: =E68*J68 -> 0 | O68: 2 | AA68: 1 | AB68: 1 | AC68: 1 | AZ68: 1 | BA68: =IF(AZ68=1,G68,0) -> 0 | BB68: =IF(AZ68=2,G68,0) -> 0 | BC68: =IF(AZ68=3,G68,0) -> 0 | BD68: =IF(AZ68=4,G68,0) -> 0 | BE68: =IF(AZ68=5,G68,0) -> 0 | CA68: 1 | CB68: 1
C69: Komunikace:14,00*6,00 | E69: 84 | M69: Komunikace:14,00*6,00
A70: 24 | B70: 938909311R00 | C70: Odstranění nánosu z povrchu živičného nebo beton. | D70: m2 | E70: 84 | G70: =E70*F70 -> 0 | H70: 0 | I70: =E70*H70 -> 0 | J70: 0 | K70: =E70*J70 -> 0 | O70: 2 | AA70: 1 | AB70: 1 | AC70: 1 | AZ70: 1 | BA70: =IF(AZ70=1,G70,0) -> 0 | BB70: =IF(AZ70=2,G70,0) -> 0 | BC70: =IF(AZ70=3,G70,0) -> 0 | BD70: =IF(AZ70=4,G70,0) -> 0 | BE70: =IF(AZ70=5,G70,0) -> 0 | CA70: 1 | CB70: 1
C71: Komunikace:14,00*6,00 | E71: 84 | M71: Komunikace:14,00*6,00
B72: Celkem za | C72: 93 Dokončovací práce inženýrských staveb | G72: =SUM(G67:G71) -> 0 | I72: =SUM(I67:I71) -> 0.00084 | K72: =SUM(K67:K71) -> 0 | O72: 4 | BA72: =SUM(BA67:BA71) -> 0 | BB72: =SUM(BB67:BB71) -> 0 | BC72: =SUM(BC67:BC71) -> 0 | BD72: =SUM(BD67:BD71) -> 0 | BE72: =SUM(BE67:BE71) -> 0
A73: Díl: | B73: 99 | C73: Staveništní přesun hmot | O73: 1
A74: 25 | B74: 998225111R00 | C74: Přesun hmot, pozemní komunikace, kryt živičný | D74: t | E74: 39.23105 | G74: =E74*F74 -> 0 | H74: 0 | I74: =E74*H74 -> 0 | K74: =E74*J74 -> 0 | O74: 2 | AA74: 7 | AB74: 1 | AC74: 2 | AZ74: 1 | BA74: =IF(AZ74=1,G74,0) -> 0 | BB74: =IF(AZ74=2,G74,0) -> 0 | BC74: =IF(AZ74=3,G74,0) -> 0 | BD74: =IF(AZ74=4,G74,0) -> 0 | BE74: =IF(AZ74=5,G74,0) -> 0 | CA74: 7 | CB74: 1
B75: Celkem za | C75: 99 Staveništní přesun hmot | G75: =SUM(G73:G74) -> 0 | I75: =SUM(I73:I74) -> 0 | K75: =SUM(K73:K74) -> 0 | O75: 4 | BA75: =SUM(BA73:BA74) -> 0 | BB75: =SUM(BB73:BB74) -> 0 | BC75: =SUM(BC73:BC74) -> 0 | BD75: =SUM(BD73:BD74) -> 0 | BE75: =SUM(BE73:BE74) -> 0

Sheet 101.10 101.10.2 KL
A1: POLOŽKOVÝ ROZPOČET
A2: Rozpočet | C2: 101.10.2 | D2: Komunikace - 1. křižovatka x Křiž. Nad Farářstvím | F2: JKSO | G2: 822.29
A4: Objekt | F4: SKP
A5: 101.10 | C5: Komunikace - ul. Františka Závorky | F5: Měrná jednotka | G5: m2
A6: Stavba | F6: Počet jednotek | G6: 0
A7: 3268 | C7: Komunikace a IS v rozvojové lokalitě Hruštice - Ká | F7: Náklady na m.j. | G7: =IF(G6=0,,ROUND((F30+F32)/G6,1)) -> 0
A8: Projektant | C8: PROFES PROJEKT spol.s r.o. | F8: Typ rozpočtu
A9: Zpracovatel projektu
A10: Objednatel | C10: Město TURNOV
A11: Dodavatel | C11: . | F11: Zakázkové číslo
A12: Rozpočtoval | F12: Počet listů
A13: ROZPOČTOVÉ NÁKLADY
A14: Základní rozpočtové náklady
B15: HSV celkem | C15: ='101.10 101.10.2 Rek'!E13 -> 0
A16: Z | B16: PSV celkem | C16: ='101.10 101.10.2 Rek'!F13 -> 0
A17: R | B17: M práce celkem | C17: ='101.10 101.10.2 Rek'!H13 -> 0
A18: N | B18: M dodávky celkem | C18: ='101.10 101.10.2 Rek'!G13 -> 0
A19: ZRN celkem | C19: =SUM(C15:C18) -> 0
A21: HZS | C21: ='101.10 101.10.2 Rek'!I13 -> 0
A22: ZRN+HZS | C22: =C19+C21 -> 0
A23: ZRN+ost.náklady+HZS | C23: =C22+G23 -> 0
A24: Vypracoval | D24: Za zhotovitele | F24: Za objednatele
A25: Jméno : | D25: Jméno : | F25: Jméno :
A26: Datum : | D26: Datum : | F26: Datum :
A28: Podpis : | D28: Podpis: | F28: Podpis:
A30: Základ pro DPH | C30: 21 | D30: % | F30: =C23-F32 -> 0
A31: DPH | C31: =C30 -> 21 | D31: % | F31: =ROUND(PRODUCT(F30,C31/100),0) -> 0
A32: Základ pro DPH | C32: 0 | D32: % | F32: 0
A33: DPH | C33: =C32 -> 0 | D33: % | F33: =ROUND(PRODUCT(F32,C33/100),0) -> 0
A34: CENA ZA OBJEKT CELKEM | F34: =ROUND(SUM(F30:F33),0) -> 0
A36: Poznámka :

Sheet 101.10 101.10.2 Rek
A1: Stavba : | C1: 3268 Komunikace a IS v rozvojové lokalitě Hruštice - Ká | G1: Rozpočet : | H1: 101.10.2
A2: Objekt : | C2: 101.10 Komunikace - ul. Františka Závorky | G2: Komunikace - 1. křižovatka x Křiž. Nad Farářstvím
A4: REKAPITULACE STAVEBNÍCH DÍLŮ
B6: Stavební díl | E6: HSV | F6: PSV | G6: Dodávka | H6: Montáž | I6: HZS
A7: ='101.10 101.10.2 Pol'!B7 -> 1 | B7: ='101.10 101.10.2 Pol'!C7 -> Zemní práce | E7: ='101.10 101.10.2 Pol'!BA42 -> 0 | F7: ='101.10 101.10.2 Pol'!BB42 -> 0 | G7: ='101.10 101.10.2 Pol'!BC42 -> 0 | H7: ='101.10 101.10.2 Pol'!BD42 -> 0 | I7: ='101.10 101.10.2 Pol'!BE42 -> 0
A8: ='101.10 101.10.2 Pol'!B43 -> 5 | B8: ='101.10 101.10.2 Pol'!C43 -> Komunikace | E8: ='101.10 101.10.2 Pol'!BA62 -> 0 | F8: ='101.10 101.10.2 Pol'!BB62 -> 0 | G8: ='101.10 101.10.2 Pol'!BC62 -> 0 | H8: ='101.10 101.10.2 Pol'!BD62 -> 0 | I8: ='101.10 101.10.2 Pol'!BE62 -> 0
A9: ='101.10 101.10.2 Pol'!B63 -> 8 | B9: ='101.10 101.10.2 Pol'!C63 -> Trubní vedení | E9: ='101.10 101.10.2 Pol'!BA69 -> 0 | F9: ='101.10 101.10.2 Pol'!BB69 -> 0 | G9: ='101.10 101.10.2 Pol'!BC69 -> 0 | H9: ='101.10 101.10.2 Pol'!BD69 -> 0 | I9: ='101.10 101.10.2 Pol'!BE69 -> 0
A10: ='101.10 101.10.2 Pol'!B70 -> 91 | B10: ='101.10 101.10.2 Pol'!C70 -> Doplňující práce na komunikaci | E10: ='101.10 101.10.2 Pol'!BA89 -> 0 | F10: ='101.10 101.10.2 Pol'!BB89 -> 0 | G10: ='101.10 101.10.2 Pol'!BC89 -> 0 | H10: ='101.10 101.10.2 Pol'!BD89 -> 0 | I10: ='101.10 101.10.2 Pol'!BE89 -> 0
A11: ='101.10 101.10.2 Pol'!B90 -> 93 | B11: ='101.10 101.10.2 Pol'!C90 -> Dokončovací práce inženýrských staveb | E11: ='101.10 101.10.2 Pol'!BA99 -> 0 | F11: ='101.10 101.10.2 Pol'!BB99 -> 0 | G11: ='101.10 101.10.2 Pol'!BC99 -> 0 | H11: ='101.10 101.10.2 Pol'!BD99 -> 0 | I11: ='101.10 101.10.2 Pol'!BE99 -> 0
A12: ='101.10 101.10.2 Pol'!B100 -> 99 | B12: ='101.10 101.10.2 Pol'!C100 -> Staveništní přesun hmot | E12: ='101.10 101.10.2 Pol'!BA102 -> 0 | F12: ='101.10 101.10.2 Pol'!BB102 -> 0 | G12: ='101.10 101.10.2 Pol'!BC102 -> 0 | H12: ='101.10 101.10.2 Pol'!BD102 -> 0 | I12: ='101.10 101.10.2 Pol'!BE102 -> 0
B13: CELKEM OBJEKT | E13: =SUM(E7:E12) -> 0 | F13: =SUM(F7:F12) -> 0 | G13: =SUM(G7:G12) -> 0 | H13: =SUM(H7:H12) -> 0 | I13: =SUM(I7:I12) -> 0

Sheet 101.10 101.10.2 Pol
A1: Položkový rozpočet
A3: Stavba : | C3: 3268 Komunikace a IS v rozvojové lokalitě Hruštice - Ká | E3: Rozpočet: | F3: ='101.10 101.10.2 Rek'!H1 -> 101.10.2
A4: Objekt : | C4: 101.10 Komunikace - ul. Františka Závorky | E4: ='101.10 101.10.2 Rek'!G2 -> Komunikace - 1. křižovatka x Křiž. Nad Farářstvím
A6: P.č. | B6: Číslo položky | C6: Název položky | D6: MJ | E6: množství | F6: cena / MJ | G6: celkem (Kč) | H6: Jednotková hmotnost | I6: Celková hmotnost | J6: Jednotková dem.hmot. | K6: Celková dem.hmot.
A7: Díl: | B7: 1 | C7: Zemní práce | O7: 1
A8: 1 | B8: 113107650R00 | C8: Odstranění podkladu nad 50 m2,kam.drcené tl.50 cm | D8: m2 | E8: 37.5 | G8: =E8*F8 -> 0 | H8: 0 | I8: =E8*H8 -> 0 | J8: -1.1 | K8: =E8*J8 -> -41.25 | O8: 2 | AA8: 1 | AB8: 1 | AC8: 1 | AZ8: 1 | BA8: =IF(AZ8=1,G8,0) -> 0 | BB8: =IF(AZ8=2,G8,0) -> 0 | BC8: =IF(AZ8=3,G8,0) -> 0 | BD8: =IF(AZ8=4,G8,0) -> 0 | BE8: =IF(AZ8=5,G8,0) -> 0 | CA8: 1 | CB8: 1
C9: Prostor pro stromy:5,00*2,50*3 | E9: 37.5 | M9: Prostor pro stromy:5,00*2,50*3
A10: 2 | B10: 113108410R00 | C10: Odstranění asfaltové vrstvy pl.nad 50 m2, tl.10 cm | D10: m2 | E10: 117.3 | G10: =E10*F10 -> 0 | H10: 0 | I10: =E10*H10 -> 0 | J10: -0.22 | K10: =E10*J10 -> -25.806 | O10: 2 | AA10: 1 | AB10: 1 | AC10: 1 | AZ10: 1 | BA10: =IF(AZ10=1,G10,0) -> 0 | BB10: =IF(AZ10=2,G10,0) -> 0 | BC10: =IF(AZ10=3,G10,0) -> 0 | BD10: =IF(AZ10=4,G10,0) -> 0 | BE10: =IF(AZ10=5,G10,0) -> 0 | CA10: 1 | CB10: 1
C11: Pro osazení betonových obrubníků:(78,00-6,50*4-5,00*3)*0,20*2 | E11: 14.8 | M11: Pro osazení betonových obrubníků:(78,00-6,50*4-5,00*3)*0,20*2
C12: Pro parkovací stání:6,50*2,50*4 | E12: 65 | M12: Pro parkovací stání:6,50*2,50*4
C13: Pro stromy:5,00*2,50*3 | E13: 37.5 | M13: Pro stromy:5,00*2,50*3
A14: 3 | B14: 113109415R00 | C14: Odstranění podkladu pl.nad 50 m2, beton, tl. 15 cm | D14: m2 | E14: 62.7 | G14: =E14*F14 -> 0 | H14: 0 | I14: =E14*H14 -> 0 | J14: -0.36 | K14: =E14*J14 -> -22.572 | O14: 2 | AA14: 1 | AB14: 1 | AC14: 1 | AZ14: 1 | BA14: =IF(AZ14=1,G14,0) -> 0 | BB14: =IF(AZ14=2,G14,0) -> 0 | BC14: =IF(AZ14=3,G14,0) -> 0 | BD14: =IF(AZ14=4,G14,0) -> 0 | BE14: =IF(AZ14=5,G14,0) -> 0 | CA14: 1 | CB14: 1
C15: Pro osazení betonových obrubníků:(78,00-5,00*3)*0,20*2 | E15: 25.2 | M15: Pro osazení betonových obrubníků:(78,00-5,00*3)*0,20*2
C16: Pro stromy:5,00*2,50*3 | E16: 37.5 | M16: Pro stromy:5,00*2,50*3
A17: 4 | B17: 122202201R00 | C17: Odkopávky pro silnice v hor. 3 do 100 m3 | D17: m3 | E17: 6.24 | G17: =E17*F17 -> 0 | H17: 0 | I17: =E17*H17 -> 0 | J17: 0 | K17: =E17*J17 -> 0 | O17: 2 | AA17: 1 | AB17: 1 | AC17: 1 | AZ17: 1 | BA17: =IF(AZ17=1,G17,0) -> 0 | BB17: =IF(AZ17=2,G17,0) -> 0 | BC17: =IF(AZ17=3,G17,0) -> 0 | BD17: =IF(AZ17=4,G17,0) -> 0 | BE17: =IF(AZ17=5,G17,0) -> 0 | CA17: 1 | CB17: 1
C18: Pro osazení betonových obrubníků:78,00*0,20*0,20*2 | E18: 6.24 | M18: Pro osazení betonových obrubníků:78,00*0,20*0,20*2
A19: 5 | B19: 122202209R00 | C19: Příplatek za lepivost - odkop. pro silnice v hor.3 | D19: m3 | E19: 3.12 | G19: =E19*F19 -> 0 | H19: 0 | I19: =E19*H19 -> 0 | J19: 0 | K19: =E19*J19 -> 0 | O19: 2 | AA19: 1 | AB19: 1 | AC19: 1 | AZ19: 1 | BA19: =IF(AZ19=1,G19,0) -> 0 | BB19: =IF(AZ19=2,G19,0) -> 0 | BC19: =IF(AZ19=3,G19,0) -> 0 | BD19: =IF(AZ19=4,G19,0) -> 0 | BE19: =IF(AZ19=5,G19,0) -> 0 | CA19: 1 | CB19: 1
C20: Pro osazení betonových obrubníků:78,00*0,20*0,20*2*0,5 | E20: 3.12 | M20: Pro osazení betonových obrubníků:78,00*0,20*0,20*2*0,5
A21: 6 | B21: 162606112R00 | C21: Vodorovné přemístění zemin pro zúrodnění do 5000 m | D21: m3 | E21: 18.75 | G21: =E21*F21 -> 0 | H21: 0 | I21: =E21*H21 -> 0 | J21: 0 | K21: =E21*J21 -> 0 | O21: 2 | AA21: 1 | AB21: 0 | AC21: 0 | AZ21: 1 | BA21: =IF(AZ21=1,G21,0) -> 0 | BB21: =IF(AZ21=2,G21,0) -> 0 | BC21: =IF(AZ21=3,G21,0) -> 0 | BD21: =IF(AZ21=4,G21,0) -> 0 | BE21: =IF(AZ21=5,G21,0) -> 0 | CA21: 1 | CB21: 0
O22: 3
C23: Prostor pro stromy:5,00*2,50*3*0,50 | E23: 18.75 | M23: Prostor pro stromy:5,00*2,50*3*0,50
A24: 7 | B24: 162701105RSZ | C24: Vodorovné přemístění výkopku z hor.1-7 na skládku zhotovitele | D24: m3 | E24: 6.24 | G24: =E24*F24 -> 0 | H24: 0 | I24: =E24*H24 -> 0 | J24: 0 | K24: =E24*J24 -> 0 | O24: 2 | AA24: 1 | AB24: 1 | AC24: 1 | AZ24: 1 | BA24: =IF(AZ24=1,G24,0) -> 0 | BB24: =IF(AZ24=2,G24,0) -> 0 | BC24: =IF(AZ24=3,G24,0) -> 0 | BD24: =IF(AZ24=4,G24,0) -> 0 | BE24: =IF(AZ24=5,G24,0) -> 0 | CA24: 1 | CB24: 1
C25: Pro osazení betonových obrubníků:78,00*0,20*0,20*2 | E25: 6.24 | M25: Pro osazení betonových obrubníků:78,00*0,20*0,20*2
A26: 8 | B26: 167101101R00 | C26: Nakládání výkopku z hor.1-4 v množství do 100 m3 | D26: m3 | E26: 18.75 | G26: =E26*F26 -> 0 | H26: 0 | I26: =E26*H26 -> 0 | J26: 0 | K26: =E26*J26 -> 0 | O26: 2 | AA26: 1 | AB26: 1 | AC26: 1 | AZ26: 1 | BA26: =IF(AZ26=1,G26,0) -> 0 | BB26: =IF(AZ26=2,G26,0) -> 0 | BC26: =IF(AZ26=3,G26,0) -> 0 | BD26: =IF(AZ26=4,G26,0) -> 0 | BE26: =IF(AZ26=5,G26,0) -> 0 | CA26: 1 | CB26: 1
C27: Prostor pro stromy:5,00*2,50*3*0,50 | E27: 18.75 | M27: Prostor pro stromy:5,00*2,50*3*0,50
A28: 9 | B28: 174101101R00 | C28: Zásyp jam, rýh, šachet se zhutněním | D28: m3 | E28: 18.75 | G28: =E28*F28 -> 0 | H28: 0 | I28: =E28*H28 -> 0 | J28: 0 | K28: =E28*J28 -> 0 | O28: 2 | AA28: 1 | AB28: 1 | AC28: 1 | AZ28: 1 | BA28: =IF(AZ28=1,G28,0) -> 0 | BB28: =IF(AZ28=2,G28,0) -> 0 | BC28: =IF(AZ28=3,G28,0) -> 0 | BD28: =IF(AZ28=4,G28,0) -> 0 | BE28: =IF(AZ28=5,G28,0) -> 0 | CA28: 1 | CB28: 1
C29: včetně strojního přemístění materiálu pro zásyp ze vzdálenosti do 10 m od okraje zásypu | L29: včetně strojního přemístění materiálu pro zásyp ze vzdálenosti do 10 m od okraje zásypu | O29: 3
C30: Prostor pro stromy:5,00*2,50*3*0,50 | E30: 18.75 | M30: Prostor pro stromy:5,00*2,50*3*0,50
A31: 10 | B31: 181101102R00 | C31: Úprava pláně v zářezech v hor. 1-4, se zhutněním | D31: m2 | E31: 14.8 | G31: =E31*F31 -> 0 | H31: 0 | I31: =E31*H31 -> 0 | J31: 0 | K31: =E31*J31 -> 0 | O31: 2 | AA31: 1 | AB31: 1 | AC31: 1 | AZ31: 1 | BA31: =IF(AZ31=1,G31,0) -> 0 | BB31: =IF(AZ31=2,G31,0) -> 0 | BC31: =IF(AZ31=3,G31,0) -> 0 | BD31: =IF(AZ31=4,G31,0) -> 0 | BE31: =IF(AZ31=5,G31,0) -> 0 | CA31: 1 | CB31: 1
C32: Pro osazení betonových obrubníků:(78,00-6,50*4-5,00*3)*0,20*2 | E32: 14.8 | M32: Pro osazení betonových obrubníků:(78,00-6,50*4-5,00*3)*0,20*2
A33: 11 | B33: 181300012RAC | C33: Rozprostření ornice v rovině tloušťka 20 cm dovoz ornice ze vzdálenosti 5 km, osetí trávou | D33: m2 | E33: 37.5 | G33: =E33*F33 -> 0 | H33: 3e-05 | I33: =E33*H33 -> 0.001125 | J33: 0 | K33: =E33*J33 -> 0 | O33: 2 | AA33: 1 | AB33: 1 | AC33: 1 | AZ33: 1 | BA33: =IF(AZ33=1,G33,0) -> 0 | BB33: =IF(AZ33=2,G33,0) -> 0 | BC33: =IF(AZ33=3,G33,0) -> 0 | BD33: =IF(AZ33=4,G33,0) -> 0 | BE33: =IF(AZ33=5,G33,0) -> 0 | CA33: 1 | CB33: 1
C34: Včetně naložení ornice na skládce investora a přesunu hmot. | L34: Včetně naložení ornice na skládce investora a přesunu hmot. | O34: 3
C35: Prostor pro stromy:5,00*2,50*3 | E35: 37.5 | M35: Prostor pro stromy:5,00*2,50*3
A36: 12 | B36: 199000002R00 | C36: Poplatek za skládku horniny 1- 7 | D36: m3 | E36: 6.24 | G36: =E36*F36 -> 0 | H36: 0 | I36: =E36*H36 -> 0 | J36: 0 | K36: =E36*J36 -> 0 | O36: 2 | AA36: 1 | AB36: 1 | AC36: 1 | AZ36: 1 | BA36: =IF(AZ36=1,G36,0) -> 0 | BB36: =IF(AZ36=2,G36,0) -> 0 | BC36: =IF(AZ36=3,G36,0) -> 0 | BD36: =IF(AZ36=4,G36,0) -> 0 | BE36: =IF(AZ36=5,G36,0) -> 0 | CA36: 1 | CB36: 1
C37: Pro osazení betonových obrubníků:78,00*0,20*0,20*2 | E37: 6.24 | M37: Pro osazení betonových obrubníků:78,00*0,20*0,20*2
A38: 13 | B38: 979082113RRX | C38: Vodorovná doprava suti po suchu na skládku zhotovitele | D38: t | E38: 89.628 | G38: =E38*F38 -> 0 | H38: 0 | I38: =E38*H38 -> 0 | J38: 0 | K38: =E38*J38 -> 0 | O38: 2 | AA38: 1 | AB38: 1 | AC38: 1 | AZ38: 1 | BA38: =IF(AZ38=1,G38,0) -> 0 | BB38: =IF(AZ38=2,G38,0) -> 0 | BC38: =IF(AZ38=3,G38,0) -> 0 | BD38: =IF(AZ38=4,G38,0) -> 0 | BE38: =IF(AZ38=5,G38,0) -> 0 | CA38: 1 | CB38: 1
A39: 14 | B39: 979990002ŠDT | C39: Poplatek za skládku stavební suti štěrky z komunikací | D39: t | E39: 41.25 | G39: =E39*F39 -> 0 | H39: 0 | I39: =E39*H39 -> 0 | J39: 0 | K39: =E39*J39 -> 0 | O39: 2 | AA39: 1 | AB39: 1 | AC39: 1 | AZ39: 1 | BA39: =IF(AZ39=1,G39,0) -> 0 | BB39: =IF(AZ39=2,G39,0) -> 0 | BC39: =IF(AZ39=3,G39,0) -> 0 | BD39: =IF(AZ39=4,G39,0) -> 0 | BE39: =IF(AZ39=5,G39,0) -> 0 | CA39: 1 | CB39: 1
A40: 15 | B40: 979990112ASF | C40: Poplatek za skládku suti - asfalt a beton z kom. | D40: t | E40: 48.378 | G40: =E40*F40 -> 0 | H40: 0 | I40: =E40*H40 -> 0 | J40: 0 | K40: =E40*J40 -> 0 | O40: 2 | AA40: 1 | AB40: 1 | AC40: 1 | AZ40: 1 | BA40: =IF(AZ40=1,G40,0) -> 0 | BB40: =IF(AZ40=2,G40,0) -> 0 | BC40: =IF(AZ40=3,G40,0) -> 0 | BD40: =IF(AZ40=4,G40,0) -> 0 | BE40: =IF(AZ40=5,G40,0) -> 0 | CA40: 1 | CB40: 1
C41: Položka je určena pro suť o velikosti kusu do 30x30 cm (technologický materiál určený k recyklaci). | L41: Položka je určena pro suť o velikosti kusu do 30x30 cm (technologický materiál určený k recyklaci). | O41: 3
B42: Celkem za | C42: 1 Zemní práce | G42: =SUM(G7:G41) -> 0 | I42: =SUM(I7:I41) -> 0.001125 | K42: =SUM(K7:K41) -> -89.628 | O42: 4 | BA42: =SUM(BA7:BA41) -> 0 | BB42: =SUM(BB7:BB41) -> 0 | BC42: =SUM(BC7:BC41) -> 0 | BD42: =SUM(BD7:BD41) -> 0 | BE42: =SUM(BE7:BE41) -> 0
A43: Díl: | B43: 5 | C43: Komunikace | O43: 1
A44: 16 | B44: 564791111R00 | C44: Podklad pro zpevněné plochy z kam.drceného 0-63 mm | D44: m3 | E44: 6.24 | G44: =E44*F44 -> 0 | H44: 2.204 | I44: =E44*H44 -> 13.75296 | J44: 0 | K44: =E44*J44 -> 0 | O44: 2 | AA44: 1 | AB44: 1 | AC44: 1 | AZ44: 1 | BA44: =IF(AZ44=1,G44,0) -> 0 | BB44: =IF(AZ44=2,G44,0) -> 0 | BC44: =IF(AZ44=3,G44,0) -> 0 | BD44: =IF(AZ44=4,G44,0) -> 0 | BE44: =IF(AZ44=5,G44,0) -> 0 | CA44: 1 | CB44: 1
C45: Včetně kameniva, rozprostření a zhutnění podkladu. | L45: Včetně kameniva, rozprostření a zhutnění podkladu. | O45: 3
C46: Pro osazení betonových obrubníků:78,00*0,20*2*0,20 | E46: 6.24 | M46: Pro osazení betonových obrubníků:78,00*0,20*2*0,20
A47: 17 | B47: 572713112R00 | C47: Vyrovnání povrchu krytů kamen. obaleným asfaltem | D47: t | E47: 4.2562 | G47: =E47*F47 -> 0 | H47: 1 | I47: =E47*H47 -> 4.2562 | J47: 0 | K47: =E47*J47 -> 0 | O47: 2 | AA47: 1 | AB47: 1 | AC47: 1 | AZ47: 1 | BA47: =IF(AZ47=1,G47,0) -> 0 | BB47: =IF(AZ47=2,G47,0) -> 0 | BC47: =IF(AZ47=3,G47,0) -> 0 | BD47: =IF(AZ47=4,G47,0) -> 0 | BE47: =IF(AZ47=5,G47,0) -> 0 | CA47: 1 | CB47: 1
C48: Doplnění stávající asfaltové plochy podél nových obrubníků:(78,00*2-6,50*4-5,50*3)*0,15*0,10*2,5 | E48: 4.2562 | M48: Doplnění stávající asfaltové plochy podél nových obrubníků:(78,00*2-6,50*4-5,50*3)*0,15*0,10*2,5
A49: 18 | B49: 573231110R00 | C49: Postřik živičný spojovací z emulze 0,3-0,5 kg/m2 | D49: m2 | E49: 521.5 | G49: =E49*F49 -> 0 | H49: 0.0005 | I49: =E49*H49 -> 0.26075 | J49: 0 | K49: =E49*J49 -> 0 | O49: 2 | AA49: 1 | AB49: 1 | AC49: 1 | AZ49: 1 | BA49: =IF(AZ49=1,G49,0) -> 0 | BB49: =IF(AZ49=2,G49,0) -> 0 | BC49: =IF(AZ49=3,G49,0) -> 0 | BD49: =IF(AZ49=4,G49,0) -> 0 | BE49: =IF(AZ49=5,G49,0) -> 0 | CA49: 1 | CB49: 1
C50: Komunikace:78,00*8,00 | E50: 624 | M50: Komunikace:78,00*8,00
C51: Parkovací stání:-6,50*2,50*4 | E51: -65 | M51: Parkovací stání:-6,50*2,50*4
C52: Prostor pro stromy:-5,00*2,50*3 | E52: -37.5 | M52: Prostor pro stromy:-5,00*2,50*3
A53: 19 | B53: 577132111RT2 | C53: Beton asfalt. ACO 11+ obrusný, š.nad 3 m, tl. 4 cm plochy 201-1000 m2 | D53: m2 | E53: 521.5 | G53: =E53*F53 -> 0 | H53: 0.10373 | I53: =E53*H53 -> 54.095195 | J53: 0 | K53: =E53*J53 -> 0 | O53: 2 | AA53: 1 | AB53: 1 | AC53: 1 | AZ53: 1 | BA53: =IF(AZ53=1,G53,0) -> 0 | BB53: =IF(AZ53=2,G53,0) -> 0 | BC53: =IF(AZ53=3,G53,0) -> 0 | BD53: =IF(AZ53=4,G53,0) -> 0 | BE53: =IF(AZ53=5,G53,0) -> 0 | CA53: 1 | CB53: 1
C54: Komunikace:78,00*8,00 | E54: 624 | M54: Komunikace:78,00*8,00
C55: Parkovací stání:-6,50*2,50*4 | E55: -65 | M55: Parkovací stání:-6,50*2,50*4
C56: Prostor pro stromy:-5,00*2,50*3 | E56: -37.5 | M56: Prostor pro stromy:-5,00*2,50*3
A57: 20 | B57: 591211111R00 | C57: Kladení dlažby drobné kostky,lože z kamen.tl. 5 cm | D57: m2 | E57: 65 | G57: =E57*F57 -> 0 | H57: 0.11 | I57: =E57*H57 -> 7.15 | J57: 0 | K57: =E57*J57 -> 0 | O57: 2 | AA57: 1 | AB57: 1 | AC57: 1 | AZ57: 1 | BA57: =IF(AZ57=1,G57,0) -> 0 | BB57: =IF(AZ57=2,G57,0) -> 0 | BC57: =IF(AZ57=3,G57,0) -> 0 | BD57: =IF(AZ57=4,G57,0) -> 0 | BE57: =IF(AZ57=5,G57,0) -> 0 | CA57: 1 | CB57: 1
C58: V položce jsou zakalkulovány i náklady na dodání hmot pro lože a na dodání téhož materiálu na výplň spár. V položce nejsou zakalkulovány náklady na dodání dlažebních kostek (dležba investora). | L58: V položce jsou zakalkulovány i náklady na dodání hmot pro lože a na dodání téhož materiálu na výplň spár. V položce nejsou zakalkulovány náklady na dodání dlažebních kostek (dležba investora). | O58: 3
C59: Parkovací stání:6,50*2,50*4 | E59: 65 | M59: Parkovací stání:6,50*2,50*4
A60: 21 | B60: 979084216R00 | C60: Vodorovná doprava vybour. hmot po suchu do 5 km | D60: t | E60: 16.25 | G60: =E60*F60 -> 0 | H60: 0 | I60: =E60*H60 -> 0 | J60: 0 | K60: =E60*J60 -> 0 | O60: 2 | AA60: 1 | AB60: 1 | AC60: 1 | AZ60: 1 | BA60: =IF(AZ60=1,G60,0) -> 0 | BB60: =IF(AZ60=2,G60,0) -> 0 | BC60: =IF(AZ60=3,G60,0) -> 0 | BD60: =IF(AZ60=4,G60,0) -> 0 | BE60: =IF(AZ60=5,G60,0) -> 0 | CA60: 1 | CB60: 1
A61: 22 | B61: 979087213R00 | C61: Nakládání vybour.hmot na dop.prostředky-komunikace | D61: t | E61: 16.25 | G61: =E61*F61 -> 0 | H61: 0 | I61: =E61*H61 -> 0 | J61: 0 | K61: =E61*J61 -> 0 | O61: 2 | AA61: 1 | AB61: 1 | AC61: 1 | AZ61: 1 | BA61: =IF(AZ61=1,G61,0) -> 0 | BB61: =IF(AZ61=2,G61,0) -> 0 | BC61: =IF(AZ61=3,G61,0) -> 0 | BD61: =IF(AZ61=4,G61,0) -> 0 | BE61: =IF(AZ61=5,G61,0) -> 0 | CA61: 1 | CB61: 1
B62: Celkem za | C62: 5 Komunikace | G62: =SUM(G43:G61) -> 0 | I62: =SUM(I43:I61) -> 79.515105 | K62: =SUM(K43:K61) -> 0 | O62: 4 | BA62: =SUM(BA43:BA61) -> 0 | BB62: =SUM(BB43:BB61) -> 0 | BC62: =SUM(BC43:BC61) -> 0 | BD62: =SUM(BD43:BD61) -> 0 | BE62: =SUM(BE43:BE61) -> 0
A63: Díl: | B63: 8 | C63: Trubní vedení | O63: 1
A64: 23 | B64: 899231111R00 | C64: Výšková úprava vstupu do 20 cm, zvýšení mříže | D64: kus | E64: 2 | G64: =E64*F64 -> 0 | H64: 0.43382 | I64: =E64*H64 -> 0.86764 | J64: 0 | K64: =E64*J64 -> 0 | O64: 2 | AA64: 1 | AB64: 1 | AC64: 1 | AZ64: 1 | BA64: =IF(AZ64=1,G64,0) -> 0 | BB64: =IF(AZ64=2,G64,0) -> 0 | BC64: =IF(AZ64=3,G64,0) -> 0 | BD64: =IF(AZ64=4,G64,0) -> 0 | BE64: =IF(AZ64=5,G64,0) -> 0 | CA64: 1 | CB64: 1
A65: 24 | B65: 899431111R00 | C65: Výšková úprava do 20 cm, zvýšení krytu šoupěte | D65: kus | E65: 5 | G65: =E65*F65 -> 0 | H65: 0.3159 | I65: =E65*H65 -> 1.5795 | J65: 0 | K65: =E65*J65 -> 0 | O65: 2 | AA65: 1 | AB65: 1 | AC65: 1 | AZ65: 1 | BA65: =IF(AZ65=1,G65,0) -> 0 | BB65: =IF(AZ65=2,G65,0) -> 0 | BC65: =IF(AZ65=3,G65,0) -> 0 | BD65: =IF(AZ65=4,G65,0) -> 0 | BE65: =IF(AZ65=5,G65,0) -> 0 | CA65: 1 | CB65: 1
A66: 25 | B66: 939431111RT2 | C66: Výměna kanaliz.poklopu za samonivelační, hl.200 mm včetně dodávky litinového poklopu D400 SN600 | D66: kus | E66: 3 | G66: =E66*F66 -> 0 | H66: 0.56041 | I66: =E66*H66 -> 1.68123 | J66: -0.32076 | K66: =E66*J66 -> -0.96228 | O66: 2 | AA66: 1 | AB66: 0 | AC66: 0 | AZ66: 1 | BA66: =IF(AZ66=1,G66,0) -> 0 | BB66: =IF(AZ66=2,G66,0) -> 0 | BC66: =IF(AZ66=3,G66,0) -> 0 | BD66: =IF(AZ66=4,G66,0) -> 0 | BE66: =IF(AZ66=5,G66,0) -> 0 | CA66: 1 | CB66: 0
C67: Samonivelační bezpantový těžký poklop KASI KDM65 případně část KDM63 dle upřesnění provozovatele. | L67: Samonivelační bezpantový těžký poklop KASI KDM65 případně část KDM63 dle upřesnění provozovatele. | O67: 3
C68: Poklop se znakem "Město Turnov" | L68: Poklop se znakem "Město Turnov" | O68: 3
B69: Celkem za | C69: 8 Trubní vedení | G69: =SUM(G63:G68) -> 0 | I69: =SUM(I63:I68) -> 4.12837 | K69: =SUM(K63:K68) -> -0.96228 | O69: 4 | BA69: =SUM(BA63:BA68) -> 0 | BB69: =SUM(BB63:BB68) -> 0 | BC69: =SUM(BC63:BC68) -> 0 | BD69: =SUM(BD63:BD68) -> 0 | BE69: =SUM(BE63:BE68) -> 0
A70: Díl: | B70: 91 | C70: Doplňující práce na komunikaci | O70: 1
A71: 26 | B71: 916261111R00 | C71: Osazení obruby z kostek drobných, s boční opěrou | D71: m | E71: 68.5 | G71: =E71*F71 -> 0 | H71: 0.09971 | I71: =E71*H71 -> 6.830135 | J71: 0 | K71: =E71*J71 -> 0 | O71: 2 | AA71: 1 | AB71: 1 | AC71: 1 | AZ71: 1 | BA71: =IF(AZ71=1,G71,0) -> 0 | BB71: =IF(AZ71=2,G71,0) -> 0 | BC71: =IF(AZ71=3,G71,0) -> 0 | BD71: =IF(AZ71=4,G71,0) -> 0 | BE71: =IF(AZ71=5,G71,0) -> 0 | CA71: 1 | CB71: 1
C72: V položce jsou zakalkulovány i náklady na dodání hmot pro lože a boční opěry a na dodání téhož materiálu na výplň spár. V položce nejsou zakalkulovány náklady na dodání dlažebních kostek (dležba investora). | L72: V položce jsou zakalkulovány i náklady na dodání hmot pro lože a boční opěry a na dodání téhož materiálu na výplň spár. V položce nejsou zakalkulovány náklady na dodání dlažebních kostek (dležba investora). | O72: 3
C73: Parkovací stání:(6,50+2*2,50)*4 | E73: 46 | M73: Parkovací stání:(6,50+2*2,50)*4
C74: Prostor pro stromy:5,00*3+2,50*3 | E74: 22.5 | M74: Prostor pro stromy:5,00*3+2,50*3
A75: 27 | B75: 917862111RT7 | C75: Osazení stojat. obrub.bet. s opěrou,lože z C 12/15 včetně obrubníku ABO 2 - 15 100/15/25 | D75: m | E75: 156 | G75: =E75*F75 -> 0 | H75: 0.26981 | I75: =E75*H75 -> 42.09036 | J75: 0 | K75: =E75*J75 -> 0 | O75: 2 | AA75: 1 | AB75: 1 | AC75: 1 | AZ75: 1 | BA75: =IF(AZ75=1,G75,0) -> 0 | BB75: =IF(AZ75=2,G75,0) -> 0 | BC75: =IF(AZ75=3,G75,0) -> 0 | BD75: =IF(AZ75=4,G75,0) -> 0 | BE75: =IF(AZ75=5,G75,0) -> 0 | CA75: 1 | CB75: 1
C76: Osazení obrubníků:78,00*2 | E76: 156 | M76: Osazení obrubníků:78,00*2
A77: 28 | B77: 918101111R00 | C77: Lože pod obrubníky nebo obruby dlažeb z C 12/15 | D77: m3 | E77: 3.9 | G77: =E77*F77 -> 0 | H77: 2.525 | I77: =E77*H77 -> 9.8475 | J77: 0 | K77: =E77*J77 -> 0 | O77: 2 | AA77: 1 | AB77: 1 | AC77: 1 | AZ77: 1 | BA77: =IF(AZ77=1,G77,0) -> 0 | BB77: =IF(AZ77=2,G77,0) -> 0 | BC77: =IF(AZ77=3,G77,0) -> 0 | BD77: =IF(AZ77=4,G77,0) -> 0 | BE77: =IF(AZ77=5,G77,0) -> 0 | CA77: 1 | CB77: 1
C78: Osazení obrubníků:78,00*2*0,25*0,10 | E78: 3.9 | M78: Osazení obrubníků:78,00*2*0,25*0,10
A79: 29 | B79: 919731122R00 | C79: Zarovnání styčné plochy živičné tl. do 10 cm | D79: m | E79: 173.5 | G79: =E79*F79 -> 0 | H79: 0 | I79: =E79*H79 -> 0 | J79: 0 | K79: =E79*J79 -> 0 | O79: 2 | AA79: 1 | AB79: 1 | AC79: 1 | AZ79: 1 | BA79: =IF(AZ79=1,G79,0) -> 0 | BB79: =IF(AZ79=2,G79,0) -> 0 | BC79: =IF(AZ79=3,G79,0) -> 0 | BD79: =IF(AZ79=4,G79,0) -> 0 | BE79: =IF(AZ79=5,G79,0) -> 0 | CA79: 1 | CB79: 1
C80: Pro osazení betonových obrubníků:78,00*2-6,50*4-5,00*3 | E80: 115 | M80: Pro osazení betonových obrubníků:78,00*2-6,50*4-5,00*3
C81: Pro osazení obruby z kostek: | E81: 0 | M81: Pro osazení obruby z kostek:
C82: Parkovací stání:6,50*4+2,50*4 | E82: 36 | M82: Parkovací stání:6,50*4+2,50*4
C83: Prostor pro stromy:5,00*3+2,50*3 | E83: 22.5 | M83: Prostor pro stromy:5,00*3+2,50*3
A84: 30 | B84: 919735112R00 | C84: Řezání stávajícího živičného krytu tl. 5 - 10 cm | D84: m | E84: 173.5 | G84: =E84*F84 -> 0 | H84: 0 | I84: =E84*H84 -> 0 | J84: 0 | K84: =E84*J84 -> 0 | O84: 2 | AA84: 1 | AB84: 1 | AC84: 1 | AZ84: 1 | BA84: =IF(AZ84=1,G84,0) -> 0 | BB84: =IF(AZ84=2,G84,0) -> 0 | BC84: =IF(AZ84=3,G84,0) -> 0 | BD84: =IF(AZ84=4,G84,0) -> 0 | BE84: =IF(AZ84=5,G84,0) -> 0 | CA84: 1 | CB84: 1
C85: Pro osazení betonových obrubníků:78,00*2-6,50*4-5,00*3 | E85: 115 | M85: Pro osazení betonových obrubníků:78,00*2-6,50*4-5,00*3
C86: Pro osazení obruby z kostek: | E86: 0 | M86: Pro osazení obruby z kostek:
C87: Parkovací stání:6,50*4+2,50*4 | E87: 36 | M87: Parkovací stání:6,50*4+2,50*4
C88: Prostor pro stromy:5,00*3+2,50*3 | E88: 22.5 | M88: Prostor pro stromy:5,00*3+2,50*3
B89: Celkem za | C89: 91 Doplňující práce na komunikaci | G89: =SUM(G70:G88) -> 0 | I89: =SUM(I70:I88) -> 58.767995 | K89: =SUM(K70:K88) -> 0 | O89: 4 | BA89: =SUM(BA70:BA88) -> 0 | BB89: =SUM(BB70:BB88) -> 0 | BC89: =SUM(BC70:BC88) -> 0 | BD89: =SUM(BD70:BD88) -> 0 | BE89: =SUM(BE70:BE88) -> 0
A90: Díl: | B90: 93 | C90: Dokončovací práce inženýrských staveb | O90: 1
A91: 31 | B91: 938908411R00 | C91: Očištění povrchu krytu saponátovým roztokem | D91: m2 | E91: 521.5 | G91: =E91*F91 -> 0 | H91: 1e-05 | I91: =E91*H91 -> 0.005215 | J91: 0 | K91: =E91*J91 -> 0 | O91: 2 | AA91: 1 | AB91: 1 | AC91: 1 | AZ91: 1 | BA91: =IF(AZ91=1,G91,0) -> 0 | BB91: =IF(AZ91=2,G91,0) -> 0 | BC91: =IF(AZ91=3,G91,0) -> 0 | BD91: =IF(AZ91=4,G91,0) -> 0 | BE91: =IF(AZ91=5,G91,0) -> 0 | CA91: 1 | CB91: 1
C92: Komunikace:78,00*8,00 | E92: 624 | M92: Komunikace:78,00*8,00
C93: Parkovací stání:-6,50*2,50*4 | E93: -65 | M93: Parkovací stání:-6,50*2,50*4
C94: Prostor pro stromy:-5,00*2,50*3 | E94: -37.5 | M94: Prostor pro stromy:-5,00*2,50*3
A95: 32 | B95: 938909311R00 | C95: Odstranění nánosu z povrchu živičného nebo beton. | D95: m2 | E95: 521.5 | G95: =E95*F95 -> 0 | H95: 0 | I95: =E95*H95 -> 0 | J95: 0 | K95: =E95*J95 -> 0 | O95: 2 | AA95: 1 | AB95: 1 | AC95: 1 | AZ95: 1 | BA95: =IF(AZ95=1,G95,0) -> 0 | BB95: =IF(AZ95=2,G95,0) -> 0 | BC95: =IF(AZ95=3,G95,0) -> 0 | BD95: =IF(AZ95=4,G95,0) -> 0 | BE95: =IF(AZ95=5,G95,0) -> 0 | CA95: 1 | CB95: 1
C96: Komunikace:78,00*8,00 | E96: 624 | M96: Komunikace:78,00*8,00
C97: Parkovací stání:-6,50*2,50*4 | E97: -65 | M97: Parkovací stání:-6,50*2,50*4
C98: Prostor pro stromy:-5,00*2,50*3 | E98: -37.5 | M98: Prostor pro stromy:-5,00*2,50*3
B99: Celkem za | C99: 93 Dokončovací práce inženýrských staveb | G99: =SUM(G90:G98) -> 0 | I99: =SUM(I90:I98) -> 0.005215 | K99: =SUM(K90:K98) -> 0 | O99: 4 | BA99: =SUM(BA90:BA98) -> 0 | BB99: =SUM(BB90:BB98) -> 0 | BC99: =SUM(BC90:BC98) -> 0 | BD99: =SUM(BD90:BD98) -> 0 | BE99: =SUM(BE90:BE98) -> 0
A100: Díl: | B100: 99 | C100: Staveništní přesun hmot | O100: 1
A101: 33 | B101: 998225111R00 | C101: Přesun hmot, pozemní komunikace, kryt živičný | D101: t | E101: 142.41781 | G101: =E101*F101 -> 0 | H101: 0 | I101: =E101*H101 -> 0 | K101: =E101*J101 -> 0 | O101: 2 | AA101: 7 | AB101: 1 | AC101: 2 | AZ101: 1 | BA101: =IF(AZ101=1,G101,0) -> 0 | BB101: =IF(AZ101=2,G101,0) -> 0 | BC101: =IF(AZ101=3,G101,0) -> 0 | BD101: =IF(AZ101=4,G101,0) -> 0 | BE101: =IF(AZ101=5,G101,0) -> 0 | CA101: 7 | CB101: 1
B102: Celkem za | C102: 99 Staveništní přesun hmot | G102: =SUM(G100:G101) -> 0 | I102: =SUM(I100:I101) -> 0 | K102: =SUM(K100:K101) -> 0 | O102: 4 | BA102: =SUM(BA100:BA101) -> 0 | BB102: =SUM(BB100:BB101) -> 0 | BC102: =SUM(BC100:BC101) -> 0 | BD102: =SUM(BD100:BD101) -> 0 | BE102: =SUM(BE100:BE101) -> 0

Sheet ONS
A1: Položkový rozpočet
A3: Stavba : | C3: 3272 Rekonstrukce vodovodu V.etapa - Bělá u Staré Paky | E3: Rozpočet: | F3: ONS
A4: Objekt : | C4: ONS - Ostatní náklady stavby
A6: P.č. | B6: Číslo položky | C6: Název položky | D6: MJ | E6: množství | F6: cena / MJ | G6: celkem (Kč) | H6: Jednotková hmotnost | I6: Celková hmotnost | J6: Jednotková dem.hmot. | K6: Celková dem.hmot.
A7: Díl: | B7: 950 | C7: Ostatní náklady stavby
A8: 1 | B8: 950 99-0001.ONS | C8: Zajištění prostoru a vybudování zařízení staveniště včetně potřebných staveništních komunikací | D8: soubor | E8: 1 | G8: =SUM(E8*F8) -> 0 | H8: 0.00869 | I8: =E8*H8 -> 0.00869 | J8: 0 | K8: =E8*J8 -> 0 | M8: 500000 | AP8: 1 | AR8: =IF(AP8=2,G8,0) -> 0 | AS8: =IF(AP8=3,G8,0) -> 0 | AT8: =IF(AP8=4,G8,0) -> 0 | AU8: =IF(AP8=5,G8,0) -> 0 | BQ8: 1 | BR8: 1
A9: 2 | B9: 950 99-0003.ONS | C9: Zajištění bezpečnosti při provádění stavby ve smyslu bezpečnosti práce i ochrany životního prostředí a zeleně | D9: soubor | E9: 1 | G9: =SUM(E9*F9) -> 0 | M9: 30000
A10: 3 | B10: 950 99-0005.ONS | C10: Vytýčení stavby a hranic pozemků při provádění stavby | D10: soubor | E10: 1 | G10: 0 | M10: 100000
A11: 4 | B11: 950 99-0006.ONS | C11: Zajištění včasného oznámení o zahájení prací majitelům pozemků a správců sítí dotčených stavbou | D11: soubor | E11: 1 | G11: 0 | M11: 10000
A12: 5 | B12: 950 99-0007.ONS | C12: Spolupráce s vlastníky pozemků při případném uvolnění pozemků pro stavbu (např. skládky osobního materiálu vlastníků) | D12: soubor | E12: 1 | G12: 0 | H12: 0.02478 | I12: =E12*H12 -> 0.02478 | J12: 0 | K12: =E12*J12 -> 0 | M12: 10000 | AP12: 1 | AR12: =IF(AP12=2,G12,0) -> 0 | AS12: =IF(AP12=3,G12,0) -> 0 | AT12: =IF(AP12=4,G12,0) -> 0 | AU12: =IF(AP12=5,G12,0) -> 0 | BQ12: 1 | BR12: 1
A13: 6 | B13: 950 99-0008.ONS | C13: Zajištění vytýčení podzemních zařízení, a v případě jejich křížení či souběhu v otevřeném výkopu, jejich písemné předání zpět jejich správcům před zásypem | D13: soubor | E13: 1 | G13: 0 | M13: 90000
A14: 7 | B14: 950 99-0009.ONS | C14: Vypracování a projednání návrhu dočasných dopravních opatření | D14: soubor | E14: 1 | G14: 0 | M14: 20000
A15: 8 | B15: 950 99-0010.ONS | C15: Zajištění povolení zvláštního užívání komunikací v souladu s postupem výstavby,včetně správních poplatků a povolení k užívání dalších, stavbou dotčených pozemků (skládky materiálu, mezideponie atd.) | D15: soubor | E15: 1 | G15: 0 | M15: 10000
A16: 9 | B16: 950 99-0011.ONS | C16: Zřízení, údržba a likvidace dopravního opatření po dobu realizace stavby | D16: soubor | E16: 1 | G16: 0 | H16: 0 | I16: =E16*H16 -> 0 | J16: 0 | K16: =E16*J16 -> 0 | M16: 50000 | AP16: 1 | AR16: =IF(AP16=2,G16,0) -> 0 | AS16: =IF(AP16=3,G16,0) -> 0 | AT16: =IF(AP16=4,G16,0) -> 0 | AU16: =IF(AP16=5,G16,0) -> 0 | BQ16: 1 | BR16: 1
A17: 10 | B17: 950 99-0013.ONS | C17: Zajištění činnosti odpovědného geodeta zhotovitele | D17: soubor | E17: 1 | G17: 0 | M17: 120000
A18: 11 | B18: 950 99-0015.ONS | C18: Zajištění čistoty na staveništi a v jeho okolí, zajištění každodenního čištění komunikací dotčených provozem zhotovitele | D18: soubor | E18: 1 | G18: 0 | M18: 20000
A19: 12 | B19: 950 99-0016.ONS | C19: Fotodokumentace průběhu díla; zhotovitel zajistí a předá objednateli průběžnou fotodokumentaci realizace díla dle TS. Fotodokumentace bude dokladovat průběh díla a bude zejména dokumentovat části stavby a konstrukce před jejich zakrytím | D19: soubor | E19: 1 | G19: 0 | M19: 10000
A20: 13 | B20: 950 99-0021.ONS | C20: Inženýrská a kompletační činnost zhotovitele dle TS | D20: soubor | E20: 1 | G20: 0 | M20: 150000
A21: 14 | B21: 950 99-0022.ONS | C21: Zhotovení dokumentace skutečného provedení díla | D21: soubor | E21: 1 | G21: 0 | M21: 50000
A22: 15 | B22: 950 99-0023.ONS | C22: Geodetické zaměření stavby | D22: soubor | E22: 1 | G22: 0 | M22: 80000
A23: 16 | B23: 950 99-0025.ONS | C23: Ostatní činnosti nutné ke zdárnému provedení díla, které jsou vymezeny zejména v technické specifikaci stavby | D23: soubor | E23: 1 | G23: 0 | M23: 20000
B25: ONS Celkem | G25: =SUM(G8:G23) -> 0
